Workbook

Sheet Kalkulator
B1: Kredyt w CHF | E1: Aktualny status kredytu | H1: Saldo kapitału w PLN | K1: Kredyt po restrukturyzacji
B2: Marża kredytu | C2: 0.01
B3: Kwota kredytu PLN | C3: 300000 | E3: Rok | F3: 2016 | H3: Kurs otwarcia | K3: Kapitał do spłaty | L3: =H6 -> 286336.4791
B4: Okres kredytowania | C4: 360 | E4: Miesiąc | F4: styczeń | H4: =F8*C8 -> 234560.1068 | I4: =H4/F8 -> 2.027765 | K4: Liczba rat | L4: =F9 -> 272
B5: Rok | C5: 2008 | E5: Data | F5: =DATE(F3,VLOOKUP(F4,BAZA_LIBOR_WIBOR_KURS!I2:J13,2,FALSE),1) -> 2016-01-01 | H5: Kurs sprawiedliwy | K5: WIBOR 3M | L5: 0.0173
B6: Miesiąc | C6: sierpień | E6: Saldo kapitału PLN | F6: =VLOOKUP(F5,B12:N491,13,FALSE) -> 286336.4791 | H6: =F6 -> 286336.4791 | I6: =H6/F8 -> 2.475370166 | K6: marża | L6: =C2 -> 0.01
B7: Data uruchomienia | C7: =DATE(C5,VLOOKUP(C6,BAZA_LIBOR_WIBOR_KURS!I2:J13,2,FALSE),1) -> 2008-08-01 | E7: Kurs CHF | F7: =VLOOKUP(F5,BAZA_LIBOR_WIBOR_KURS!C2:F145,4,FALSE) -> 4.1 | H7: Kurs aktualny
B8: Kurs CHF | C8: =VLOOKUP(C7,BAZA_LIBOR_WIBOR_KURS!C2:F145,4,FALSE) -> 2.027765 | E8: Saldo kapitału CHF | F8: =VLOOKUP(F5,B12:G491,6,FALSE) -> 115674.2062 | H8: =F8*F7 -> 474264.2455 | I8: =H8/F8 -> 4.1 | K8: Rata miesięczna | L8: =PMT((L6+L5)/12,L4,-L3) -> 1412.953842
B9: Kwota kredytu CHF | C9: =ROUND(C3/C8,2) -> 147946.14 | E9: Liczba rat do końca | F9: =C4-((2016-C5)*12)+IF(C6="styczeń",1,IF(C6="luty",2,IF(C6="marzec",3,IF(C6="kwiecień",4,IF(C6="maj",5,IF(C6="czerwiec",6,IF(C6="lipiec",7,IF(C6="sierpień",8,IF(C6="wrzesień",9,IF(C6=październik,10,IF(C6="listopad",11,IF(C6="grudzień",12,0)))))))))))) -> 272
A11: Nr raty | B11: Data | C11: LIBOR_3M_CHF | D11: Marża | E11: odsetki_CHF | F11: kapitał_CHF | G11: Saldo kapitału_CHF | H11: kurs_CHF | I11: WIBOR_3M | J11: Marża | K11: Wpłata w PLN | L11: Odsetki_PLN | M11: Kapitał_PLN | N11: Saldo kapitału_PLN
A12: 1 | B12: =DATE(C5,VLOOKUP(C6,BAZA_LIBOR_WIBOR_KURS!I2:J13,2,FALSE)+1,1) -> 2008-09-01 | C12: =VLOOKUP(B12,BAZA_LIBOR_WIBOR_KURS!$C$2:$F$145,2,FALSE) -> 0.02779 | D12: =C2 -> 0.01 | E12: =IPMT((C12+D12)/12,1,$C$4,-C9) -> 465.9070526 | F12: =PPMT((C12+D12)/12,1,$C$4,-C9) -> 221.6914211 | G12: =$C$9-SUM($F$12:F12) -> 147724.4486 | H12: =VLOOKUP(B12,BAZA_LIBOR_WIBOR_KURS!$C$2:$F$145,4,FALSE) -> 2.115818182 | I12: =VLOOKUP(B12,BAZA_LIBOR_WIBOR_KURS!$C$2:$F$145,3,FALSE) -> 0.06558181818 | J12: 0.02 | K12: =IF(A12>$C$4,"_",IF(B12>$F$5,0,H12*(E12+F12))) -> 1454.833352 | L12: =ROUND(C3*(I12+J12)/12,2) -> 2139.55 | M12: =IFERROR(K12-L12,"_") -> -684.7166476 | N12: =IF(A12>$C$4,"_",$C$3-SUM($M$12:M12)) -> 300684.7166
A13: =A12+1 -> 2 | B13: =IF(A13>$C$4,"_",DATE(YEAR(B12),MONTH(B12)+1,1)) -> 2008-10-01 | C13: =IF(A13>$C$4,"_",IFERROR(VLOOKUP(B13,BAZA_LIBOR_WIBOR_KURS!$C$2:$F$145,2,FALSE),C12)) -> 0.02998 | D13: =IF(A13>$C$4,"_",D12) -> 0.01 | E13: =IF(A13>$C$4,"_",IPMT((C13+D13)/12,1,$C$4-A12,-G12)) -> 492.1686212 | F13: =IF(A13>$C$4,"_",PPMT((C13+D13)/12,1,$C$4-A12,-G12)) -> 213.937907 | G13: =IF(A13>$C$4,"_",$C$9-SUM($F$12:F13)) -> 147510.5107 | H13: =IF(A13>$C$4,"_",IFERROR(VLOOKUP(B13,BAZA_LIBOR_WIBOR_KURS!$C$2:$F$145,4,FALSE),H12)) -> 2.355926087 | I13: =IF(A13>$C$4,"_",IFERROR(VLOOKUP(B13,BAZA_LIBOR_WIBOR_KURS!$C$2:$F$145,3,FALSE),I12)) -> 0.06796956522 | J13: =IF(A13>$C$4,"_",J12) -> 0.02 | K13: 1663.53479 | L13: =IF(A13>$C$4,"_",IF(N12<0,0,ROUND(N12*(I13+J13)/12,2))) -> 2204.26 | M13: =IFERROR(K13-L13,"_") -> -540.7252101 | N13: =IF(A13>$C$4,"_",$C$3-SUM($M$12:M13)) -> 301225.4419
A14: =A13+1 -> 3 | B14: 2008-11-01 | C14: =IF(A14>$C$4,"_",IFERROR(VLOOKUP(B14,BAZA_LIBOR_WIBOR_KURS!$C$2:$F$145,2,FALSE),C13)) -> 0.01967 | D14: 0.01 | E14: 364.7197376 | F14: 256.7158092 | G14: =IF(A14>$C$4,"_",$C$9-SUM($F$12:F14)) -> 147253.7949 | H14: =IF(A14>$C$4,"_",IFERROR(VLOOKUP(B14,BAZA_LIBOR_WIBOR_KURS!$C$2:$F$145,4,FALSE),H13)) -> 2.459 | I14: =IF(A14>$C$4,"_",IFERROR(VLOOKUP(B14,BAZA_LIBOR_WIBOR_KURS!$C$2:$F$145,3,FALSE),I13)) -> 0.06739473684 | J14: 0.02 | K14: 1528.11001 | L14: 2193.79 | M14: -665.6799904 | N14: =IF(A14>$C$4,"_",$C$3-SUM($M$12:M14)) -> 301891.1218
A15: 4 | B15: 2008-12-01 | C15: =IF(A15>$C$4,"_",IFERROR(VLOOKUP(B15,BAZA_LIBOR_WIBOR_KURS!$C$2:$F$145,2,FALSE),C14)) -> 0.00913 | D15: 0.01 | E15: 234.7470913 | F15: 306.4956203 | G15: =IF(A15>$C$4,"_",$C$9-SUM($F$12:F15)) -> 146947.2992 | H15: =IF(A15>$C$4,"_",IFERROR(VLOOKUP(B15,BAZA_LIBOR_WIBOR_KURS!$C$2:$F$145,4,FALSE),H14)) -> 2.605928571 | I15: =IF(A15>$C$4,"_",IFERROR(VLOOKUP(B15,BAZA_LIBOR_WIBOR_KURS!$C$2:$F$145,3,FALSE),I14)) -> 0.06378571429 | J15: 0.02 | K15: 1410.439846 | L15: 2107.85 | M15: -697.4101537 | N15: =IF(A15>$C$4,"_",$C$3-SUM($M$12:M15)) -> 302588.532
A16: 5 | B16: 2009-01-01 | C16: =IF(A16>$C$4,"_",IFERROR(VLOOKUP(B16,BAZA_LIBOR_WIBOR_KURS!$C$2:$F$145,2,FALSE),C15)) -> 0.00569 | D16: 0.01 | E16: 192.1335938 | F16: 324.3974198 | G16: =IF(A16>$C$4,"_",$C$9-SUM($F$12:F16)) -> 146622.9018 | H16: =IF(A16>$C$4,"_",IFERROR(VLOOKUP(B16,BAZA_LIBOR_WIBOR_KURS!$C$2:$F$145,4,FALSE),H15)) -> 2.82552381 | I16: =IF(A16>$C$4,"_",IFERROR(VLOOKUP(B16,BAZA_LIBOR_WIBOR_KURS!$C$2:$F$145,3,FALSE),I15)) -> 0.05506190476 | J16: 0.02 | K16: 1459.470677 | L16: 1892.74 | M16: -433.269323 | N16: =IF(A16>$C$4,"_",$C$3-SUM($M$12:M16)) -> 303021.8013
A17: 6 | B17: 2009-02-01 | C17: =IF(A17>$C$4,"_",IFERROR(VLOOKUP(B17,BAZA_LIBOR_WIBOR_KURS!$C$2:$F$145,2,FALSE),C16)) -> 0.00506 | D17: 0.01 | E17: 184.0117418 | F17: 328.0805883 | G17: =IF(A17>$C$4,"_",$C$9-SUM($F$12:F17)) -> 146294.8212 | H17: =IF(A17>$C$4,"_",IFERROR(VLOOKUP(B17,BAZA_LIBOR_WIBOR_KURS!$C$2:$F$145,4,FALSE),H16)) -> 3.119175 | I17: =IF(A17>$C$4,"_",IFERROR(VLOOKUP(B17,BAZA_LIBOR_WIBOR_KURS!$C$2:$F$145,3,FALSE),I16)) -> 0.046875 | J17: 0.02 | K17: 1597.305594 | L17: 1688.72 | M17: -91.41440632 | N17: =IF(A17>$C$4,"_",$C$3-SUM($M$12:M17)) -> 303113.2157
A18: 7 | B18: 2009-03-01 | C18: =IF(A18>$C$4,"_",IFERROR(VLOOKUP(B18,BAZA_LIBOR_WIBOR_KURS!$C$2:$F$145,2,FALSE),C17)) -> 0.00436 | D18: 0.01 | E18: 175.0661361 | F18: 332.1344171 | G18: =IF(A18>$C$4,"_",$C$9-SUM($F$12:F18)) -> 145962.6868 | H18: =IF(A18>$C$4,"_",IFERROR(VLOOKUP(B18,BAZA_LIBOR_WIBOR_KURS!$C$2:$F$145,4,FALSE),H17)) -> 3.071522727 | I18: =IF(A18>$C$4,"_",IFERROR(VLOOKUP(B18,BAZA_LIBOR_WIBOR_KURS!$C$2:$F$145,3,FALSE),I17)) -> 0.04299090909 | J18: 0.02 | K18: 1557.878026 | L18: 1591.11 | M18: -33.23197378 | N18: =IF(A18>$C$4,"_",$C$3-SUM($M$12:M18)) -> 303146.4477
A19: 8 | B19: 2009-04-01 | C19: =IF(A19>$C$4,"_",IFERROR(VLOOKUP(B19,BAZA_LIBOR_WIBOR_KURS!$C$2:$F$145,2,FALSE),C18)) -> 0.00401 | D19: 0.01 | E19: 170.4114369 | F19: 334.3603586 | G19: =IF(A19>$C$4,"_",$C$9-SUM($F$12:F19)) -> 145628.3265 | H19: =IF(A19>$C$4,"_",IFERROR(VLOOKUP(B19,BAZA_LIBOR_WIBOR_KURS!$C$2:$F$145,4,FALSE),H18)) -> 2.923585714 | I19: =IF(A19>$C$4,"_",IFERROR(VLOOKUP(B19,BAZA_LIBOR_WIBOR_KURS!$C$2:$F$145,3,FALSE),I18)) -> 0.04204761905 | J19: 0.02 | K19: 1475.74361 | L19: 1567.46 | M19: -91.71638989 | N19: =IF(A19>$C$4,"_",$C$3-SUM($M$12:M19)) -> 303238.1641
A20: 9 | B20: 2009-05-01 | C20: =IF(A20>$C$4,"_",IFERROR(VLOOKUP(B20,BAZA_LIBOR_WIBOR_KURS!$C$2:$F$145,2,FALSE),C19)) -> 0.00402 | D20: 0.01 | E20: 170.1424281 | F20: 334.6984795 | G20: =IF(A20>$C$4,"_",$C$9-SUM($F$12:F20)) -> 145293.628 | H20: =IF(A20>$C$4,"_",IFERROR(VLOOKUP(B20,BAZA_LIBOR_WIBOR_KURS!$C$2:$F$145,4,FALSE),H19)) -> 2.9162 | I20: =IF(A20>$C$4,"_",IFERROR(VLOOKUP(B20,BAZA_LIBOR_WIBOR_KURS!$C$2:$F$145,3,FALSE),I19)) -> 0.045155 | J20: 0.02 | K20: 1472.217055 | L20: 1646.46 | M20: -174.2429453 | N20: =IF(A20>$C$4,"_",$C$3-SUM($M$12:M20)) -> 303412.407
A21: 10 | B21: 2009-06-01 | C21: =IF(A21>$C$4,"_",IFERROR(VLOOKUP(B21,BAZA_LIBOR_WIBOR_KURS!$C$2:$F$145,2,FALSE),C20)) -> 0.00395 | D21: 0.01 | E21: 168.9038425 | F21: 335.4546722 | G21: =IF(A21>$C$4,"_",$C$9-SUM($F$12:F21)) -> 144958.1733 | H21: =IF(A21>$C$4,"_",IFERROR(VLOOKUP(B21,BAZA_LIBOR_WIBOR_KURS!$C$2:$F$145,4,FALSE),H20)) -> 2.976942857 | I21: =IF(A21>$C$4,"_",IFERROR(VLOOKUP(B21,BAZA_LIBOR_WIBOR_KURS!$C$2:$F$145,3,FALSE),I20)) -> 0.04598095238 | J21: 0.02 | K21: 1501.446478 | L21: 1668.29 | M21: -166.8435221 | N21: =IF(A21>$C$4,"_",$C$3-SUM($M$12:M21)) -> 303579.2506
A22: 11 | B22: 2009-07-01 | C22: =IF(A22>$C$4,"_",IFERROR(VLOOKUP(B22,BAZA_LIBOR_WIBOR_KURS!$C$2:$F$145,2,FALSE),C21)) -> 0.00373 | D22: 0.01 | E22: 165.85631 | F22: 336.9919493 | G22: =IF(A22>$C$4,"_",$C$9-SUM($F$12:F22)) -> 144621.1814 | H22: =IF(A22>$C$4,"_",IFERROR(VLOOKUP(B22,BAZA_LIBOR_WIBOR_KURS!$C$2:$F$145,4,FALSE),H21)) -> 2.828847826 | I22: =IF(A22>$C$4,"_",IFERROR(VLOOKUP(B22,BAZA_LIBOR_WIBOR_KURS!$C$2:$F$145,3,FALSE),I21)) -> 0.0425826087 | J22: 0.02 | K22: 1422.481205 | L22: 1583.23 | M22: -160.748795 | N22: =IF(A22>$C$4,"_",$C$3-SUM($M$12:M22)) -> 303739.9994
A23: 12 | B23: 2009-08-01 | C23: =IF(A23>$C$4,"_",IFERROR(VLOOKUP(B23,BAZA_LIBOR_WIBOR_KURS!$C$2:$F$145,2,FALSE),C22)) -> 0.00343 | D23: 0.01 | E23: 161.8552055 | F23: 338.9435478 | G23: =IF(A23>$C$4,"_",$C$9-SUM($F$12:F23)) -> 144282.2378 | H23: =IF(A23>$C$4,"_",IFERROR(VLOOKUP(B23,BAZA_LIBOR_WIBOR_KURS!$C$2:$F$145,4,FALSE),H22)) -> 2.710380952 | I23: =IF(A23>$C$4,"_",IFERROR(VLOOKUP(B23,BAZA_LIBOR_WIBOR_KURS!$C$2:$F$145,3,FALSE),I22)) -> 0.04159047619 | J23: 0.02 | K23: 1357.355402 | L23: 1558.96 | M23: -201.6045981 | N23: =IF(A23>$C$4,"_",$C$3-SUM($M$12:M23)) -> 303941.604
A24: 13 | B24: 2009-09-01 | C24: =IF(A24>$C$4,"_",IFERROR(VLOOKUP(B24,BAZA_LIBOR_WIBOR_KURS!$C$2:$F$145,2,FALSE),C23)) -> 0.00301 | D24: 0.01 | E24: 156.4259928 | F24: 341.5197342 | G24: =IF(A24>$C$4,"_",$C$9-SUM($F$12:F24)) -> 143940.7181 | H24: =IF(A24>$C$4,"_",IFERROR(VLOOKUP(B24,BAZA_LIBOR_WIBOR_KURS!$C$2:$F$145,4,FALSE),H23)) -> 2.748009091 | I24: =IF(A24>$C$4,"_",IFERROR(VLOOKUP(B24,BAZA_LIBOR_WIBOR_KURS!$C$2:$F$145,3,FALSE),I23)) -> 0.04177272727 | J24: 0.02 | K24: 1368.359385 | L24: 1564.61 | M24: -196.2506155 | N24: =IF(A24>$C$4,"_",$C$3-SUM($M$12:M24)) -> 304137.8546
A25: 14 | B25: 2009-10-01 | C25: =IF(A25>$C$4,"_",IFERROR(VLOOKUP(B25,BAZA_LIBOR_WIBOR_KURS!$C$2:$F$145,2,FALSE),C24)) -> 0.00273 | D25: 0.01 | E25: 152.6971118 | F25: 343.3572693 | G25: =IF(A25>$C$4,"_",$C$9-SUM($F$12:F25)) -> 143597.3608 | H25: =IF(A25>$C$4,"_",IFERROR(VLOOKUP(B25,BAZA_LIBOR_WIBOR_KURS!$C$2:$F$145,4,FALSE),H24)) -> 2.782645455 | I25: =IF(A25>$C$4,"_",IFERROR(VLOOKUP(B25,BAZA_LIBOR_WIBOR_KURS!$C$2:$F$145,3,FALSE),I24)) -> 0.04183636364 | J25: 0.02 | K25: 1380.343469 | L25: 1567.23 | M25: -186.8865313 | N25: =IF(A25>$C$4,"_",$C$3-SUM($M$12:M25)) -> 304324.7411
A26: 15 | B26: 2009-11-01 | C26: =IF(A26>$C$4,"_",IFERROR(VLOOKUP(B26,BAZA_LIBOR_WIBOR_KURS!$C$2:$F$145,2,FALSE),C25)) -> 0.00255 | D26: 0.01 | E26: 150.1789065 | F26: 344.6652251 | G26: =IF(A26>$C$4,"_",$C$9-SUM($F$12:F26)) -> 143252.6956 | H26: =IF(A26>$C$4,"_",IFERROR(VLOOKUP(B26,BAZA_LIBOR_WIBOR_KURS!$C$2:$F$145,4,FALSE),H25)) -> 2.76002 | I26: =IF(A26>$C$4,"_",IFERROR(VLOOKUP(B26,BAZA_LIBOR_WIBOR_KURS!$C$2:$F$145,3,FALSE),I25)) -> 0.041915 | J26: 0.02 | K26: 1365.7797 | L26: 1570.19 | M26: -204.4102997 | N26: =IF(A26>$C$4,"_",$C$3-SUM($M$12:M26)) -> 304529.1514
A27: 16 | B27: 2009-12-01 | C27: =IF(A27>$C$4,"_",IFERROR(VLOOKUP(B27,BAZA_LIBOR_WIBOR_KURS!$C$2:$F$145,2,FALSE),C26)) -> 0.00252 | D27: 0.01 | E27: 149.4603124 | F27: 345.1828332 | G27: =IF(A27>$C$4,"_",$C$9-SUM($F$12:F27)) -> 142907.5127 | H27: =IF(A27>$C$4,"_",IFERROR(VLOOKUP(B27,BAZA_LIBOR_WIBOR_KURS!$C$2:$F$145,4,FALSE),H26)) -> 2.756163636 | I27: =IF(A27>$C$4,"_",IFERROR(VLOOKUP(B27,BAZA_LIBOR_WIBOR_KURS!$C$2:$F$145,3,FALSE),I26)) -> 0.04232272727 | J27: 0.02 | K27: 1363.317451 | L27: 1581.59 | M27: -218.272549 | N27: =IF(A27>$C$4,"_",$C$3-SUM($M$12:M27)) -> 304747.424
A28: 17 | B28: 2010-01-01 | C28: =IF(A28>$C$4,"_",IFERROR(VLOOKUP(B28,BAZA_LIBOR_WIBOR_KURS!$C$2:$F$145,2,FALSE),C27)) -> 0.0025 | D28: 0.01 | E28: 148.8619924 | F28: 345.6475533 | G28: =IF(A28>$C$4,"_",$C$9-SUM($F$12:F28)) -> 142561.8652 | H28: =IF(A28>$C$4,"_",IFERROR(VLOOKUP(B28,BAZA_LIBOR_WIBOR_KURS!$C$2:$F$145,4,FALSE),H27)) -> 2.754515 | I28: =IF(A28>$C$4,"_",IFERROR(VLOOKUP(B28,BAZA_LIBOR_WIBOR_KURS!$C$2:$F$145,3,FALSE),I27)) -> 0.04237 | J28: 0.02 | K28: 1362.133961 | L28: 1583.92 | M28: -221.7860386 | N28: =IF(A28>$C$4,"_",$C$3-SUM($M$12:M28)) -> 304969.21
A29: 18 | B29: 2010-02-01 | C29: =IF(A29>$C$4,"_",IFERROR(VLOOKUP(B29,BAZA_LIBOR_WIBOR_KURS!$C$2:$F$145,2,FALSE),C28)) -> 0.00249 | D29: 0.01 | E29: 148.3831414 | F29: 346.0597942 | G29: =IF(A29>$C$4,"_",$C$9-SUM($F$12:F29)) -> 142215.8054 | H29: =IF(A29>$C$4,"_",IFERROR(VLOOKUP(B29,BAZA_LIBOR_WIBOR_KURS!$C$2:$F$145,4,FALSE),H28)) -> 2.73548 | I29: =IF(A29>$C$4,"_",IFERROR(VLOOKUP(B29,BAZA_LIBOR_WIBOR_KURS!$C$2:$F$145,3,FALSE),I28)) -> 0.041725 | J29: 0.02 | K29: 1352.538761 | L29: 1568.69 | M29: -216.1512385 | N29: =IF(A29>$C$4,"_",$C$3-SUM($M$12:M29)) -> 305185.3612
A30: 19 | B30: 2010-03-01 | C30: =IF(A30>$C$4,"_",IFERROR(VLOOKUP(B30,BAZA_LIBOR_WIBOR_KURS!$C$2:$F$145,2,FALSE),C29)) -> 0.00249 | D30: 0.01 | E30: 148.0229508 | F30: 346.4199848 | G30: =IF(A30>$C$4,"_",$C$9-SUM($F$12:F30)) -> 141869.3854 | H30: =IF(A30>$C$4,"_",IFERROR(VLOOKUP(B30,BAZA_LIBOR_WIBOR_KURS!$C$2:$F$145,4,FALSE),H29)) -> 2.6885 | I30: =IF(A30>$C$4,"_",IFERROR(VLOOKUP(B30,BAZA_LIBOR_WIBOR_KURS!$C$2:$F$145,3,FALSE),I29)) -> 0.04129130435 | J30: 0.02 | K30: 1329.309832 | L30: 1558.77 | M30: -229.4601676 | N30: =IF(A30>$C$4,"_",$C$3-SUM($M$12:M30)) -> 305414.8214
A31: 20 | B31: 2010-04-01 | C31: =IF(A31>$C$4,"_",IFERROR(VLOOKUP(B31,BAZA_LIBOR_WIBOR_KURS!$C$2:$F$145,2,FALSE),C30)) -> 0.00244 | D31: 0.01 | E31: 147.0712629 | F31: 347.0405199 | G31: =IF(A31>$C$4,"_",$C$9-SUM($F$12:F31)) -> 141522.3449 | H31: =IF(A31>$C$4,"_",IFERROR(VLOOKUP(B31,BAZA_LIBOR_WIBOR_KURS!$C$2:$F$145,4,FALSE),H30)) -> 2.702438095 | I31: =IF(A31>$C$4,"_",IFERROR(VLOOKUP(B31,BAZA_LIBOR_WIBOR_KURS!$C$2:$F$145,3,FALSE),I30)) -> 0.03921904762 | J31: 0.02 | K31: 1335.306505 | L31: 1507.2 | M31: -171.8934948 | N31: =IF(A31>$C$4,"_",$C$3-SUM($M$12:M31)) -> 305586.7149
A32: 21 | B32: 2010-05-01 | C32: =IF(A32>$C$4,"_",IFERROR(VLOOKUP(B32,BAZA_LIBOR_WIBOR_KURS!$C$2:$F$145,2,FALSE),C31)) -> 0.00194 | D32: 0.01 | E32: 140.8147332 | F32: 350.0021584 | G32: =IF(A32>$C$4,"_",$C$9-SUM($F$12:F32)) -> 141172.3427 | H32: =IF(A32>$C$4,"_",IFERROR(VLOOKUP(B32,BAZA_LIBOR_WIBOR_KURS!$C$2:$F$145,4,FALSE),H31)) -> 2.8604 | I32: =IF(A32>$C$4,"_",IFERROR(VLOOKUP(B32,BAZA_LIBOR_WIBOR_KURS!$C$2:$F$145,3,FALSE),I31)) -> 0.03854 | J32: 0.02 | K32: 1403.932637 | L32: 1490.75 | M32: -86.81736328 | N32: =IF(A32>$C$4,"_",$C$3-SUM($M$12:M32)) -> 305673.5323
A33: 22 | B33: 2010-06-01 | C33: =IF(A33>$C$4,"_",IFERROR(VLOOKUP(B33,BAZA_LIBOR_WIBOR_KURS!$C$2:$F$145,2,FALSE),C32)) -> 0.00097 | D33: 0.01 | E33: 129.05505 | F33: 355.4264176 | G33: =IF(A33>$C$4,"_",$C$9-SUM($F$12:F33)) -> 140816.9163 | H33: =IF(A33>$C$4,"_",IFERROR(VLOOKUP(B33,BAZA_LIBOR_WIBOR_KURS!$C$2:$F$145,4,FALSE),H32)) -> 2.983728571 | I33: =IF(A33>$C$4,"_",IFERROR(VLOOKUP(B33,BAZA_LIBOR_WIBOR_KURS!$C$2:$F$145,3,FALSE),I32)) -> 0.03855238095 | J33: 0.02 | K33: 1445.561197 | L33: 1491.49 | M33: -45.92880275 | N33: =IF(A33>$C$4,"_",$C$3-SUM($M$12:M33)) -> 305719.4611
A34: 23 | B34: 2010-07-01 | C34: =IF(A34>$C$4,"_",IFERROR(VLOOKUP(B34,BAZA_LIBOR_WIBOR_KURS!$C$2:$F$145,2,FALSE),C33)) -> 0.00132 | D34: 0.01 | E34: 132.8372911 | F34: 353.9178634 | G34: =IF(A34>$C$4,"_",$C$9-SUM($F$12:F34)) -> 140462.9985 | H34: =IF(A34>$C$4,"_",IFERROR(VLOOKUP(B34,BAZA_LIBOR_WIBOR_KURS!$C$2:$F$145,4,FALSE),H33)) -> 3.028795455 | I34: =IF(A34>$C$4,"_",IFERROR(VLOOKUP(B34,BAZA_LIBOR_WIBOR_KURS!$C$2:$F$145,3,FALSE),I33)) -> 0.03835454545 | J34: 0.02 | K34: 1474.281799 | L34: 1486.68 | M34: -12.39820073 | N34: =IF(A34>$C$4,"_",$C$3-SUM($M$12:M34)) -> 305731.8593
A35: 24 | B35: 2010-08-01 | C35: =IF(A35>$C$4,"_",IFERROR(VLOOKUP(B35,BAZA_LIBOR_WIBOR_KURS!$C$2:$F$145,2,FALSE),C34)) -> 0.00164 | D35: 0.01 | E35: 136.2491085 | F35: 352.5848694 | G35: =IF(A35>$C$4,"_",$C$9-SUM($F$12:F35)) -> 140110.4136 | H35: =IF(A35>$C$4,"_",IFERROR(VLOOKUP(B35,BAZA_LIBOR_WIBOR_KURS!$C$2:$F$145,4,FALSE),H34)) -> 2.971559091 | I35: =IF(A35>$C$4,"_",IFERROR(VLOOKUP(B35,BAZA_LIBOR_WIBOR_KURS!$C$2:$F$145,3,FALSE),I34)) -> 0.03812272727 | J35: 0.02 | K35: 1452.599051 | L35: 1480.83 | M35: -28.23094899 | N35: =IF(A35>$C$4,"_",$C$3-SUM($M$12:M35)) -> 305760.0902
A36: 25 | B36: 2010-09-01 | C36: =IF(A36>$C$4,"_",IFERROR(VLOOKUP(B36,BAZA_LIBOR_WIBOR_KURS!$C$2:$F$145,2,FALSE),C35)) -> 0.00175 | D36: 0.01 | E36: 137.1914466 | F36: 352.3564096 | G36: =IF(A36>$C$4,"_",$C$9-SUM($F$12:F36)) -> 139758.0572 | H36: =IF(A36>$C$4,"_",IFERROR(VLOOKUP(B36,BAZA_LIBOR_WIBOR_KURS!$C$2:$F$145,4,FALSE),H35)) -> 3.022336364 | I36: =IF(A36>$C$4,"_",IFERROR(VLOOKUP(B36,BAZA_LIBOR_WIBOR_KURS!$C$2:$F$145,3,FALSE),I35)) -> 0.03821363636 | J36: 0.02 | K36: 1479.578288 | L36: 1483.28 | M36: -3.701712427 | N36: =IF(A36>$C$4,"_",$C$3-SUM($M$12:M36)) -> 305763.7919
A37: 26 | B37: 2010-10-01 | C37: =IF(A37>$C$4,"_",IFERROR(VLOOKUP(B37,BAZA_LIBOR_WIBOR_KURS!$C$2:$F$145,2,FALSE),C36)) -> 0.00174 | D37: 0.01 | E37: 136.7299659 | F37: 352.7531469 | G37: =IF(A37>$C$4,"_",$C$9-SUM($F$12:F37)) -> 139405.304 | H37: =IF(A37>$C$4,"_",IFERROR(VLOOKUP(B37,BAZA_LIBOR_WIBOR_KURS!$C$2:$F$145,4,FALSE),H36)) -> 2.937495238 | I37: =IF(A37>$C$4,"_",IFERROR(VLOOKUP(B37,BAZA_LIBOR_WIBOR_KURS!$C$2:$F$145,3,FALSE),I36)) -> 0.03832380952 | J37: 0.02 | K37: 1437.854313 | L37: 1486.11 | M37: -48.25568698 | N37: =IF(A37>$C$4,"_",$C$3-SUM($M$12:M37)) -> 305812.0476
A38: 27 | B38: 2010-11-01 | C38: =IF(A38>$C$4,"_",IFERROR(VLOOKUP(B38,BAZA_LIBOR_WIBOR_KURS!$C$2:$F$145,2,FALSE),C37)) -> 0.00169 | D38: 0.01 | E38: 135.8040003 | F38: 353.3563835 | G38: =IF(A38>$C$4,"_",$C$9-SUM($F$12:F38)) -> 139051.9476 | H38: =IF(A38>$C$4,"_",IFERROR(VLOOKUP(B38,BAZA_LIBOR_WIBOR_KURS!$C$2:$F$145,4,FALSE),H37)) -> 2.943415 | I38: =IF(A38>$C$4,"_",IFERROR(VLOOKUP(B38,BAZA_LIBOR_WIBOR_KURS!$C$2:$F$145,3,FALSE),I37)) -> 0.03855 | J38: 0.02 | K38: 1439.802011 | L38: 1492.11 | M38: -52.30798884 | N38: =IF(A38>$C$4,"_",$C$3-SUM($M$12:M38)) -> 305864.3556
A39: 28 | B39: 2010-12-01 | C39: =IF(A39>$C$4,"_",IFERROR(VLOOKUP(B39,BAZA_LIBOR_WIBOR_KURS!$C$2:$F$145,2,FALSE),C38)) -> 0.0017 | D39: 0.01 | E39: 135.575649 | F39: 353.6490883 | G39: =IF(A39>$C$4,"_",$C$9-SUM($F$12:F39)) -> 138698.2986 | H39: =IF(A39>$C$4,"_",IFERROR(VLOOKUP(B39,BAZA_LIBOR_WIBOR_KURS!$C$2:$F$145,4,FALSE),H38)) -> 3.120078261 | I39: =IF(A39>$C$4,"_",IFERROR(VLOOKUP(B39,BAZA_LIBOR_WIBOR_KURS!$C$2:$F$145,3,FALSE),I38)) -> 0.03915217391 | J39: 0.02 | K39: 1526.419468 | L39: 1507.71 | M39: 18.70946754 | N39: =IF(A39>$C$4,"_",$C$3-SUM($M$12:M39)) -> 305845.6461
A40: 29 | B40: 2011-01-01 | C40: =IF(A40>$C$4,"_",IFERROR(VLOOKUP(B40,BAZA_LIBOR_WIBOR_KURS!$C$2:$F$145,2,FALSE),C39)) -> 0.00169 | D40: 0.01 | E40: 135.1152592 | F40: 354.0453064 | G40: =IF(A40>$C$4,"_",$C$9-SUM($F$12:F40)) -> 138344.2533 | H40: =IF(A40>$C$4,"_",IFERROR(VLOOKUP(B40,BAZA_LIBOR_WIBOR_KURS!$C$2:$F$145,4,FALSE),H39)) -> 3.045505 | I40: =IF(A40>$C$4,"_",IFERROR(VLOOKUP(B40,BAZA_LIBOR_WIBOR_KURS!$C$2:$F$145,3,FALSE),I39)) -> 0.040105 | J40: 0.02 | K40: 1489.740948 | L40: 1531.9 | M40: -42.15905185 | N40: =IF(A40>$C$4,"_",$C$3-SUM($M$12:M40)) -> 305887.8052
A41: 30 | B41: 2011-02-01 | C41: =IF(A41>$C$4,"_",IFERROR(VLOOKUP(B41,BAZA_LIBOR_WIBOR_KURS!$C$2:$F$145,2,FALSE),C40)) -> 0.0017 | D41: 0.01 | E41: 134.8856469 | F41: 354.3389086 | G41: =IF(A41>$C$4,"_",$C$9-SUM($F$12:F41)) -> 137989.9143 | H41: =IF(A41>$C$4,"_",IFERROR(VLOOKUP(B41,BAZA_LIBOR_WIBOR_KURS!$C$2:$F$145,4,FALSE),H40)) -> 3.028785 | I41: =IF(A41>$C$4,"_",IFERROR(VLOOKUP(B41,BAZA_LIBOR_WIBOR_KURS!$C$2:$F$145,3,FALSE),I40)) -> 0.04114 | J41: 0.02 | K41: 1481.755995 | L41: 1558.5 | M41: -76.74400466 | N41: =IF(A41>$C$4,"_",$C$3-SUM($M$12:M41)) -> 305964.5492
A42: 31 | B42: 2011-03-01 | C42: =IF(A42>$C$4,"_",IFERROR(VLOOKUP(B42,BAZA_LIBOR_WIBOR_KURS!$C$2:$F$145,2,FALSE),C41)) -> 0.00178 | D42: 0.01 | E42: 135.4600992 | F42: 354.2751087 | G42: =IF(A42>$C$4,"_",$C$9-SUM($F$12:F42)) -> 137635.6392 | H42: =IF(A42>$C$4,"_",IFERROR(VLOOKUP(B42,BAZA_LIBOR_WIBOR_KURS!$C$2:$F$145,4,FALSE),H41)) -> 3.116013043 | I42: =IF(A42>$C$4,"_",IFERROR(VLOOKUP(B42,BAZA_LIBOR_WIBOR_KURS!$C$2:$F$145,3,FALSE),I41)) -> 0.04178695652 | J42: 0.02 | K42: 1526.021296 | L42: 1575.38 | M42: -49.35870404 | N42: =IF(A42>$C$4,"_",$C$3-SUM($M$12:M42)) -> 306013.9079
A43: 32 | B43: 2011-04-01 | C43: =IF(A43>$C$4,"_",IFERROR(VLOOKUP(B43,BAZA_LIBOR_WIBOR_KURS!$C$2:$F$145,2,FALSE),C42)) -> 0.00184 | D43: 0.01 | E43: 135.8004974 | F43: 354.3168264 | G43: =IF(A43>$C$4,"_",$C$9-SUM($F$12:F43)) -> 137281.3224 | H43: =IF(A43>$C$4,"_",IFERROR(VLOOKUP(B43,BAZA_LIBOR_WIBOR_KURS!$C$2:$F$145,4,FALSE),H42)) -> 3.06101 | I43: =IF(A43>$C$4,"_",IFERROR(VLOOKUP(B43,BAZA_LIBOR_WIBOR_KURS!$C$2:$F$145,3,FALSE),I42)) -> 0.042705 | J43: 0.02 | K43: 1500.254029 | L43: 1599.05 | M43: -98.7959707 | N43: =IF(A43>$C$4,"_",$C$3-SUM($M$12:M43)) -> 306112.7039
A44: 33 | B44: 2011-05-01 | C44: =IF(A44>$C$4,"_",IFERROR(VLOOKUP(B44,BAZA_LIBOR_WIBOR_KURS!$C$2:$F$145,2,FALSE),C43)) -> 0.00179 | D44: 0.01 | E44: 134.8788993 | F44: 354.9208917 | G44: =IF(A44>$C$4,"_",$C$9-SUM($F$12:F44)) -> 136926.4015 | H44: =IF(A44>$C$4,"_",IFERROR(VLOOKUP(B44,BAZA_LIBOR_WIBOR_KURS!$C$2:$F$145,4,FALSE),H43)) -> 3.144947619 | I44: =IF(A44>$C$4,"_",IFERROR(VLOOKUP(B44,BAZA_LIBOR_WIBOR_KURS!$C$2:$F$145,3,FALSE),I43)) -> 0.044 | J44: 0.02 | K44: 1540.394686 | L44: 1632.6 | M44: -92.20531362 | N44: =IF(A44>$C$4,"_",$C$3-SUM($M$12:M44)) -> 306204.9092
A45: 34 | B45: 2011-06-01 | C45: =IF(A45>$C$4,"_",IFERROR(VLOOKUP(B45,BAZA_LIBOR_WIBOR_KURS!$C$2:$F$145,2,FALSE),C44)) -> 0.00175 | D45: 0.01 | E45: 134.0737682 | F45: 355.4728174 | G45: =IF(A45>$C$4,"_",$C$9-SUM($F$12:F45)) -> 136570.9287 | H45: =IF(A45>$C$4,"_",IFERROR(VLOOKUP(B45,BAZA_LIBOR_WIBOR_KURS!$C$2:$F$145,4,FALSE),H44)) -> 3.279057143 | I45: =IF(A45>$C$4,"_",IFERROR(VLOOKUP(B45,BAZA_LIBOR_WIBOR_KURS!$C$2:$F$145,3,FALSE),I44)) -> 0.04610952381 | J45: 0.02 | K45: 1605.251228 | L45: 1686.92 | M45: -81.66877185 | N45: =IF(A45>$C$4,"_",$C$3-SUM($M$12:M45)) -> 306286.5779
A46: 35 | B46: 2011-07-01 | C46: =IF(A46>$C$4,"_",IFERROR(VLOOKUP(B46,BAZA_LIBOR_WIBOR_KURS!$C$2:$F$145,2,FALSE),C45)) -> 0.00175 | D46: 0.01 | E46: 133.725701 | F46: 355.8208845 | G46: =IF(A46>$C$4,"_",$C$9-SUM($F$12:F46)) -> 136215.1078 | H46: =IF(A46>$C$4,"_",IFERROR(VLOOKUP(B46,BAZA_LIBOR_WIBOR_KURS!$C$2:$F$145,4,FALSE),H45)) -> 3.391385714 | I46: =IF(A46>$C$4,"_",IFERROR(VLOOKUP(B46,BAZA_LIBOR_WIBOR_KURS!$C$2:$F$145,3,FALSE),I45)) -> 0.04700952381 | J46: 0.02 | K46: 1660.241297 | L46: 1710.34 | M46: -50.09870324 | N46: =IF(A46>$C$4,"_",$C$3-SUM($M$12:M46)) -> 306336.6766
A47: 36 | B47: 2011-08-01 | C47: =IF(A47>$C$4,"_",IFERROR(VLOOKUP(B47,BAZA_LIBOR_WIBOR_KURS!$C$2:$F$145,2,FALSE),C46)) -> 0.00058 | D47: 0.01 | E47: 120.0963201 | F47: 362.1225268 | G47: =IF(A47>$C$4,"_",$C$9-SUM($F$12:F47)) -> 135852.9853 | H47: =IF(A47>$C$4,"_",IFERROR(VLOOKUP(B47,BAZA_LIBOR_WIBOR_KURS!$C$2:$F$145,4,FALSE),H46)) -> 3.677213636 | I47: =IF(A47>$C$4,"_",IFERROR(VLOOKUP(B47,BAZA_LIBOR_WIBOR_KURS!$C$2:$F$145,3,FALSE),I46)) -> 0.04716363636 | J47: 0.02 | K47: 1773.221719 | L47: 1714.56 | M47: 58.66171938 | N47: =IF(A47>$C$4,"_",$C$3-SUM($M$12:M47)) -> 306278.0149
A48: 37 | B48: 2011-09-01 | C48: =IF(A48>$C$4,"_",IFERROR(VLOOKUP(B48,BAZA_LIBOR_WIBOR_KURS!$C$2:$F$145,2,FALSE),C47)) -> 9e-05 | D48: 0.01 | E48: 114.2297185 | F48: 364.9497462 | G48: =IF(A48>$C$4,"_",$C$9-SUM($F$12:F48)) -> 135488.0355 | H48: =IF(A48>$C$4,"_",IFERROR(VLOOKUP(B48,BAZA_LIBOR_WIBOR_KURS!$C$2:$F$145,4,FALSE),H47)) -> 3.610309091 | I48: =IF(A48>$C$4,"_",IFERROR(VLOOKUP(B48,BAZA_LIBOR_WIBOR_KURS!$C$2:$F$145,3,FALSE),I47)) -> 0.04745909091 | J48: 0.02 | K48: 1729.985977 | L48: 1721.77 | M48: 8.215977446 | N48: =IF(A48>$C$4,"_",$C$3-SUM($M$12:M48)) -> 306269.7989
A49: 38 | B49: 2011-10-01 | C49: =IF(A49>$C$4,"_",IFERROR(VLOOKUP(B49,BAZA_LIBOR_WIBOR_KURS!$C$2:$F$145,2,FALSE),C48)) -> 0.00037 | D49: 0.01 | E49: 117.084244 | F49: 363.8254342 | G49: =IF(A49>$C$4,"_",$C$9-SUM($F$12:F49)) -> 135124.2101 | H49: =IF(A49>$C$4,"_",IFERROR(VLOOKUP(B49,BAZA_LIBOR_WIBOR_KURS!$C$2:$F$145,4,FALSE),H48)) -> 3.541433333 | I49: =IF(A49>$C$4,"_",IFERROR(VLOOKUP(B49,BAZA_LIBOR_WIBOR_KURS!$C$2:$F$145,3,FALSE),I48)) -> 0.04802380952 | J49: 0.02 | K49: 1703.109565 | L49: 1736.14 | M49: -33.03043523 | N49: =IF(A49>$C$4,"_",$C$3-SUM($M$12:M49)) -> 306302.8294
A50: 39 | B50: 2011-11-01 | C50: =IF(A50>$C$4,"_",IFERROR(VLOOKUP(B50,BAZA_LIBOR_WIBOR_KURS!$C$2:$F$145,2,FALSE),C49)) -> 0.00047 | D50: 0.01 | E50: 117.8958733 | F50: 363.630874 | G50: =IF(A50>$C$4,"_",$C$9-SUM($F$12:F50)) -> 134760.5792 | H50: =IF(A50>$C$4,"_",IFERROR(VLOOKUP(B50,BAZA_LIBOR_WIBOR_KURS!$C$2:$F$145,4,FALSE),H49)) -> 3.59795 | I50: =IF(A50>$C$4,"_",IFERROR(VLOOKUP(B50,BAZA_LIBOR_WIBOR_KURS!$C$2:$F$145,3,FALSE),I49)) -> 0.049395 | J50: 0.02 | K50: 1732.509161 | L50: 1771.32 | M50: -38.81083945 | N50: =IF(A50>$C$4,"_",$C$3-SUM($M$12:M50)) -> 306341.6402
A51: 40 | B51: 2011-12-01 | C51: =IF(A51>$C$4,"_",IFERROR(VLOOKUP(B51,BAZA_LIBOR_WIBOR_KURS!$C$2:$F$145,2,FALSE),C50)) -> 0.00052 | D51: 0.01 | E51: 118.1401078 | F51: 363.694452 | G51: =IF(A51>$C$4,"_",$C$9-SUM($F$12:F51)) -> 134396.8848 | H51: =IF(A51>$C$4,"_",IFERROR(VLOOKUP(B51,BAZA_LIBOR_WIBOR_KURS!$C$2:$F$145,4,FALSE),H50)) -> 3.646366667 | I51: =IF(A51>$C$4,"_",IFERROR(VLOOKUP(B51,BAZA_LIBOR_WIBOR_KURS!$C$2:$F$145,3,FALSE),I50)) -> 0.04982380952 | J51: 0.02 | K51: 1756.945478 | L51: 1782.5 | M51: -25.5545224 | N51: =IF(A51>$C$4,"_",$C$3-SUM($M$12:M51)) -> 306367.1947
A52: 41 | B52: 2012-01-01 | C52: =IF(A52>$C$4,"_",IFERROR(VLOOKUP(B52,BAZA_LIBOR_WIBOR_KURS!$C$2:$F$145,2,FALSE),C51)) -> 0.0006 | D52: 0.01 | E52: 118.7172482 | F52: 363.6086136 | G52: =IF(A52>$C$4,"_",$C$9-SUM($F$12:F52)) -> 134033.2762 | H52: =IF(A52>$C$4,"_",IFERROR(VLOOKUP(B52,BAZA_LIBOR_WIBOR_KURS!$C$2:$F$145,4,FALSE),H51)) -> 3.611480952 | I52: =IF(A52>$C$4,"_",IFERROR(VLOOKUP(B52,BAZA_LIBOR_WIBOR_KURS!$C$2:$F$145,3,FALSE),I51)) -> 0.04985714286 | J52: 0.02 | K52: 1741.910663 | L52: 1783.49 | M52: -41.57933711 | N52: =IF(A52>$C$4,"_",$C$3-SUM($M$12:M52)) -> 306408.7741
A53: 42 | B53: 2012-02-01 | C53: =IF(A53>$C$4,"_",IFERROR(VLOOKUP(B53,BAZA_LIBOR_WIBOR_KURS!$C$2:$F$145,2,FALSE),C52)) -> 0.00082 | D53: 0.01 | E53: 120.8533373 | F53: 362.8212225 | G53: =IF(A53>$C$4,"_",$C$9-SUM($F$12:F53)) -> 133670.4549 | H53: =IF(A53>$C$4,"_",IFERROR(VLOOKUP(B53,BAZA_LIBOR_WIBOR_KURS!$C$2:$F$145,4,FALSE),H52)) -> 3.465052381 | I53: =IF(A53>$C$4,"_",IFERROR(VLOOKUP(B53,BAZA_LIBOR_WIBOR_KURS!$C$2:$F$145,3,FALSE),I52)) -> 0.04974761905 | J53: 0.02 | K53: 1675.957685 | L53: 1780.94 | M53: -104.9823149 | N53: =IF(A53>$C$4,"_",$C$3-SUM($M$12:M53)) -> 306513.7564
A54: 43 | B54: 2012-03-01 | C54: =IF(A54>$C$4,"_",IFERROR(VLOOKUP(B54,BAZA_LIBOR_WIBOR_KURS!$C$2:$F$145,2,FALSE),C53)) -> 0.001 | D54: 0.01 | E54: 122.5312504 | F54: 362.2452711 | G54: =IF(A54>$C$4,"_",$C$9-SUM($F$12:F54)) -> 133308.2097 | H54: =IF(A54>$C$4,"_",IFERROR(VLOOKUP(B54,BAZA_LIBOR_WIBOR_KURS!$C$2:$F$145,4,FALSE),H53)) -> 3.430236364 | I54: =IF(A54>$C$4,"_",IFERROR(VLOOKUP(B54,BAZA_LIBOR_WIBOR_KURS!$C$2:$F$145,3,FALSE),I53)) -> 0.04947727273 | J54: 0.02 | K54: 1662.898052 | L54: 1774.64 | M54: -111.741948 | N54: =IF(A54>$C$4,"_",$C$3-SUM($M$12:M54)) -> 306625.4983
A55: 44 | B55: 2012-04-01 | C55: =IF(A55>$C$4,"_",IFERROR(VLOOKUP(B55,BAZA_LIBOR_WIBOR_KURS!$C$2:$F$145,2,FALSE),C54)) -> 0.00112 | D55: 0.01 | E55: 123.5322743 | F55: 361.9775756 | G55: =IF(A55>$C$4,"_",$C$9-SUM($F$12:F55)) -> 132946.2321 | H55: =IF(A55>$C$4,"_",IFERROR(VLOOKUP(B55,BAZA_LIBOR_WIBOR_KURS!$C$2:$F$145,4,FALSE),H54)) -> 3.47455 | I55: =IF(A55>$C$4,"_",IFERROR(VLOOKUP(B55,BAZA_LIBOR_WIBOR_KURS!$C$2:$F$145,3,FALSE),I54)) -> 0.049435 | J55: 0.02 | K55: 1686.928249 | L55: 1774.21 | M55: -87.28175113 | N55: =IF(A55>$C$4,"_",$C$3-SUM($M$12:M55)) -> 306712.7801
A56: 45 | B56: 2012-05-01 | C56: =IF(A56>$C$4,"_",IFERROR(VLOOKUP(B56,BAZA_LIBOR_WIBOR_KURS!$C$2:$F$145,2,FALSE),C55)) -> 0.00111 | D56: 0.01 | E56: 123.0860532 | F56: 362.3628417 | G56: =IF(A56>$C$4,"_",$C$9-SUM($F$12:F56)) -> 132583.8693 | H56: =IF(A56>$C$4,"_",IFERROR(VLOOKUP(B56,BAZA_LIBOR_WIBOR_KURS!$C$2:$F$145,4,FALSE),H55)) -> 3.580266667 | I56: =IF(A56>$C$4,"_",IFERROR(VLOOKUP(B56,BAZA_LIBOR_WIBOR_KURS!$C$2:$F$145,3,FALSE),I55)) -> 0.05047142857 | J56: 0.02 | K56: 1738.036497 | L56: 1801.21 | M56: -63.1735031 | N56: =IF(A56>$C$4,"_",$C$3-SUM($M$12:M56)) -> 306775.9536
A57: 46 | B57: 2012-06-01 | C57: =IF(A57>$C$4,"_",IFERROR(VLOOKUP(B57,BAZA_LIBOR_WIBOR_KURS!$C$2:$F$145,2,FALSE),C56)) -> 0.00093 | D57: 0.01 | E57: 120.7618076 | F57: 363.5940017 | G57: =IF(A57>$C$4,"_",$C$9-SUM($F$12:F57)) -> 132220.2753 | H57: =IF(A57>$C$4,"_",IFERROR(VLOOKUP(B57,BAZA_LIBOR_WIBOR_KURS!$C$2:$F$145,4,FALSE),H56)) -> 3.582365 | I57: =IF(A57>$C$4,"_",IFERROR(VLOOKUP(B57,BAZA_LIBOR_WIBOR_KURS!$C$2:$F$145,3,FALSE),I56)) -> 0.0512 | J57: 0.02 | K57: 1735.139299 | L57: 1820.2 | M57: -85.06070113 | N57: =IF(A57>$C$4,"_",$C$3-SUM($M$12:M57)) -> 306861.0143
A58: 47 | B58: 2012-07-01 | C58: =IF(A58>$C$4,"_",IFERROR(VLOOKUP(B58,BAZA_LIBOR_WIBOR_KURS!$C$2:$F$145,2,FALSE),C57)) -> 0.00073 | D58: 0.01 | E58: 118.2269628 | F58: 364.9197695 | G58: =IF(A58>$C$4,"_",$C$9-SUM($F$12:F58)) -> 131855.3555 | H58: =IF(A58>$C$4,"_",IFERROR(VLOOKUP(B58,BAZA_LIBOR_WIBOR_KURS!$C$2:$F$145,4,FALSE),H57)) -> 3.487627273 | I58: =IF(A58>$C$4,"_",IFERROR(VLOOKUP(B58,BAZA_LIBOR_WIBOR_KURS!$C$2:$F$145,3,FALSE),I57)) -> 0.05126818182 | J58: 0.02 | K58: 1685.03572 | L58: 1822.45 | M58: -137.4142798 | N58: =IF(A58>$C$4,"_",$C$3-SUM($M$12:M58)) -> 306998.4286
A59: 48 | B59: 2012-08-01 | C59: =IF(A59>$C$4,"_",IFERROR(VLOOKUP(B59,BAZA_LIBOR_WIBOR_KURS!$C$2:$F$145,2,FALSE),C58)) -> 0.00051 | D59: 0.01 | E59: 115.4833155 | F59: 366.3396375 | G59: =IF(A59>$C$4,"_",$C$9-SUM($F$12:F59)) -> 131489.0158 | H59: =IF(A59>$C$4,"_",IFERROR(VLOOKUP(B59,BAZA_LIBOR_WIBOR_KURS!$C$2:$F$145,4,FALSE),H58)) -> 3.408086364 | I59: =IF(A59>$C$4,"_",IFERROR(VLOOKUP(B59,BAZA_LIBOR_WIBOR_KURS!$C$2:$F$145,3,FALSE),I58)) -> 0.05101818182 | J59: 0.02 | K59: 1642.094236 | L59: 1816.87 | M59: -174.775764 | N59: =IF(A59>$C$4,"_",$C$3-SUM($M$12:M59)) -> 307173.2043
A60: 49 | B60: 2012-09-01 | C60: =IF(A60>$C$4,"_",IFERROR(VLOOKUP(B60,BAZA_LIBOR_WIBOR_KURS!$C$2:$F$145,2,FALSE),C59)) -> 0.00046 | D60: 0.01 | E60: 114.6145921 | F60: 366.9087329 | G60: =IF(A60>$C$4,"_",$C$9-SUM($F$12:F60)) -> 131122.1071 | H60: =IF(A60>$C$4,"_",IFERROR(VLOOKUP(B60,BAZA_LIBOR_WIBOR_KURS!$C$2:$F$145,4,FALSE),H59)) -> 3.420915 | I60: =IF(A60>$C$4,"_",IFERROR(VLOOKUP(B60,BAZA_LIBOR_WIBOR_KURS!$C$2:$F$145,3,FALSE),I59)) -> 0.04951 | J60: 0.02 | K60: 1647.250366 | L60: 1779.3 | M60: -132.0496345 | N60: =IF(A60>$C$4,"_",$C$3-SUM($M$12:M60)) -> 307305.254
A61: 50 | B61: 2012-10-01 | C61: =IF(A61>$C$4,"_",IFERROR(VLOOKUP(B61,BAZA_LIBOR_WIBOR_KURS!$C$2:$F$145,2,FALSE),C60)) -> 0.00037 | D61: 0.01 | E61: 113.3113542 | F61: 367.6745771 | G61: =IF(A61>$C$4,"_",$C$9-SUM($F$12:F61)) -> 130754.4325 | H61: =IF(A61>$C$4,"_",IFERROR(VLOOKUP(B61,BAZA_LIBOR_WIBOR_KURS!$C$2:$F$145,4,FALSE),H60)) -> 3.396634783 | I61: =IF(A61>$C$4,"_",IFERROR(VLOOKUP(B61,BAZA_LIBOR_WIBOR_KURS!$C$2:$F$145,3,FALSE),I60)) -> 0.04823043478 | J61: 0.02 | K61: 1633.733544 | L61: 1747.3 | M61: -113.5664555 | N61: =IF(A61>$C$4,"_",$C$3-SUM($M$12:M61)) -> 307418.8204
A62: 51 | B62: 2012-11-01 | C62: =IF(A62>$C$4,"_",IFERROR(VLOOKUP(B62,BAZA_LIBOR_WIBOR_KURS!$C$2:$F$145,2,FALSE),C61)) -> 0.00031 | D62: 0.01 | E62: 112.33985 | F62: 368.2891233 | G62: =IF(A62>$C$4,"_",$C$9-SUM($F$12:F62)) -> 130386.1434 | H62: =IF(A62>$C$4,"_",IFERROR(VLOOKUP(B62,BAZA_LIBOR_WIBOR_KURS!$C$2:$F$145,4,FALSE),H61)) -> 3.430614286 | I62: =IF(A62>$C$4,"_",IFERROR(VLOOKUP(B62,BAZA_LIBOR_WIBOR_KURS!$C$2:$F$145,3,FALSE),I61)) -> 0.0461952381 | J62: 0.02 | K62: 1648.852622 | L62: 1695.81 | M62: -46.95737811 | N62: =IF(A62>$C$4,"_",$C$3-SUM($M$12:M62)) -> 307465.7778
A63: 52 | B63: 2012-12-01 | C63: =IF(A63>$C$4,"_",IFERROR(VLOOKUP(B63,BAZA_LIBOR_WIBOR_KURS!$C$2:$F$145,2,FALSE),C62)) -> 0.00015 | D63: 0.01 | E63: 110.2849463 | F63: 369.3958725 | G63: =IF(A63>$C$4,"_",$C$9-SUM($F$12:F63)) -> 130016.7475 | H63: =IF(A63>$C$4,"_",IFERROR(VLOOKUP(B63,BAZA_LIBOR_WIBOR_KURS!$C$2:$F$145,4,FALSE),H62)) -> 3.387452632 | I63: =IF(A63>$C$4,"_",IFERROR(VLOOKUP(B63,BAZA_LIBOR_WIBOR_KURS!$C$2:$F$145,3,FALSE),I62)) -> 0.04257894737 | J63: 0.02 | K63: 1624.896052 | L63: 1603.41 | M63: 21.4860519 | N63: =IF(A63>$C$4,"_",$C$3-SUM($M$12:M63)) -> 307444.2918
A64: 53 | B64: 2013-01-01 | C64: =IF(A64>$C$4,"_",IFERROR(VLOOKUP(B64,BAZA_LIBOR_WIBOR_KURS!$C$2:$F$145,2,FALSE),C63)) -> 0.00017 | D64: 0.01 | E64: 110.1891935 | F64: 369.609715 | G64: =IF(A64>$C$4,"_",$C$9-SUM($F$12:F64)) -> 129647.1378 | H64: =IF(A64>$C$4,"_",IFERROR(VLOOKUP(B64,BAZA_LIBOR_WIBOR_KURS!$C$2:$F$145,4,FALSE),H63)) -> 3.368563636 | I64: =IF(A64>$C$4,"_",IFERROR(VLOOKUP(B64,BAZA_LIBOR_WIBOR_KURS!$C$2:$F$145,3,FALSE),I63)) -> 0.04029545455 | J64: 0.02 | K64: 1616.233156 | L64: 1544.79 | M64: 71.44315606 | N64: =IF(A64>$C$4,"_",$C$3-SUM($M$12:M64)) -> 307372.8486
A65: 54 | B65: 2013-02-01 | C65: =IF(A65>$C$4,"_",IFERROR(VLOOKUP(B65,BAZA_LIBOR_WIBOR_KURS!$C$2:$F$145,2,FALSE),C64)) -> 0.00024 | D65: 0.01 | E65: 110.6322243 | F65: 369.5788655 | G65: =IF(A65>$C$4,"_",$C$9-SUM($F$12:F65)) -> 129277.559 | H65: =IF(A65>$C$4,"_",IFERROR(VLOOKUP(B65,BAZA_LIBOR_WIBOR_KURS!$C$2:$F$145,4,FALSE),H64)) -> 3.39208 | I65: =IF(A65>$C$4,"_",IFERROR(VLOOKUP(B65,BAZA_LIBOR_WIBOR_KURS!$C$2:$F$145,3,FALSE),I64)) -> 0.03804761905 | J65: 0.02 | K65: 1628.914433 | L65: 1486.86 | M65: 142.0544333 | N65: =IF(A65>$C$4,"_",$C$3-SUM($M$12:M65)) -> 307230.7942
A66: 55 | B66: 2013-03-01 | C66: =IF(A66>$C$4,"_",IFERROR(VLOOKUP(B66,BAZA_LIBOR_WIBOR_KURS!$C$2:$F$145,2,FALSE),C65)) -> 0.00022 | D66: 0.01 | E66: 110.1013877 | F66: 369.9922781 | G66: =IF(A66>$C$4,"_",$C$9-SUM($F$12:F66)) -> 128907.5667 | H66: =IF(A66>$C$4,"_",IFERROR(VLOOKUP(B66,BAZA_LIBOR_WIBOR_KURS!$C$2:$F$145,4,FALSE),H65)) -> 3.388528571 | I66: =IF(A66>$C$4,"_",IFERROR(VLOOKUP(B66,BAZA_LIBOR_WIBOR_KURS!$C$2:$F$145,3,FALSE),I65)) -> 0.03475238095 | J66: 0.02 | K66: 1626.811104 | L66: 1401.8 | M66: 225.0111037 | N66: =IF(A66>$C$4,"_",$C$3-SUM($M$12:M66)) -> 307005.7831
A67: 56 | B67: 2013-04-01 | C67: =IF(A67>$C$4,"_",IFERROR(VLOOKUP(B67,BAZA_LIBOR_WIBOR_KURS!$C$2:$F$145,2,FALSE),C66)) -> 0.0002 | D67: 0.01 | E67: 109.5714317 | F67: 370.4051935 | G67: =IF(A67>$C$4,"_",$C$9-SUM($F$12:F67)) -> 128537.1615 | H67: =IF(A67>$C$4,"_",IFERROR(VLOOKUP(B67,BAZA_LIBOR_WIBOR_KURS!$C$2:$F$145,4,FALSE),H66)) -> 3.392185714 | I67: =IF(A67>$C$4,"_",IFERROR(VLOOKUP(B67,BAZA_LIBOR_WIBOR_KURS!$C$2:$F$145,3,FALSE),I66)) -> 0.03285238095 | J67: 0.02 | K67: 1628.169851 | L67: 1352.17 | M67: 275.9998513 | N67: =IF(A67>$C$4,"_",$C$3-SUM($M$12:M67)) -> 306729.7832
A68: 57 | B68: 2013-05-01 | C68: =IF(A68>$C$4,"_",IFERROR(VLOOKUP(B68,BAZA_LIBOR_WIBOR_KURS!$C$2:$F$145,2,FALSE),C67)) -> 0.00018 | D68: 0.01 | E68: 109.0423587 | F68: 370.8176092 | G68: =IF(A68>$C$4,"_",$C$9-SUM($F$12:F68)) -> 128166.3439 | H68: =IF(A68>$C$4,"_",IFERROR(VLOOKUP(B68,BAZA_LIBOR_WIBOR_KURS!$C$2:$F$145,4,FALSE),H67)) -> 3.36413 | I68: =IF(A68>$C$4,"_",IFERROR(VLOOKUP(B68,BAZA_LIBOR_WIBOR_KURS!$C$2:$F$145,3,FALSE),I67)) -> 0.02863 | J68: 0.02 | K68: 1614.311314 | L68: 1243.02 | M68: 371.2913137 | N68: =IF(A68>$C$4,"_",$C$3-SUM($M$12:M68)) -> 306358.4919
A69: 58 | B69: 2013-06-01 | C69: =IF(A69>$C$4,"_",IFERROR(VLOOKUP(B69,BAZA_LIBOR_WIBOR_KURS!$C$2:$F$145,2,FALSE),C68)) -> 0.00018 | D69: 0.01 | E69: 108.7277817 | F69: 371.1321861 | G69: =IF(A69>$C$4,"_",$C$9-SUM($F$12:F69)) -> 127795.2117 | H69: =IF(A69>$C$4,"_",IFERROR(VLOOKUP(B69,BAZA_LIBOR_WIBOR_KURS!$C$2:$F$145,4,FALSE),H68)) -> 3.474505 | I69: =IF(A69>$C$4,"_",IFERROR(VLOOKUP(B69,BAZA_LIBOR_WIBOR_KURS!$C$2:$F$145,3,FALSE),I68)) -> 0.027445 | J69: 0.02 | K69: 1667.275858 | L69: 1211.26 | M69: 456.0158577 | N69: =IF(A69>$C$4,"_",$C$3-SUM($M$12:M69)) -> 305902.476
A70: 59 | B70: 2013-07-01 | C70: =IF(A70>$C$4,"_",IFERROR(VLOOKUP(B70,BAZA_LIBOR_WIBOR_KURS!$C$2:$F$145,2,FALSE),C69)) -> 0.0002 | D70: 0.01 | E70: 108.6259299 | F70: 371.3499644 | G70: =IF(A70>$C$4,"_",$C$9-SUM($F$12:F70)) -> 127423.8617 | H70: =IF(A70>$C$4,"_",IFERROR(VLOOKUP(B70,BAZA_LIBOR_WIBOR_KURS!$C$2:$F$145,4,FALSE),H69)) -> 3.458934783 | I70: =IF(A70>$C$4,"_",IFERROR(VLOOKUP(B70,BAZA_LIBOR_WIBOR_KURS!$C$2:$F$145,3,FALSE),I69)) -> 0.02697391304 | J70: 0.02 | K70: 1660.205316 | L70: 1197.45 | M70: 462.7553157 | N70: =IF(A70>$C$4,"_",$C$3-SUM($M$12:M70)) -> 305439.7207
A71: 60 | B71: 2013-08-01 | C71: =IF(A71>$C$4,"_",IFERROR(VLOOKUP(B71,BAZA_LIBOR_WIBOR_KURS!$C$2:$F$145,2,FALSE),C70)) -> 0.00018 | D71: 0.01 | E71: 108.0979094 | F71: 371.762424 | G71: =IF(A71>$C$4,"_",$C$9-SUM($F$12:F71)) -> 127052.0993 | H71: =IF(A71>$C$4,"_",IFERROR(VLOOKUP(B71,BAZA_LIBOR_WIBOR_KURS!$C$2:$F$145,4,FALSE),H70)) -> 3.430614286 | I71: =IF(A71>$C$4,"_",IFERROR(VLOOKUP(B71,BAZA_LIBOR_WIBOR_KURS!$C$2:$F$145,3,FALSE),I70)) -> 0.02701428571 | J71: 0.02 | K71: 1646.215715 | L71: 1196.67 | M71: 449.5457149 | N71: =IF(A71>$C$4,"_",$C$3-SUM($M$12:M71)) -> 304990.175
A72: 61 | B72: 2013-09-01 | C72: =IF(A72>$C$4,"_",IFERROR(VLOOKUP(B72,BAZA_LIBOR_WIBOR_KURS!$C$2:$F$145,2,FALSE),C71)) -> 0.0002 | D72: 0.01 | E72: 107.9942844 | F72: 371.9812442 | G72: =IF(A72>$C$4,"_",$C$9-SUM($F$12:F72)) -> 126680.1181 | H72: =IF(A72>$C$4,"_",IFERROR(VLOOKUP(B72,BAZA_LIBOR_WIBOR_KURS!$C$2:$F$145,4,FALSE),H71)) -> 3.433409524 | I72: =IF(A72>$C$4,"_",IFERROR(VLOOKUP(B72,BAZA_LIBOR_WIBOR_KURS!$C$2:$F$145,3,FALSE),I71)) -> 0.02690952381 | J72: 0.02 | K72: 1647.952551 | L72: 1192.25 | M72: 455.702551 | N72: =IF(A72>$C$4,"_",$C$3-SUM($M$12:M72)) -> 304534.4725
A73: 62 | B73: 2013-10-01 | C73: =IF(A73>$C$4,"_",IFERROR(VLOOKUP(B73,BAZA_LIBOR_WIBOR_KURS!$C$2:$F$145,2,FALSE),C72)) -> 0.0002 | D73: 0.01 | E73: 107.6781004 | F73: 372.2974282 | G73: =IF(A73>$C$4,"_",$C$9-SUM($F$12:F73)) -> 126307.8206 | H73: =IF(A73>$C$4,"_",IFERROR(VLOOKUP(B73,BAZA_LIBOR_WIBOR_KURS!$C$2:$F$145,4,FALSE),H72)) -> 3.403413043 | I73: =IF(A73>$C$4,"_",IFERROR(VLOOKUP(B73,BAZA_LIBOR_WIBOR_KURS!$C$2:$F$145,3,FALSE),I72)) -> 0.02670869565 | J73: 0.02 | K73: 1633.554975 | L73: 1185.37 | M73: 448.1849745 | N73: =IF(A73>$C$4,"_",$C$3-SUM($M$12:M73)) -> 304086.2875
A74: 63 | B74: 2013-11-01 | C74: =IF(A74>$C$4,"_",IFERROR(VLOOKUP(B74,BAZA_LIBOR_WIBOR_KURS!$C$2:$F$145,2,FALSE),C73)) -> 0.0002 | D74: 0.01 | E74: 107.3616475 | F74: 372.613881 | G74: =IF(A74>$C$4,"_",$C$9-SUM($F$12:F74)) -> 125935.2068 | H74: =IF(A74>$C$4,"_",IFERROR(VLOOKUP(B74,BAZA_LIBOR_WIBOR_KURS!$C$2:$F$145,4,FALSE),H73)) -> 3.400884211 | I74: =IF(A74>$C$4,"_",IFERROR(VLOOKUP(B74,BAZA_LIBOR_WIBOR_KURS!$C$2:$F$145,3,FALSE),I73)) -> 0.02653684211 | J74: 0.02 | K74: 1632.341197 | L74: 1179.27 | M74: 453.0711966 | N74: =IF(A74>$C$4,"_",$C$3-SUM($M$12:M74)) -> 303633.2163
A75: 64 | B75: 2013-12-01 | C75: =IF(A75>$C$4,"_",IFERROR(VLOOKUP(B75,BAZA_LIBOR_WIBOR_KURS!$C$2:$F$145,2,FALSE),C74)) -> 0.0002 | D75: 0.01 | E75: 107.0449257 | F75: 372.9306028 | G75: =IF(A75>$C$4,"_",$C$9-SUM($F$12:F75)) -> 125562.2762 | H75: =IF(A75>$C$4,"_",IFERROR(VLOOKUP(B75,BAZA_LIBOR_WIBOR_KURS!$C$2:$F$145,4,FALSE),H74)) -> 3.41053 | I75: =IF(A75>$C$4,"_",IFERROR(VLOOKUP(B75,BAZA_LIBOR_WIBOR_KURS!$C$2:$F$145,3,FALSE),I74)) -> 0.02671 | J75: 0.02 | K75: 1636.970939 | L75: 1181.89 | M75: 455.0809395 | N75: =IF(A75>$C$4,"_",$C$3-SUM($M$12:M75)) -> 303178.1354
A76: 65 | B76: 2014-01-01 | C76: =IF(A76>$C$4,"_",IFERROR(VLOOKUP(B76,BAZA_LIBOR_WIBOR_KURS!$C$2:$F$145,2,FALSE),C75)) -> 0.00022 | D76: 0.01 | E76: 106.9372052 | F76: 373.1520719 | G76: =IF(A76>$C$4,"_",$C$9-SUM($F$12:F76)) -> 125189.1241 | H76: =IF(A76>$C$4,"_",IFERROR(VLOOKUP(B76,BAZA_LIBOR_WIBOR_KURS!$C$2:$F$145,4,FALSE),H75)) -> 3.394814286 | I76: =IF(A76>$C$4,"_",IFERROR(VLOOKUP(B76,BAZA_LIBOR_WIBOR_KURS!$C$2:$F$145,3,FALSE),I75)) -> 0.0270047619 | J76: 0.02 | K76: =IF(A76>$C$4,"_",IF(B76>$F$5,0,H76*(E76+F76))) -> 1629.813936 | L76: 1187.57 | M76: 442.2439364 | N76: =IF(A76>$C$4,"_",$C$3-SUM($M$12:M76)) -> 302735.8914
A77: 66 | B77: =IF(A77>$C$4,"_",DATE(YEAR(B76),MONTH(B76)+1,1)) -> 2014-02-01 | C77: =IF(A77>$C$4,"_",IFERROR(VLOOKUP(B77,BAZA_LIBOR_WIBOR_KURS!$C$2:$F$145,2,FALSE),C76)) -> 0.00018 | D77: =IF(A77>$C$4,"_",D76) -> 0.01 | E77: =IF(A77>$C$4,"_",IPMT((C77+D77)/12,1,$C$4-A76,-G76)) -> 106.2021069 | F77: =IF(A77>$C$4,"_",PPMT((C77+D77)/12,1,$C$4-A76,-G76)) -> 373.6604226 | G77: =IF(A77>$C$4,"_",$C$9-SUM($F$12:F77)) -> 124815.4637 | H77: =IF(A77>$C$4,"_",IFERROR(VLOOKUP(B77,BAZA_LIBOR_WIBOR_KURS!$C$2:$F$145,4,FALSE),H76)) -> 3.418755 | I77: =IF(A77>$C$4,"_",IFERROR(VLOOKUP(B77,BAZA_LIBOR_WIBOR_KURS!$C$2:$F$145,3,FALSE),I76)) -> 0.0271 | J77: =IF(A77>$C$4,"_",J76) -> 0.02 | K77: 1640.532422 | L77: =IF(A77>$C$4,"_",IF(N76<0,0,ROUND(N76*(I77+J77)/12,2))) -> 1188.24 | M77: =IFERROR(K77-L77,"_") -> 452.292422 | N77: =IF(A77>$C$4,"_",$C$3-SUM($M$12:M77)) -> 302283.599
A78: =A77+1 -> 67 | B78: 2014-03-01 | C78: =IF(A78>$C$4,"_",IFERROR(VLOOKUP(B78,BAZA_LIBOR_WIBOR_KURS!$C$2:$F$145,2,FALSE),C77)) -> 0.00021 | D78: 0.01 | E78: 106.197157 | F78: 373.8348772 | G78: =IF(A78>$C$4,"_",$C$9-SUM($F$12:F78)) -> 124441.6288 | H78: =IF(A78>$C$4,"_",IFERROR(VLOOKUP(B78,BAZA_LIBOR_WIBOR_KURS!$C$2:$F$145,4,FALSE),H77)) -> 3.449533333 | I78: =IF(A78>$C$4,"_",IFERROR(VLOOKUP(B78,BAZA_LIBOR_WIBOR_KURS!$C$2:$F$145,3,FALSE),I77)) -> 0.0271 | J78: 0.02 | K78: 1655.886503 | L78: 1186.46 | M78: 469.426503 | N78: =IF(A78>$C$4,"_",$C$3-SUM($M$12:M78)) -> 301814.1725
A79: 68 | B79: 2014-04-01 | C79: =IF(A79>$C$4,"_",IFERROR(VLOOKUP(B79,BAZA_LIBOR_WIBOR_KURS!$C$2:$F$145,2,FALSE),C78)) -> 0.00017 | D79: 0.01 | E79: 105.4642804 | F79: 374.3424887 | G79: =IF(A79>$C$4,"_",$C$9-SUM($F$12:F79)) -> 124067.2863 | H79: =IF(A79>$C$4,"_",IFERROR(VLOOKUP(B79,BAZA_LIBOR_WIBOR_KURS!$C$2:$F$145,4,FALSE),H78)) -> 3.43292381 | I79: =IF(A79>$C$4,"_",IFERROR(VLOOKUP(B79,BAZA_LIBOR_WIBOR_KURS!$C$2:$F$145,3,FALSE),I78)) -> 0.02719047619 | J79: 0.02 | K79: 1647.140082 | L79: 1186.9 | M79: 460.2400817 | N79: =IF(A79>$C$4,"_",$C$3-SUM($M$12:M79)) -> 301353.9324
A80: 69 | B80: 2014-05-01 | C80: =IF(A80>$C$4,"_",IFERROR(VLOOKUP(B80,BAZA_LIBOR_WIBOR_KURS!$C$2:$F$145,2,FALSE),C79)) -> 0.00016 | D80: 0.01 | E80: 105.0436357 | F80: 374.7070109 | G80: =IF(A80>$C$4,"_",$C$9-SUM($F$12:F80)) -> 123692.5793 | H80: =IF(A80>$C$4,"_",IFERROR(VLOOKUP(B80,BAZA_LIBOR_WIBOR_KURS!$C$2:$F$145,4,FALSE),H79)) -> 3.424142857 | I80: =IF(A80>$C$4,"_",IFERROR(VLOOKUP(B80,BAZA_LIBOR_WIBOR_KURS!$C$2:$F$145,3,FALSE),I79)) -> 0.0272 | J80: 0.02 | K80: 1642.73475 | L80: 1185.33 | M80: 457.4047498 | N80: =IF(A80>$C$4,"_",$C$3-SUM($M$12:M80)) -> 300896.5277
A81: 70 | B81: 2014-06-01 | C81: =IF(A81>$C$4,"_",IFERROR(VLOOKUP(B81,BAZA_LIBOR_WIBOR_KURS!$C$2:$F$145,2,FALSE),C80)) -> 0.00012 | D81: 0.01 | E81: 104.3140752 | F81: 375.2128561 | G81: =IF(A81>$C$4,"_",$C$9-SUM($F$12:F81)) -> 123317.3664 | H81: =IF(A81>$C$4,"_",IFERROR(VLOOKUP(B81,BAZA_LIBOR_WIBOR_KURS!$C$2:$F$145,4,FALSE),H80)) -> 3.39526 | I81: =IF(A81>$C$4,"_",IFERROR(VLOOKUP(B81,BAZA_LIBOR_WIBOR_KURS!$C$2:$F$145,3,FALSE),I80)) -> 0.02688 | J81: 0.02 | K81: 1628.118609 | L81: 1175.5 | M81: 452.6186086 | N81: =IF(A81>$C$4,"_",$C$3-SUM($M$12:M81)) -> 300443.9091
A82: 71 | B82: 2014-07-01 | C82: =IF(A82>$C$4,"_",IFERROR(VLOOKUP(B82,BAZA_LIBOR_WIBOR_KURS!$C$2:$F$145,2,FALSE),C81)) -> 0.00013 | D82: 0.01 | E82: 104.1004102 | F82: 375.4822604 | G82: =IF(A82>$C$4,"_",$C$9-SUM($F$12:F82)) -> 122941.8842 | H82: =IF(A82>$C$4,"_",IFERROR(VLOOKUP(B82,BAZA_LIBOR_WIBOR_KURS!$C$2:$F$145,4,FALSE),H81)) -> 3.411265217 | I82: =IF(A82>$C$4,"_",IFERROR(VLOOKUP(B82,BAZA_LIBOR_WIBOR_KURS!$C$2:$F$145,3,FALSE),I81)) -> 0.02676956522 | J82: 0.02 | K82: 1635.983683 | L82: 1170.97 | M82: 465.0136828 | N82: =IF(A82>$C$4,"_",$C$3-SUM($M$12:M82)) -> 299978.8954
A83: 72 | B83: 2014-08-01 | C83: =IF(A83>$C$4,"_",IFERROR(VLOOKUP(B83,BAZA_LIBOR_WIBOR_KURS!$C$2:$F$145,2,FALSE),C82)) -> 0.00021 | D83: 0.01 | E83: 104.6030531 | F83: 375.424211 | G83: =IF(A83>$C$4,"_",$C$9-SUM($F$12:F83)) -> 122566.46 | H83: =IF(A83>$C$4,"_",IFERROR(VLOOKUP(B83,BAZA_LIBOR_WIBOR_KURS!$C$2:$F$145,4,FALSE),H82)) -> 3.45886 | I83: =IF(A83>$C$4,"_",IFERROR(VLOOKUP(B83,BAZA_LIBOR_WIBOR_KURS!$C$2:$F$145,3,FALSE),I82)) -> 0.02649 | J83: 0.02 | K83: 1660.347103 | L83: 1162.17 | M83: 498.1771027 | N83: =IF(A83>$C$4,"_",$C$3-SUM($M$12:M83)) -> 299480.7183
A84: 73 | B84: 2014-09-01 | C84: =IF(A84>$C$4,"_",IFERROR(VLOOKUP(B84,BAZA_LIBOR_WIBOR_KURS!$C$2:$F$145,2,FALSE),C83)) -> 8e-05 | D84: 0.01 | E84: 102.9558264 | F84: 376.3514895 | G84: =IF(A84>$C$4,"_",$C$9-SUM($F$12:F84)) -> 122190.1085 | H84: =IF(A84>$C$4,"_",IFERROR(VLOOKUP(B84,BAZA_LIBOR_WIBOR_KURS!$C$2:$F$145,4,FALSE),H83)) -> 3.470031818 | I84: =IF(A84>$C$4,"_",IFERROR(VLOOKUP(B84,BAZA_LIBOR_WIBOR_KURS!$C$2:$F$145,3,FALSE),I83)) -> 0.02448181818 | J84: 0.02 | K84: 1663.211637 | L84: 1110.12 | M84: 553.0916367 | N84: =IF(A84>$C$4,"_",$C$3-SUM($M$12:M84)) -> 298927.6266
A85: 74 | B85: 2014-10-01 | C85: =IF(A85>$C$4,"_",IFERROR(VLOOKUP(B85,BAZA_LIBOR_WIBOR_KURS!$C$2:$F$145,2,FALSE),C84)) -> 8e-05 | D85: 0.01 | E85: 102.6396911 | F85: 376.6676247 | G85: =IF(A85>$C$4,"_",$C$9-SUM($F$12:F85)) -> 121813.4408 | H85: =IF(A85>$C$4,"_",IFERROR(VLOOKUP(B85,BAZA_LIBOR_WIBOR_KURS!$C$2:$F$145,4,FALSE),H84)) -> 3.482269565 | I85: =IF(A85>$C$4,"_",IFERROR(VLOOKUP(B85,BAZA_LIBOR_WIBOR_KURS!$C$2:$F$145,3,FALSE),I84)) -> 0.02072608696 | J85: 0.02 | K85: 1669.077278 | L85: 1014.51 | M85: 654.5672784 | N85: =IF(A85>$C$4,"_",$C$3-SUM($M$12:M85)) -> 298273.0594
A86: 75 | B86: 2014-11-01 | C86: =IF(A86>$C$4,"_",IFERROR(VLOOKUP(B86,BAZA_LIBOR_WIBOR_KURS!$C$2:$F$145,2,FALSE),C85)) -> 6e-05 | D86: 0.01 | E86: 102.1202679 | F86: 377.0770816 | G86: =IF(A86>$C$4,"_",$C$9-SUM($F$12:F86)) -> 121436.3638 | H86: =IF(A86>$C$4,"_",IFERROR(VLOOKUP(B86,BAZA_LIBOR_WIBOR_KURS!$C$2:$F$145,4,FALSE),H85)) -> 3.502352632 | I86: =IF(A86>$C$4,"_",IFERROR(VLOOKUP(B86,BAZA_LIBOR_WIBOR_KURS!$C$2:$F$145,3,FALSE),I85)) -> 0.02033684211 | J86: 0.02 | K86: 1678.318098 | L86: 1002.62 | M86: 675.6980981 | N86: =IF(A86>$C$4,"_",$C$3-SUM($M$12:M86)) -> 297597.3613
A87: 76 | B87: 2014-12-01 | C87: =IF(A87>$C$4,"_",IFERROR(VLOOKUP(B87,BAZA_LIBOR_WIBOR_KURS!$C$2:$F$145,2,FALSE),C86)) -> -0.0002 | D87: 0.01 | E87: 99.1730304 | F87: 378.6009795 | G87: =IF(A87>$C$4,"_",$C$9-SUM($F$12:F87)) -> 121057.7628 | H87: =IF(A87>$C$4,"_",IFERROR(VLOOKUP(B87,BAZA_LIBOR_WIBOR_KURS!$C$2:$F$145,4,FALSE),H86)) -> 3.503809524 | I87: =IF(A87>$C$4,"_",IFERROR(VLOOKUP(B87,BAZA_LIBOR_WIBOR_KURS!$C$2:$F$145,3,FALSE),I86)) -> 0.0206 | J87: 0.02 | K87: 1674.029126 | L87: 1006.87 | M87: 667.1591261 | N87: =IF(A87>$C$4,"_",$C$3-SUM($M$12:M87)) -> 296930.2021
A88: 77 | B88: 2015-01-01 | C88: =IF(A88>$C$4,"_",IFERROR(VLOOKUP(B88,BAZA_LIBOR_WIBOR_KURS!$C$2:$F$145,2,FALSE),C87)) -> -0.00466 | D88: 0.01 | E88: 53.87070444 | F88: 399.9862829 | G88: =IF(A88>$C$4,"_",$C$9-SUM($F$12:F88)) -> 120657.7765 | H88: =IF(A88>$C$4,"_",IFERROR(VLOOKUP(B88,BAZA_LIBOR_WIBOR_KURS!$C$2:$F$145,4,FALSE),H87)) -> 3.95756 | I88: =IF(A88>$C$4,"_",IFERROR(VLOOKUP(B88,BAZA_LIBOR_WIBOR_KURS!$C$2:$F$145,3,FALSE),I87)) -> 0.020305 | J88: 0.02 | K88: 1796.166259 | L88: 997.31 | M88: 798.8562586 | N88: =IF(A88>$C$4,"_",$C$3-SUM($M$12:M88)) -> 296131.3459
A89: 78 | B89: 2015-02-01 | C89: =IF(A89>$C$4,"_",IFERROR(VLOOKUP(B89,BAZA_LIBOR_WIBOR_KURS!$C$2:$F$145,2,FALSE),C88)) -> -0.00889 | D89: 0.01 | E89: 11.16084433 | F89: 420.816209 | G89: =IF(A89>$C$4,"_",$C$9-SUM($F$12:F89)) -> 120236.9603 | H89: =IF(A89>$C$4,"_",IFERROR(VLOOKUP(B89,BAZA_LIBOR_WIBOR_KURS!$C$2:$F$145,4,FALSE),H88)) -> 3.932525 | I89: =IF(A89>$C$4,"_",IFERROR(VLOOKUP(B89,BAZA_LIBOR_WIBOR_KURS!$C$2:$F$145,3,FALSE),I88)) -> 0.01917 | J89: 0.02 | K89: 1698.760562 | L89: 966.62 | M89: 732.1405615 | N89: =IF(A89>$C$4,"_",$C$3-SUM($M$12:M89)) -> 295399.2053
A90: 79 | B90: 2015-03-01 | C90: =IF(A90>$C$4,"_",IFERROR(VLOOKUP(B90,BAZA_LIBOR_WIBOR_KURS!$C$2:$F$145,2,FALSE),C89)) -> -0.00802 | D90: 0.01 | E90: 19.83909845 | F90: 416.5647421 | G90: =IF(A90>$C$4,"_",$C$9-SUM($F$12:F90)) -> 119820.3955 | H90: =IF(A90>$C$4,"_",IFERROR(VLOOKUP(B90,BAZA_LIBOR_WIBOR_KURS!$C$2:$F$145,4,FALSE),H89)) -> 3.890177273 | I90: =IF(A90>$C$4,"_",IFERROR(VLOOKUP(B90,BAZA_LIBOR_WIBOR_KURS!$C$2:$F$145,3,FALSE),I89)) -> 0.01671818182 | J90: 0.02 | K90: 1697.688302 | L90: 903.88 | M90: 793.8083022 | N90: =IF(A90>$C$4,"_",$C$3-SUM($M$12:M90)) -> 294605.397
A91: 80 | B91: 2015-04-01 | C91: =IF(A91>$C$4,"_",IFERROR(VLOOKUP(B91,BAZA_LIBOR_WIBOR_KURS!$C$2:$F$145,2,FALSE),C90)) -> -0.00812 | D91: 0.01 | E91: 18.77186197 | F91: 417.1234307 | G91: =IF(A91>$C$4,"_",$C$9-SUM($F$12:F91)) -> 119403.2721 | H91: =IF(A91>$C$4,"_",IFERROR(VLOOKUP(B91,BAZA_LIBOR_WIBOR_KURS!$C$2:$F$145,4,FALSE),H90)) -> 3.877147619 | I91: =IF(A91>$C$4,"_",IFERROR(VLOOKUP(B91,BAZA_LIBOR_WIBOR_KURS!$C$2:$F$145,3,FALSE),I90)) -> 0.0165 | J91: 0.02 | K91: 1690.030396 | L91: 896.09 | M91: 793.9403959 | N91: =IF(A91>$C$4,"_",$C$3-SUM($M$12:M91)) -> 293811.4566
A92: 81 | B92: 2015-05-01 | C92: =IF(A92>$C$4,"_",IFERROR(VLOOKUP(B92,BAZA_LIBOR_WIBOR_KURS!$C$2:$F$145,2,FALSE),C91)) -> -0.00791 | D92: 0.01 | E92: 20.79606989 | F92: 416.1638596 | G92: =IF(A92>$C$4,"_",$C$9-SUM($F$12:F92)) -> 118987.1083 | H92: =IF(A92>$C$4,"_",IFERROR(VLOOKUP(B92,BAZA_LIBOR_WIBOR_KURS!$C$2:$F$145,4,FALSE),H91)) -> 3.927305 | I92: =IF(A92>$C$4,"_",IFERROR(VLOOKUP(B92,BAZA_LIBOR_WIBOR_KURS!$C$2:$F$145,3,FALSE),I91)) -> 0.0167 | J92: 0.02 | K92: 1716.074916 | L92: 898.57 | M92: 817.5049158 | N92: =IF(A92>$C$4,"_",$C$3-SUM($M$12:M92)) -> 292993.9517
A93: 82 | B93: 2015-06-01 | C93: =IF(A93>$C$4,"_",IFERROR(VLOOKUP(B93,BAZA_LIBOR_WIBOR_KURS!$C$2:$F$145,2,FALSE),C92)) -> -0.00782 | D93: 0.01 | E93: 21.61599133 | F93: 415.7991204 | G93: =IF(A93>$C$4,"_",$C$9-SUM($F$12:F93)) -> 118571.3091 | H93: =IF(A93>$C$4,"_",IFERROR(VLOOKUP(B93,BAZA_LIBOR_WIBOR_KURS!$C$2:$F$145,4,FALSE),H92)) -> 3.983695238 | I93: =IF(A93>$C$4,"_",IFERROR(VLOOKUP(B93,BAZA_LIBOR_WIBOR_KURS!$C$2:$F$145,3,FALSE),I92)) -> 0.01704761905 | J93: 0.02 | K93: 1742.528497 | L93: 904.56 | M93: 837.9684975 | N93: =IF(A93>$C$4,"_",$C$3-SUM($M$12:M93)) -> 292155.9832
A94: 83 | B94: 2015-07-01 | C94: =IF(A94>$C$4,"_",IFERROR(VLOOKUP(B94,BAZA_LIBOR_WIBOR_KURS!$C$2:$F$145,2,FALSE),C93)) -> -0.00762 | D94: 0.01 | E94: 23.51664298 | F94: 414.90751 | G94: =IF(A94>$C$4,"_",$C$9-SUM($F$12:F94)) -> 118156.4016 | H94: =IF(A94>$C$4,"_",IFERROR(VLOOKUP(B94,BAZA_LIBOR_WIBOR_KURS!$C$2:$F$145,4,FALSE),H93)) -> 3.961795652 | I94: =IF(A94>$C$4,"_",IFERROR(VLOOKUP(B94,BAZA_LIBOR_WIBOR_KURS!$C$2:$F$145,3,FALSE),I93)) -> 0.0172 | J94: 0.02 | K94: 1736.946903 | L94: 905.68 | M94: 831.2669029 | N94: =IF(A94>$C$4,"_",$C$3-SUM($M$12:M94)) -> 291324.7163
A95: 84 | B95: 2015-08-01 | C95: =IF(A95>$C$4,"_",IFERROR(VLOOKUP(B95,BAZA_LIBOR_WIBOR_KURS!$C$2:$F$145,2,FALSE),C94)) -> -0.00729 | D95: 0.01 | E95: 26.68365403 | F95: 413.4028199 | G95: =IF(A95>$C$4,"_",$C$9-SUM($F$12:F95)) -> 117742.9988 | H95: =IF(A95>$C$4,"_",IFERROR(VLOOKUP(B95,BAZA_LIBOR_WIBOR_KURS!$C$2:$F$145,4,FALSE),H94)) -> 3.890952381 | I95: =IF(A95>$C$4,"_",IFERROR(VLOOKUP(B95,BAZA_LIBOR_WIBOR_KURS!$C$2:$F$145,3,FALSE),I94)) -> 0.0172 | J95: 0.02 | K95: 1712.355514 | L95: 903.11 | M95: 809.2455137 | N95: =IF(A95>$C$4,"_",$C$3-SUM($M$12:M95)) -> 290515.4708
A96: 85 | B96: 2015-09-01 | C96: =IF(A96>$C$4,"_",IFERROR(VLOOKUP(B96,BAZA_LIBOR_WIBOR_KURS!$C$2:$F$145,2,FALSE),C95)) -> -0.00729 | D96: 0.01 | E96: 26.5902939 | F96: 413.4961801 | G96: =IF(A96>$C$4,"_",$C$9-SUM($F$12:F96)) -> 117329.5026 | H96: =IF(A96>$C$4,"_",IFERROR(VLOOKUP(B96,BAZA_LIBOR_WIBOR_KURS!$C$2:$F$145,4,FALSE),H95)) -> 3.863313636 | I96: =IF(A96>$C$4,"_",IFERROR(VLOOKUP(B96,BAZA_LIBOR_WIBOR_KURS!$C$2:$F$145,3,FALSE),I95)) -> 0.01721363636 | J96: 0.02 | K96: 1700.192076 | L96: 900.93 | M96: 799.2620761 | N96: =IF(A96>$C$4,"_",$C$3-SUM($M$12:M96)) -> 289716.2087
A97: 86 | B97: 2015-10-01 | C97: =IF(A97>$C$4,"_",IFERROR(VLOOKUP(B97,BAZA_LIBOR_WIBOR_KURS!$C$2:$F$145,2,FALSE),C96)) -> -0.00728 | D97: 0.01 | E97: 26.59468726 | F97: 413.5418654 | G97: =IF(A97>$C$4,"_",$C$9-SUM($F$12:F97)) -> 116915.9608 | H97: =IF(A97>$C$4,"_",IFERROR(VLOOKUP(B97,BAZA_LIBOR_WIBOR_KURS!$C$2:$F$145,4,FALSE),H96)) -> 3.905540909 | I97: =IF(A97>$C$4,"_",IFERROR(VLOOKUP(B97,BAZA_LIBOR_WIBOR_KURS!$C$2:$F$145,3,FALSE),I96)) -> 0.0173 | J97: 0.02 | K97: 1718.971312 | L97: 900.53 | M97: 818.4413118 | N97: =IF(A97>$C$4,"_",$C$3-SUM($M$12:M97)) -> 288897.7674
A98: 87 | B98: 2015-11-01 | C98: =IF(A98>$C$4,"_",IFERROR(VLOOKUP(B98,BAZA_LIBOR_WIBOR_KURS!$C$2:$F$145,2,FALSE),C97)) -> -0.00732 | D98: 0.01 | E98: 26.11123124 | F98: 413.8257471 | G98: =IF(A98>$C$4,"_",$C$9-SUM($F$12:F98)) -> 116502.135 | H98: =IF(A98>$C$4,"_",IFERROR(VLOOKUP(B98,BAZA_LIBOR_WIBOR_KURS!$C$2:$F$145,4,FALSE),H97)) -> 3.914 | I98: =IF(A98>$C$4,"_",IFERROR(VLOOKUP(B98,BAZA_LIBOR_WIBOR_KURS!$C$2:$F$145,3,FALSE),I97)) -> 0.0173 | J98: 0.02 | K98: 1721.913333 | L98: 897.99 | M98: 823.9233334 | N98: =IF(A98>$C$4,"_",$C$3-SUM($M$12:M98)) -> 288073.8441
A99: 88 | B99: 2015-12-01 | C99: =IF(A99>$C$4,"_",IFERROR(VLOOKUP(B99,BAZA_LIBOR_WIBOR_KURS!$C$2:$F$145,2,FALSE),C98)) -> -0.00732 | D99: 0.01 | E99: 26.01881015 | F99: 413.9181682 | G99: =IF(A99>$C$4,"_",$C$9-SUM($F$12:F99)) -> 116088.2168 | H99: =IF(A99>$C$4,"_",IFERROR(VLOOKUP(B99,BAZA_LIBOR_WIBOR_KURS!$C$2:$F$145,4,FALSE),H98)) -> 3.914 | I99: =IF(A99>$C$4,"_",IFERROR(VLOOKUP(B99,BAZA_LIBOR_WIBOR_KURS!$C$2:$F$145,3,FALSE),I98)) -> 0.0173 | J99: 0.02 | K99: 1721.913333 | L99: 895.43 | M99: 826.4833334 | N99: =IF(A99>$C$4,"_",$C$3-SUM($M$12:M99)) -> 287247.3607
A100: 89 | B100: 2016-01-01 | C100: =IF(A100>$C$4,"_",IFERROR(VLOOKUP(B100,BAZA_LIBOR_WIBOR_KURS!$C$2:$F$145,2,FALSE),C99)) -> -0.00732 | D100: 0.01 | E100: 25.92636843 | F100: 414.01061 | G100: =IF(A100>$C$4,"_",$C$9-SUM($F$12:F100)) -> 115674.2062 | H100: =IF(A100>$C$4,"_",IFERROR(VLOOKUP(B100,BAZA_LIBOR_WIBOR_KURS!$C$2:$F$145,4,FALSE),H99)) -> 4.1 | I100: =IF(A100>$C$4,"_",IFERROR(VLOOKUP(B100,BAZA_LIBOR_WIBOR_KURS!$C$2:$F$145,3,FALSE),I99)) -> 0.0173 | J100: 0.02 | K100: 1803.741611 | L100: 892.86 | M100: 910.8816114 | N100: =IF(A100>$C$4,"_",$C$3-SUM($M$12:M100)) -> 286336.4791
A101: 90 | B101: 2016-02-01 | C101: =IF(A101>$C$4,"_",IFERROR(VLOOKUP(B101,BAZA_LIBOR_WIBOR_KURS!$C$2:$F$145,2,FALSE),C100)) -> -0.00732 | D101: 0.01 | E101: 25.83390606 | F101: 414.1030723 | G101: =IF(A101>$C$4,"_",$C$9-SUM($F$12:F101)) -> 115260.1032 | H101: =IF(A101>$C$4,"_",IFERROR(VLOOKUP(B101,BAZA_LIBOR_WIBOR_KURS!$C$2:$F$145,4,FALSE),H100)) -> 4.1 | I101: =IF(A101>$C$4,"_",IFERROR(VLOOKUP(B101,BAZA_LIBOR_WIBOR_KURS!$C$2:$F$145,3,FALSE),I100)) -> 0.0173 | J101: 0.02 | K101: 0 | L101: 890.03 | M101: -890.03 | N101: =IF(A101>$C$4,"_",$C$3-SUM($M$12:M101)) -> 287226.5091
A102: 91 | B102: 2016-03-01 | C102: =IF(A102>$C$4,"_",IFERROR(VLOOKUP(B102,BAZA_LIBOR_WIBOR_KURS!$C$2:$F$145,2,FALSE),C101)) -> -0.00732 | D102: 0.01 | E102: 25.74142304 | F102: 414.1955553 | G102: =IF(A102>$C$4,"_",$C$9-SUM($F$12:F102)) -> 114845.9076 | H102: =IF(A102>$C$4,"_",IFERROR(VLOOKUP(B102,BAZA_LIBOR_WIBOR_KURS!$C$2:$F$145,4,FALSE),H101)) -> 4.1 | I102: =IF(A102>$C$4,"_",IFERROR(VLOOKUP(B102,BAZA_LIBOR_WIBOR_KURS!$C$2:$F$145,3,FALSE),I101)) -> 0.0173 | J102: 0.02 | K102: 0 | L102: 892.8 | M102: -892.8 | N102: =IF(A102>$C$4,"_",$C$3-SUM($M$12:M102)) -> 288119.3091
A103: 92 | B103: 2016-04-01 | C103: =IF(A103>$C$4,"_",IFERROR(VLOOKUP(B103,BAZA_LIBOR_WIBOR_KURS!$C$2:$F$145,2,FALSE),C102)) -> -0.00732 | D103: 0.01 | E103: 25.64891936 | F103: 414.288059 | G103: =IF(A103>$C$4,"_",$C$9-SUM($F$12:F103)) -> 114431.6195 | H103: =IF(A103>$C$4,"_",IFERROR(VLOOKUP(B103,BAZA_LIBOR_WIBOR_KURS!$C$2:$F$145,4,FALSE),H102)) -> 4.1 | I103: =IF(A103>$C$4,"_",IFERROR(VLOOKUP(B103,BAZA_LIBOR_WIBOR_KURS!$C$2:$F$145,3,FALSE),I102)) -> 0.0173 | J103: 0.02 | K103: 0 | L103: 895.57 | M103: -895.57 | N103: =IF(A103>$C$4,"_",$C$3-SUM($M$12:M103)) -> 289014.8791
A104: 93 | B104: 2016-05-01 | C104: =IF(A104>$C$4,"_",IFERROR(VLOOKUP(B104,BAZA_LIBOR_WIBOR_KURS!$C$2:$F$145,2,FALSE),C103)) -> -0.00732 | D104: 0.01 | E104: 25.55639503 | F104: 414.3805833 | G104: =IF(A104>$C$4,"_",$C$9-SUM($F$12:F104)) -> 114017.239 | H104: =IF(A104>$C$4,"_",IFERROR(VLOOKUP(B104,BAZA_LIBOR_WIBOR_KURS!$C$2:$F$145,4,FALSE),H103)) -> 4.1 | I104: =IF(A104>$C$4,"_",IFERROR(VLOOKUP(B104,BAZA_LIBOR_WIBOR_KURS!$C$2:$F$145,3,FALSE),I103)) -> 0.0173 | J104: 0.02 | K104: 0 | L104: 898.35 | M104: -898.35 | N104: =IF(A104>$C$4,"_",$C$3-SUM($M$12:M104)) -> 289913.2291
A105: 94 | B105: 2016-06-01 | C105: =IF(A105>$C$4,"_",IFERROR(VLOOKUP(B105,BAZA_LIBOR_WIBOR_KURS!$C$2:$F$145,2,FALSE),C104)) -> -0.00732 | D105: 0.01 | E105: 25.46385003 | F105: 414.4731283 | G105: =IF(A105>$C$4,"_",$C$9-SUM($F$12:F105)) -> 113602.7658 | H105: =IF(A105>$C$4,"_",IFERROR(VLOOKUP(B105,BAZA_LIBOR_WIBOR_KURS!$C$2:$F$145,4,FALSE),H104)) -> 4.1 | I105: =IF(A105>$C$4,"_",IFERROR(VLOOKUP(B105,BAZA_LIBOR_WIBOR_KURS!$C$2:$F$145,3,FALSE),I104)) -> 0.0173 | J105: 0.02 | K105: 0 | L105: 901.15 | M105: -901.15 | N105: =IF(A105>$C$4,"_",$C$3-SUM($M$12:M105)) -> 290814.3791
A106: 95 | B106: 2016-07-01 | C106: =IF(A106>$C$4,"_",IFERROR(VLOOKUP(B106,BAZA_LIBOR_WIBOR_KURS!$C$2:$F$145,2,FALSE),C105)) -> -0.00732 | D106: 0.01 | E106: 25.37128437 | F106: 414.565694 | G106: =IF(A106>$C$4,"_",$C$9-SUM($F$12:F106)) -> 113188.2001 | H106: =IF(A106>$C$4,"_",IFERROR(VLOOKUP(B106,BAZA_LIBOR_WIBOR_KURS!$C$2:$F$145,4,FALSE),H105)) -> 4.1 | I106: =IF(A106>$C$4,"_",IFERROR(VLOOKUP(B106,BAZA_LIBOR_WIBOR_KURS!$C$2:$F$145,3,FALSE),I105)) -> 0.0173 | J106: 0.02 | K106: 0 | L106: 903.95 | M106: -903.95 | N106: =IF(A106>$C$4,"_",$C$3-SUM($M$12:M106)) -> 291718.3291
A107: 96 | B107: 2016-08-01 | C107: =IF(A107>$C$4,"_",IFERROR(VLOOKUP(B107,BAZA_LIBOR_WIBOR_KURS!$C$2:$F$145,2,FALSE),C106)) -> -0.00732 | D107: 0.01 | E107: 25.27869803 | F107: 414.6582803 | G107: =IF(A107>$C$4,"_",$C$9-SUM($F$12:F107)) -> 112773.5419 | H107: =IF(A107>$C$4,"_",IFERROR(VLOOKUP(B107,BAZA_LIBOR_WIBOR_KURS!$C$2:$F$145,4,FALSE),H106)) -> 4.1 | I107: =IF(A107>$C$4,"_",IFERROR(VLOOKUP(B107,BAZA_LIBOR_WIBOR_KURS!$C$2:$F$145,3,FALSE),I106)) -> 0.0173 | J107: 0.02 | K107: 0 | L107: 906.76 | M107: -906.76 | N107: =IF(A107>$C$4,"_",$C$3-SUM($M$12:M107)) -> 292625.0891
A108: 97 | B108: 2016-09-01 | C108: =IF(A108>$C$4,"_",IFERROR(VLOOKUP(B108,BAZA_LIBOR_WIBOR_KURS!$C$2:$F$145,2,FALSE),C107)) -> -0.00732 | D108: 0.01 | E108: 25.18609102 | F108: 414.7508874 | G108: =IF(A108>$C$4,"_",$C$9-SUM($F$12:F108)) -> 112358.791 | H108: =IF(A108>$C$4,"_",IFERROR(VLOOKUP(B108,BAZA_LIBOR_WIBOR_KURS!$C$2:$F$145,4,FALSE),H107)) -> 4.1 | I108: =IF(A108>$C$4,"_",IFERROR(VLOOKUP(B108,BAZA_LIBOR_WIBOR_KURS!$C$2:$F$145,3,FALSE),I107)) -> 0.0173 | J108: 0.02 | K108: 0 | L108: 909.58 | M108: -909.58 | N108: =IF(A108>$C$4,"_",$C$3-SUM($M$12:M108)) -> 293534.6691
A109: 98 | B109: 2016-10-01 | C109: =IF(A109>$C$4,"_",IFERROR(VLOOKUP(B109,BAZA_LIBOR_WIBOR_KURS!$C$2:$F$145,2,FALSE),C108)) -> -0.00732 | D109: 0.01 | E109: 25.09346332 | F109: 414.8435151 | G109: =IF(A109>$C$4,"_",$C$9-SUM($F$12:F109)) -> 111943.9475 | H109: =IF(A109>$C$4,"_",IFERROR(VLOOKUP(B109,BAZA_LIBOR_WIBOR_KURS!$C$2:$F$145,4,FALSE),H108)) -> 4.1 | I109: =IF(A109>$C$4,"_",IFERROR(VLOOKUP(B109,BAZA_LIBOR_WIBOR_KURS!$C$2:$F$145,3,FALSE),I108)) -> 0.0173 | J109: 0.02 | K109: 0 | L109: 912.4 | M109: -912.4 | N109: =IF(A109>$C$4,"_",$C$3-SUM($M$12:M109)) -> 294447.0691
A110: 99 | B110: 2016-11-01 | C110: =IF(A110>$C$4,"_",IFERROR(VLOOKUP(B110,BAZA_LIBOR_WIBOR_KURS!$C$2:$F$145,2,FALSE),C109)) -> -0.00732 | D110: 0.01 | E110: 25.00081493 | F110: 414.9361634 | G110: =IF(A110>$C$4,"_",$C$9-SUM($F$12:F110)) -> 111529.0113 | H110: =IF(A110>$C$4,"_",IFERROR(VLOOKUP(B110,BAZA_LIBOR_WIBOR_KURS!$C$2:$F$145,4,FALSE),H109)) -> 4.1 | I110: =IF(A110>$C$4,"_",IFERROR(VLOOKUP(B110,BAZA_LIBOR_WIBOR_KURS!$C$2:$F$145,3,FALSE),I109)) -> 0.0173 | J110: 0.02 | K110: 0 | L110: 915.24 | M110: -915.24 | N110: =IF(A110>$C$4,"_",$C$3-SUM($M$12:M110)) -> 295362.3091
A111: 100 | B111: 2016-12-01 | C111: =IF(A111>$C$4,"_",IFERROR(VLOOKUP(B111,BAZA_LIBOR_WIBOR_KURS!$C$2:$F$145,2,FALSE),C110)) -> -0.00732 | D111: 0.01 | E111: 24.90814586 | F111: 415.0288325 | G111: =IF(A111>$C$4,"_",$C$9-SUM($F$12:F111)) -> 111113.9825 | H111: =IF(A111>$C$4,"_",IFERROR(VLOOKUP(B111,BAZA_LIBOR_WIBOR_KURS!$C$2:$F$145,4,FALSE),H110)) -> 4.1 | I111: =IF(A111>$C$4,"_",IFERROR(VLOOKUP(B111,BAZA_LIBOR_WIBOR_KURS!$C$2:$F$145,3,FALSE),I110)) -> 0.0173 | J111: 0.02 | K111: 0 | L111: 918.08 | M111: -918.08 | N111: =IF(A111>$C$4,"_",$C$3-SUM($M$12:M111)) -> 296280.3891
A112: 101 | B112: 2017-01-01 | C112: =IF(A112>$C$4,"_",IFERROR(VLOOKUP(B112,BAZA_LIBOR_WIBOR_KURS!$C$2:$F$145,2,FALSE),C111)) -> -0.00732 | D112: 0.01 | E112: 24.81545608 | F112: 415.1215223 | G112: =IF(A112>$C$4,"_",$C$9-SUM($F$12:F112)) -> 110698.8609 | H112: =IF(A112>$C$4,"_",IFERROR(VLOOKUP(B112,BAZA_LIBOR_WIBOR_KURS!$C$2:$F$145,4,FALSE),H111)) -> 4.1 | I112: =IF(A112>$C$4,"_",IFERROR(VLOOKUP(B112,BAZA_LIBOR_WIBOR_KURS!$C$2:$F$145,3,FALSE),I111)) -> 0.0173 | J112: 0.02 | K112: 0 | L112: 920.94 | M112: -920.94 | N112: =IF(A112>$C$4,"_",$C$3-SUM($M$12:M112)) -> 297201.3291
A113: 102 | B113: 2017-02-01 | C113: =IF(A113>$C$4,"_",IFERROR(VLOOKUP(B113,BAZA_LIBOR_WIBOR_KURS!$C$2:$F$145,2,FALSE),C112)) -> -0.00732 | D113: 0.01 | E113: 24.72274561 | F113: 415.2142328 | G113: =IF(A113>$C$4,"_",$C$9-SUM($F$12:F113)) -> 110283.6467 | H113: =IF(A113>$C$4,"_",IFERROR(VLOOKUP(B113,BAZA_LIBOR_WIBOR_KURS!$C$2:$F$145,4,FALSE),H112)) -> 4.1 | I113: =IF(A113>$C$4,"_",IFERROR(VLOOKUP(B113,BAZA_LIBOR_WIBOR_KURS!$C$2:$F$145,3,FALSE),I112)) -> 0.0173 | J113: 0.02 | K113: 0 | L113: 923.8 | M113: -923.8 | N113: =IF(A113>$C$4,"_",$C$3-SUM($M$12:M113)) -> 298125.1291
A114: 103 | B114: 2017-03-01 | C114: =IF(A114>$C$4,"_",IFERROR(VLOOKUP(B114,BAZA_LIBOR_WIBOR_KURS!$C$2:$F$145,2,FALSE),C113)) -> -0.00732 | D114: 0.01 | E114: 24.63001443 | F114: 415.3069639 | G114: =IF(A114>$C$4,"_",$C$9-SUM($F$12:F114)) -> 109868.3397 | H114: =IF(A114>$C$4,"_",IFERROR(VLOOKUP(B114,BAZA_LIBOR_WIBOR_KURS!$C$2:$F$145,4,FALSE),H113)) -> 4.1 | I114: =IF(A114>$C$4,"_",IFERROR(VLOOKUP(B114,BAZA_LIBOR_WIBOR_KURS!$C$2:$F$145,3,FALSE),I113)) -> 0.0173 | J114: 0.02 | K114: 0 | L114: 926.67 | M114: -926.67 | N114: =IF(A114>$C$4,"_",$C$3-SUM($M$12:M114)) -> 299051.7991
A115: 104 | B115: 2017-04-01 | C115: =IF(A115>$C$4,"_",IFERROR(VLOOKUP(B115,BAZA_LIBOR_WIBOR_KURS!$C$2:$F$145,2,FALSE),C114)) -> -0.00732 | D115: 0.01 | E115: 24.53726254 | F115: 415.3997158 | G115: =IF(A115>$C$4,"_",$C$9-SUM($F$12:F115)) -> 109452.94 | H115: =IF(A115>$C$4,"_",IFERROR(VLOOKUP(B115,BAZA_LIBOR_WIBOR_KURS!$C$2:$F$145,4,FALSE),H114)) -> 4.1 | I115: =IF(A115>$C$4,"_",IFERROR(VLOOKUP(B115,BAZA_LIBOR_WIBOR_KURS!$C$2:$F$145,3,FALSE),I114)) -> 0.0173 | J115: 0.02 | K115: 0 | L115: 929.55 | M115: -929.55 | N115: =IF(A115>$C$4,"_",$C$3-SUM($M$12:M115)) -> 299981.3491
A116: 105 | B116: 2017-05-01 | C116: =IF(A116>$C$4,"_",IFERROR(VLOOKUP(B116,BAZA_LIBOR_WIBOR_KURS!$C$2:$F$145,2,FALSE),C115)) -> -0.00732 | D116: 0.01 | E116: 24.44448994 | F116: 415.4924884 | G116: =IF(A116>$C$4,"_",$C$9-SUM($F$12:F116)) -> 109037.4475 | H116: =IF(A116>$C$4,"_",IFERROR(VLOOKUP(B116,BAZA_LIBOR_WIBOR_KURS!$C$2:$F$145,4,FALSE),H115)) -> 4.1 | I116: =IF(A116>$C$4,"_",IFERROR(VLOOKUP(B116,BAZA_LIBOR_WIBOR_KURS!$C$2:$F$145,3,FALSE),I115)) -> 0.0173 | J116: 0.02 | K116: 0 | L116: 932.44 | M116: -932.44 | N116: =IF(A116>$C$4,"_",$C$3-SUM($M$12:M116)) -> 300913.7891
A117: 106 | B117: 2017-06-01 | C117: =IF(A117>$C$4,"_",IFERROR(VLOOKUP(B117,BAZA_LIBOR_WIBOR_KURS!$C$2:$F$145,2,FALSE),C116)) -> -0.00732 | D117: 0.01 | E117: 24.35169662 | F117: 415.5852818 | G117: =IF(A117>$C$4,"_",$C$9-SUM($F$12:F117)) -> 108621.8623 | H117: =IF(A117>$C$4,"_",IFERROR(VLOOKUP(B117,BAZA_LIBOR_WIBOR_KURS!$C$2:$F$145,4,FALSE),H116)) -> 4.1 | I117: =IF(A117>$C$4,"_",IFERROR(VLOOKUP(B117,BAZA_LIBOR_WIBOR_KURS!$C$2:$F$145,3,FALSE),I116)) -> 0.0173 | J117: 0.02 | K117: 0 | L117: 935.34 | M117: -935.34 | N117: =IF(A117>$C$4,"_",$C$3-SUM($M$12:M117)) -> 301849.1291
A118: 107 | B118: 2017-07-01 | C118: =IF(A118>$C$4,"_",IFERROR(VLOOKUP(B118,BAZA_LIBOR_WIBOR_KURS!$C$2:$F$145,2,FALSE),C117)) -> -0.00732 | D118: 0.01 | E118: 24.25888257 | F118: 415.6780958 | G118: =IF(A118>$C$4,"_",$C$9-SUM($F$12:F118)) -> 108206.1842 | H118: =IF(A118>$C$4,"_",IFERROR(VLOOKUP(B118,BAZA_LIBOR_WIBOR_KURS!$C$2:$F$145,4,FALSE),H117)) -> 4.1 | I118: =IF(A118>$C$4,"_",IFERROR(VLOOKUP(B118,BAZA_LIBOR_WIBOR_KURS!$C$2:$F$145,3,FALSE),I117)) -> 0.0173 | J118: 0.02 | K118: 0 | L118: 938.25 | M118: -938.25 | N118: =IF(A118>$C$4,"_",$C$3-SUM($M$12:M118)) -> 302787.3791
A119: 108 | B119: 2017-08-01 | C119: =IF(A119>$C$4,"_",IFERROR(VLOOKUP(B119,BAZA_LIBOR_WIBOR_KURS!$C$2:$F$145,2,FALSE),C118)) -> -0.00732 | D119: 0.01 | E119: 24.1660478 | F119: 415.7709306 | G119: =IF(A119>$C$4,"_",$C$9-SUM($F$12:F119)) -> 107790.4132 | H119: =IF(A119>$C$4,"_",IFERROR(VLOOKUP(B119,BAZA_LIBOR_WIBOR_KURS!$C$2:$F$145,4,FALSE),H118)) -> 4.1 | I119: =IF(A119>$C$4,"_",IFERROR(VLOOKUP(B119,BAZA_LIBOR_WIBOR_KURS!$C$2:$F$145,3,FALSE),I118)) -> 0.0173 | J119: 0.02 | K119: 0 | L119: 941.16 | M119: -941.16 | N119: =IF(A119>$C$4,"_",$C$3-SUM($M$12:M119)) -> 303728.5391
A120: 109 | B120: 2017-09-01 | C120: =IF(A120>$C$4,"_",IFERROR(VLOOKUP(B120,BAZA_LIBOR_WIBOR_KURS!$C$2:$F$145,2,FALSE),C119)) -> -0.00732 | D120: 0.01 | E120: 24.07319229 | F120: 415.8637861 | G120: =IF(A120>$C$4,"_",$C$9-SUM($F$12:F120)) -> 107374.5494 | H120: =IF(A120>$C$4,"_",IFERROR(VLOOKUP(B120,BAZA_LIBOR_WIBOR_KURS!$C$2:$F$145,4,FALSE),H119)) -> 4.1 | I120: =IF(A120>$C$4,"_",IFERROR(VLOOKUP(B120,BAZA_LIBOR_WIBOR_KURS!$C$2:$F$145,3,FALSE),I119)) -> 0.0173 | J120: 0.02 | K120: 0 | L120: 944.09 | M120: -944.09 | N120: =IF(A120>$C$4,"_",$C$3-SUM($M$12:M120)) -> 304672.6291
A121: 110 | B121: 2017-10-01 | C121: =IF(A121>$C$4,"_",IFERROR(VLOOKUP(B121,BAZA_LIBOR_WIBOR_KURS!$C$2:$F$145,2,FALSE),C120)) -> -0.00732 | D121: 0.01 | E121: 23.98031604 | F121: 415.9566623 | G121: =IF(A121>$C$4,"_",$C$9-SUM($F$12:F121)) -> 106958.5928 | H121: =IF(A121>$C$4,"_",IFERROR(VLOOKUP(B121,BAZA_LIBOR_WIBOR_KURS!$C$2:$F$145,4,FALSE),H120)) -> 4.1 | I121: =IF(A121>$C$4,"_",IFERROR(VLOOKUP(B121,BAZA_LIBOR_WIBOR_KURS!$C$2:$F$145,3,FALSE),I120)) -> 0.0173 | J121: 0.02 | K121: 0 | L121: 947.02 | M121: -947.02 | N121: =IF(A121>$C$4,"_",$C$3-SUM($M$12:M121)) -> 305619.6491
A122: 111 | B122: 2017-11-01 | C122: =IF(A122>$C$4,"_",IFERROR(VLOOKUP(B122,BAZA_LIBOR_WIBOR_KURS!$C$2:$F$145,2,FALSE),C121)) -> -0.00732 | D122: 0.01 | E122: 23.88741905 | F122: 416.0495593 | G122: =IF(A122>$C$4,"_",$C$9-SUM($F$12:F122)) -> 106542.5432 | H122: =IF(A122>$C$4,"_",IFERROR(VLOOKUP(B122,BAZA_LIBOR_WIBOR_KURS!$C$2:$F$145,4,FALSE),H121)) -> 4.1 | I122: =IF(A122>$C$4,"_",IFERROR(VLOOKUP(B122,BAZA_LIBOR_WIBOR_KURS!$C$2:$F$145,3,FALSE),I121)) -> 0.0173 | J122: 0.02 | K122: 0 | L122: 949.97 | M122: -949.97 | N122: =IF(A122>$C$4,"_",$C$3-SUM($M$12:M122)) -> 306569.6191
A123: 112 | B123: 2017-12-01 | C123: =IF(A123>$C$4,"_",IFERROR(VLOOKUP(B123,BAZA_LIBOR_WIBOR_KURS!$C$2:$F$145,2,FALSE),C122)) -> -0.00732 | D123: 0.01 | E123: 23.79450132 | F123: 416.1424771 | G123: =IF(A123>$C$4,"_",$C$9-SUM($F$12:F123)) -> 106126.4007 | H123: =IF(A123>$C$4,"_",IFERROR(VLOOKUP(B123,BAZA_LIBOR_WIBOR_KURS!$C$2:$F$145,4,FALSE),H122)) -> 4.1 | I123: =IF(A123>$C$4,"_",IFERROR(VLOOKUP(B123,BAZA_LIBOR_WIBOR_KURS!$C$2:$F$145,3,FALSE),I122)) -> 0.0173 | J123: 0.02 | K123: 0 | L123: 952.92 | M123: -952.92 | N123: =IF(A123>$C$4,"_",$C$3-SUM($M$12:M123)) -> 307522.5391
A124: 113 | B124: 2018-01-01 | C124: =IF(A124>$C$4,"_",IFERROR(VLOOKUP(B124,BAZA_LIBOR_WIBOR_KURS!$C$2:$F$145,2,FALSE),C123)) -> -0.00732 | D124: 0.01 | E124: 23.70156283 | F124: 416.2354155 | G124: =IF(A124>$C$4,"_",$C$9-SUM($F$12:F124)) -> 105710.1653 | H124: =IF(A124>$C$4,"_",IFERROR(VLOOKUP(B124,BAZA_LIBOR_WIBOR_KURS!$C$2:$F$145,4,FALSE),H123)) -> 4.1 | I124: =IF(A124>$C$4,"_",IFERROR(VLOOKUP(B124,BAZA_LIBOR_WIBOR_KURS!$C$2:$F$145,3,FALSE),I123)) -> 0.0173 | J124: 0.02 | K124: 0 | L124: 955.88 | M124: -955.88 | N124: =IF(A124>$C$4,"_",$C$3-SUM($M$12:M124)) -> 308478.4191
A125: 114 | B125: 2018-02-01 | C125: =IF(A125>$C$4,"_",IFERROR(VLOOKUP(B125,BAZA_LIBOR_WIBOR_KURS!$C$2:$F$145,2,FALSE),C124)) -> -0.00732 | D125: 0.01 | E125: 23.60860359 | F125: 416.3283748 | G125: =IF(A125>$C$4,"_",$C$9-SUM($F$12:F125)) -> 105293.837 | H125: =IF(A125>$C$4,"_",IFERROR(VLOOKUP(B125,BAZA_LIBOR_WIBOR_KURS!$C$2:$F$145,4,FALSE),H124)) -> 4.1 | I125: =IF(A125>$C$4,"_",IFERROR(VLOOKUP(B125,BAZA_LIBOR_WIBOR_KURS!$C$2:$F$145,3,FALSE),I124)) -> 0.0173 | J125: 0.02 | K125: 0 | L125: 958.85 | M125: -958.85 | N125: =IF(A125>$C$4,"_",$C$3-SUM($M$12:M125)) -> 309437.2691
A126: 115 | B126: 2018-03-01 | C126: =IF(A126>$C$4,"_",IFERROR(VLOOKUP(B126,BAZA_LIBOR_WIBOR_KURS!$C$2:$F$145,2,FALSE),C125)) -> -0.00732 | D126: 0.01 | E126: 23.51562359 | F126: 416.4213548 | G126: =IF(A126>$C$4,"_",$C$9-SUM($F$12:F126)) -> 104877.4156 | H126: =IF(A126>$C$4,"_",IFERROR(VLOOKUP(B126,BAZA_LIBOR_WIBOR_KURS!$C$2:$F$145,4,FALSE),H125)) -> 4.1 | I126: =IF(A126>$C$4,"_",IFERROR(VLOOKUP(B126,BAZA_LIBOR_WIBOR_KURS!$C$2:$F$145,3,FALSE),I125)) -> 0.0173 | J126: 0.02 | K126: 0 | L126: 961.83 | M126: -961.83 | N126: =IF(A126>$C$4,"_",$C$3-SUM($M$12:M126)) -> 310399.0991
A127: 116 | B127: 2018-04-01 | C127: =IF(A127>$C$4,"_",IFERROR(VLOOKUP(B127,BAZA_LIBOR_WIBOR_KURS!$C$2:$F$145,2,FALSE),C126)) -> -0.00732 | D127: 0.01 | E127: 23.42262282 | F127: 416.5143556 | G127: =IF(A127>$C$4,"_",$C$9-SUM($F$12:F127)) -> 104460.9012 | H127: =IF(A127>$C$4,"_",IFERROR(VLOOKUP(B127,BAZA_LIBOR_WIBOR_KURS!$C$2:$F$145,4,FALSE),H126)) -> 4.1 | I127: =IF(A127>$C$4,"_",IFERROR(VLOOKUP(B127,BAZA_LIBOR_WIBOR_KURS!$C$2:$F$145,3,FALSE),I126)) -> 0.0173 | J127: 0.02 | K127: 0 | L127: 964.82 | M127: -964.82 | N127: =IF(A127>$C$4,"_",$C$3-SUM($M$12:M127)) -> 311363.9191
A128: 117 | B128: 2018-05-01 | C128: =IF(A128>$C$4,"_",IFERROR(VLOOKUP(B128,BAZA_LIBOR_WIBOR_KURS!$C$2:$F$145,2,FALSE),C127)) -> -0.00732 | D128: 0.01 | E128: 23.32960128 | F128: 416.6073771 | G128: =IF(A128>$C$4,"_",$C$9-SUM($F$12:F128)) -> 104044.2939 | H128: =IF(A128>$C$4,"_",IFERROR(VLOOKUP(B128,BAZA_LIBOR_WIBOR_KURS!$C$2:$F$145,4,FALSE),H127)) -> 4.1 | I128: =IF(A128>$C$4,"_",IFERROR(VLOOKUP(B128,BAZA_LIBOR_WIBOR_KURS!$C$2:$F$145,3,FALSE),I127)) -> 0.0173 | J128: 0.02 | K128: 0 | L128: 967.82 | M128: -967.82 | N128: =IF(A128>$C$4,"_",$C$3-SUM($M$12:M128)) -> 312331.7391
A129: 118 | B129: 2018-06-01 | C129: =IF(A129>$C$4,"_",IFERROR(VLOOKUP(B129,BAZA_LIBOR_WIBOR_KURS!$C$2:$F$145,2,FALSE),C128)) -> -0.00732 | D129: 0.01 | E129: 23.23655896 | F129: 416.7004194 | G129: =IF(A129>$C$4,"_",$C$9-SUM($F$12:F129)) -> 103627.5934 | H129: =IF(A129>$C$4,"_",IFERROR(VLOOKUP(B129,BAZA_LIBOR_WIBOR_KURS!$C$2:$F$145,4,FALSE),H128)) -> 4.1 | I129: =IF(A129>$C$4,"_",IFERROR(VLOOKUP(B129,BAZA_LIBOR_WIBOR_KURS!$C$2:$F$145,3,FALSE),I128)) -> 0.0173 | J129: 0.02 | K129: 0 | L129: 970.83 | M129: -970.83 | N129: =IF(A129>$C$4,"_",$C$3-SUM($M$12:M129)) -> 313302.5691
A130: 119 | B130: 2018-07-01 | C130: =IF(A130>$C$4,"_",IFERROR(VLOOKUP(B130,BAZA_LIBOR_WIBOR_KURS!$C$2:$F$145,2,FALSE),C129)) -> -0.00732 | D130: 0.01 | E130: 23.14349587 | F130: 416.7934825 | G130: =IF(A130>$C$4,"_",$C$9-SUM($F$12:F130)) -> 103210.8 | H130: =IF(A130>$C$4,"_",IFERROR(VLOOKUP(B130,BAZA_LIBOR_WIBOR_KURS!$C$2:$F$145,4,FALSE),H129)) -> 4.1 | I130: =IF(A130>$C$4,"_",IFERROR(VLOOKUP(B130,BAZA_LIBOR_WIBOR_KURS!$C$2:$F$145,3,FALSE),I129)) -> 0.0173 | J130: 0.02 | K130: 0 | L130: 973.85 | M130: -973.85 | N130: =IF(A130>$C$4,"_",$C$3-SUM($M$12:M130)) -> 314276.4191
A131: 120 | B131: 2018-08-01 | C131: =IF(A131>$C$4,"_",IFERROR(VLOOKUP(B131,BAZA_LIBOR_WIBOR_KURS!$C$2:$F$145,2,FALSE),C130)) -> -0.00732 | D131: 0.01 | E131: 23.05041199 | F131: 416.8865664 | G131: =IF(A131>$C$4,"_",$C$9-SUM($F$12:F131)) -> 102793.9134 | H131: =IF(A131>$C$4,"_",IFERROR(VLOOKUP(B131,BAZA_LIBOR_WIBOR_KURS!$C$2:$F$145,4,FALSE),H130)) -> 4.1 | I131: =IF(A131>$C$4,"_",IFERROR(VLOOKUP(B131,BAZA_LIBOR_WIBOR_KURS!$C$2:$F$145,3,FALSE),I130)) -> 0.0173 | J131: 0.02 | K131: 0 | L131: 976.88 | M131: -976.88 | N131: =IF(A131>$C$4,"_",$C$3-SUM($M$12:M131)) -> 315253.2991
A132: 121 | B132: 2018-09-01 | C132: =IF(A132>$C$4,"_",IFERROR(VLOOKUP(B132,BAZA_LIBOR_WIBOR_KURS!$C$2:$F$145,2,FALSE),C131)) -> -0.00732 | D132: 0.01 | E132: 22.95730733 | F132: 416.9796711 | G132: =IF(A132>$C$4,"_",$C$9-SUM($F$12:F132)) -> 102376.9337 | H132: =IF(A132>$C$4,"_",IFERROR(VLOOKUP(B132,BAZA_LIBOR_WIBOR_KURS!$C$2:$F$145,4,FALSE),H131)) -> 4.1 | I132: =IF(A132>$C$4,"_",IFERROR(VLOOKUP(B132,BAZA_LIBOR_WIBOR_KURS!$C$2:$F$145,3,FALSE),I131)) -> 0.0173 | J132: 0.02 | K132: 0 | L132: 979.91 | M132: -979.91 | N132: =IF(A132>$C$4,"_",$C$3-SUM($M$12:M132)) -> 316233.2091
A133: 122 | B133: 2018-10-01 | C133: =IF(A133>$C$4,"_",IFERROR(VLOOKUP(B133,BAZA_LIBOR_WIBOR_KURS!$C$2:$F$145,2,FALSE),C132)) -> -0.00732 | D133: 0.01 | E133: 22.86418187 | F133: 417.0727965 | G133: =IF(A133>$C$4,"_",$C$9-SUM($F$12:F133)) -> 101959.8609 | H133: =IF(A133>$C$4,"_",IFERROR(VLOOKUP(B133,BAZA_LIBOR_WIBOR_KURS!$C$2:$F$145,4,FALSE),H132)) -> 4.1 | I133: =IF(A133>$C$4,"_",IFERROR(VLOOKUP(B133,BAZA_LIBOR_WIBOR_KURS!$C$2:$F$145,3,FALSE),I132)) -> 0.0173 | J133: 0.02 | K133: 0 | L133: 982.96 | M133: -982.96 | N133: =IF(A133>$C$4,"_",$C$3-SUM($M$12:M133)) -> 317216.1691
A134: 123 | B134: 2018-11-01 | C134: =IF(A134>$C$4,"_",IFERROR(VLOOKUP(B134,BAZA_LIBOR_WIBOR_KURS!$C$2:$F$145,2,FALSE),C133)) -> -0.00732 | D134: 0.01 | E134: 22.77103561 | F134: 417.1659428 | G134: =IF(A134>$C$4,"_",$C$9-SUM($F$12:F134)) -> 101542.695 | H134: =IF(A134>$C$4,"_",IFERROR(VLOOKUP(B134,BAZA_LIBOR_WIBOR_KURS!$C$2:$F$145,4,FALSE),H133)) -> 4.1 | I134: =IF(A134>$C$4,"_",IFERROR(VLOOKUP(B134,BAZA_LIBOR_WIBOR_KURS!$C$2:$F$145,3,FALSE),I133)) -> 0.0173 | J134: 0.02 | K134: 0 | L134: 986.01 | M134: -986.01 | N134: =IF(A134>$C$4,"_",$C$3-SUM($M$12:M134)) -> 318202.1791
A135: 124 | B135: 2018-12-01 | C135: =IF(A135>$C$4,"_",IFERROR(VLOOKUP(B135,BAZA_LIBOR_WIBOR_KURS!$C$2:$F$145,2,FALSE),C134)) -> -0.00732 | D135: 0.01 | E135: 22.67786855 | F135: 417.2591098 | G135: =IF(A135>$C$4,"_",$C$9-SUM($F$12:F135)) -> 101125.4359 | H135: =IF(A135>$C$4,"_",IFERROR(VLOOKUP(B135,BAZA_LIBOR_WIBOR_KURS!$C$2:$F$145,4,FALSE),H134)) -> 4.1 | I135: =IF(A135>$C$4,"_",IFERROR(VLOOKUP(B135,BAZA_LIBOR_WIBOR_KURS!$C$2:$F$145,3,FALSE),I134)) -> 0.0173 | J135: 0.02 | K135: 0 | L135: 989.08 | M135: -989.08 | N135: =IF(A135>$C$4,"_",$C$3-SUM($M$12:M135)) -> 319191.2591
A136: 125 | B136: 2019-01-01 | C136: =IF(A136>$C$4,"_",IFERROR(VLOOKUP(B136,BAZA_LIBOR_WIBOR_KURS!$C$2:$F$145,2,FALSE),C135)) -> -0.00732 | D136: 0.01 | E136: 22.58468068 | F136: 417.3522977 | G136: =IF(A136>$C$4,"_",$C$9-SUM($F$12:F136)) -> 100708.0836 | H136: =IF(A136>$C$4,"_",IFERROR(VLOOKUP(B136,BAZA_LIBOR_WIBOR_KURS!$C$2:$F$145,4,FALSE),H135)) -> 4.1 | I136: =IF(A136>$C$4,"_",IFERROR(VLOOKUP(B136,BAZA_LIBOR_WIBOR_KURS!$C$2:$F$145,3,FALSE),I135)) -> 0.0173 | J136: 0.02 | K136: 0 | L136: 992.15 | M136: -992.15 | N136: =IF(A136>$C$4,"_",$C$3-SUM($M$12:M136)) -> 320183.4091
A137: 126 | B137: 2019-02-01 | C137: =IF(A137>$C$4,"_",IFERROR(VLOOKUP(B137,BAZA_LIBOR_WIBOR_KURS!$C$2:$F$145,2,FALSE),C136)) -> -0.00732 | D137: 0.01 | E137: 22.491472 | F137: 417.4455064 | G137: =IF(A137>$C$4,"_",$C$9-SUM($F$12:F137)) -> 100290.6381 | H137: =IF(A137>$C$4,"_",IFERROR(VLOOKUP(B137,BAZA_LIBOR_WIBOR_KURS!$C$2:$F$145,4,FALSE),H136)) -> 4.1 | I137: =IF(A137>$C$4,"_",IFERROR(VLOOKUP(B137,BAZA_LIBOR_WIBOR_KURS!$C$2:$F$145,3,FALSE),I136)) -> 0.0173 | J137: 0.02 | K137: 0 | L137: 995.24 | M137: -995.24 | N137: =IF(A137>$C$4,"_",$C$3-SUM($M$12:M137)) -> 321178.6491
A138: 127 | B138: 2019-03-01 | C138: =IF(A138>$C$4,"_",IFERROR(VLOOKUP(B138,BAZA_LIBOR_WIBOR_KURS!$C$2:$F$145,2,FALSE),C137)) -> -0.00732 | D138: 0.01 | E138: 22.3982425 | F138: 417.5387359 | G138: =IF(A138>$C$4,"_",$C$9-SUM($F$12:F138)) -> 99873.09934 | H138: =IF(A138>$C$4,"_",IFERROR(VLOOKUP(B138,BAZA_LIBOR_WIBOR_KURS!$C$2:$F$145,4,FALSE),H137)) -> 4.1 | I138: =IF(A138>$C$4,"_",IFERROR(VLOOKUP(B138,BAZA_LIBOR_WIBOR_KURS!$C$2:$F$145,3,FALSE),I137)) -> 0.0173 | J138: 0.02 | K138: 0 | L138: 998.33 | M138: -998.33 | N138: =IF(A138>$C$4,"_",$C$3-SUM($M$12:M138)) -> 322176.9791
A139: 128 | B139: 2019-04-01 | C139: =IF(A139>$C$4,"_",IFERROR(VLOOKUP(B139,BAZA_LIBOR_WIBOR_KURS!$C$2:$F$145,2,FALSE),C138)) -> -0.00732 | D139: 0.01 | E139: 22.30499219 | F139: 417.6319862 | G139: =IF(A139>$C$4,"_",$C$9-SUM($F$12:F139)) -> 99455.46735 | H139: =IF(A139>$C$4,"_",IFERROR(VLOOKUP(B139,BAZA_LIBOR_WIBOR_KURS!$C$2:$F$145,4,FALSE),H138)) -> 4.1 | I139: =IF(A139>$C$4,"_",IFERROR(VLOOKUP(B139,BAZA_LIBOR_WIBOR_KURS!$C$2:$F$145,3,FALSE),I138)) -> 0.0173 | J139: 0.02 | K139: 0 | L139: 1001.43 | M139: -1001.43 | N139: =IF(A139>$C$4,"_",$C$3-SUM($M$12:M139)) -> 323178.4091
A140: 129 | B140: 2019-05-01 | C140: =IF(A140>$C$4,"_",IFERROR(VLOOKUP(B140,BAZA_LIBOR_WIBOR_KURS!$C$2:$F$145,2,FALSE),C139)) -> -0.00732 | D140: 0.01 | E140: 22.21172104 | F140: 417.7252573 | G140: =IF(A140>$C$4,"_",$C$9-SUM($F$12:F140)) -> 99037.74209 | H140: =IF(A140>$C$4,"_",IFERROR(VLOOKUP(B140,BAZA_LIBOR_WIBOR_KURS!$C$2:$F$145,4,FALSE),H139)) -> 4.1 | I140: =IF(A140>$C$4,"_",IFERROR(VLOOKUP(B140,BAZA_LIBOR_WIBOR_KURS!$C$2:$F$145,3,FALSE),I139)) -> 0.0173 | J140: 0.02 | K140: =IF(A140>$C$4,"_",IF(B140>$F$5,0,H140*(E140+F140))) -> 0 | L140: 1004.55 | M140: -1004.55 | N140: =IF(A140>$C$4,"_",$C$3-SUM($M$12:M140)) -> 324182.9591
A141: 130 | B141: =IF(A141>$C$4,"_",DATE(YEAR(B140),MONTH(B140)+1,1)) -> 2019-06-01 | C141: =IF(A141>$C$4,"_",IFERROR(VLOOKUP(B141,BAZA_LIBOR_WIBOR_KURS!$C$2:$F$145,2,FALSE),C140)) -> -0.00732 | D141: =IF(A141>$C$4,"_",D140) -> 0.01 | E141: =IF(A141>$C$4,"_",IPMT((C141+D141)/12,1,$C$4-A140,-G140)) -> 22.11842907 | F141: =IF(A141>$C$4,"_",PPMT((C141+D141)/12,1,$C$4-A140,-G140)) -> 417.8185493 | G141: =IF(A141>$C$4,"_",$C$9-SUM($F$12:F141)) -> 98619.92354 | H141: =IF(A141>$C$4,"_",IFERROR(VLOOKUP(B141,BAZA_LIBOR_WIBOR_KURS!$C$2:$F$145,4,FALSE),H140)) -> 4.1 | I141: =IF(A141>$C$4,"_",IFERROR(VLOOKUP(B141,BAZA_LIBOR_WIBOR_KURS!$C$2:$F$145,3,FALSE),I140)) -> 0.0173 | J141: =IF(A141>$C$4,"_",J140) -> 0.02 | K141: 0 | L141: =IF(A141>$C$4,"_",IF(N140<0,0,ROUND(N140*(I141+J141)/12,2))) -> 1007.67 | M141: =IFERROR(K141-L141,"_") -> -1007.67 | N141: =IF(A141>$C$4,"_",$C$3-SUM($M$12:M141)) -> 325190.6291
A142: =A141+1 -> 131 | B142: 2019-07-01 | C142: =IF(A142>$C$4,"_",IFERROR(VLOOKUP(B142,BAZA_LIBOR_WIBOR_KURS!$C$2:$F$145,2,FALSE),C141)) -> -0.00732 | D142: 0.01 | E142: 22.02511626 | F142: 417.9118621 | G142: =IF(A142>$C$4,"_",$C$9-SUM($F$12:F142)) -> 98202.01168 | H142: =IF(A142>$C$4,"_",IFERROR(VLOOKUP(B142,BAZA_LIBOR_WIBOR_KURS!$C$2:$F$145,4,FALSE),H141)) -> 4.1 | I142: =IF(A142>$C$4,"_",IFERROR(VLOOKUP(B142,BAZA_LIBOR_WIBOR_KURS!$C$2:$F$145,3,FALSE),I141)) -> 0.0173 | J142: 0.02 | K142: 0 | L142: 1010.8 | M142: -1010.8 | N142: =IF(A142>$C$4,"_",$C$3-SUM($M$12:M142)) -> 326201.4291
A143: 132 | B143: 2019-08-01 | C143: =IF(A143>$C$4,"_",IFERROR(VLOOKUP(B143,BAZA_LIBOR_WIBOR_KURS!$C$2:$F$145,2,FALSE),C142)) -> -0.00732 | D143: 0.01 | E143: 21.93178261 | F143: 418.0051958 | G143: =IF(A143>$C$4,"_",$C$9-SUM($F$12:F143)) -> 97784.00649 | H143: =IF(A143>$C$4,"_",IFERROR(VLOOKUP(B143,BAZA_LIBOR_WIBOR_KURS!$C$2:$F$145,4,FALSE),H142)) -> 4.1 | I143: =IF(A143>$C$4,"_",IFERROR(VLOOKUP(B143,BAZA_LIBOR_WIBOR_KURS!$C$2:$F$145,3,FALSE),I142)) -> 0.0173 | J143: 0.02 | K143: 0 | L143: 1013.94 | M143: -1013.94 | N143: =IF(A143>$C$4,"_",$C$3-SUM($M$12:M143)) -> 327215.3691
A144: 133 | B144: 2019-09-01 | C144: =IF(A144>$C$4,"_",IFERROR(VLOOKUP(B144,BAZA_LIBOR_WIBOR_KURS!$C$2:$F$145,2,FALSE),C143)) -> -0.00732 | D144: 0.01 | E144: 21.83842812 | F144: 418.0985503 | G144: =IF(A144>$C$4,"_",$C$9-SUM($F$12:F144)) -> 97365.90794 | H144: =IF(A144>$C$4,"_",IFERROR(VLOOKUP(B144,BAZA_LIBOR_WIBOR_KURS!$C$2:$F$145,4,FALSE),H143)) -> 4.1 | I144: =IF(A144>$C$4,"_",IFERROR(VLOOKUP(B144,BAZA_LIBOR_WIBOR_KURS!$C$2:$F$145,3,FALSE),I143)) -> 0.0173 | J144: 0.02 | K144: 0 | L144: 1017.09 | M144: -1017.09 | N144: =IF(A144>$C$4,"_",$C$3-SUM($M$12:M144)) -> 328232.4591
A145: 134 | B145: 2019-10-01 | C145: =IF(A145>$C$4,"_",IFERROR(VLOOKUP(B145,BAZA_LIBOR_WIBOR_KURS!$C$2:$F$145,2,FALSE),C144)) -> -0.00732 | D145: 0.01 | E145: 21.74505277 | F145: 418.1919256 | G145: =IF(A145>$C$4,"_",$C$9-SUM($F$12:F145)) -> 96947.71601 | H145: =IF(A145>$C$4,"_",IFERROR(VLOOKUP(B145,BAZA_LIBOR_WIBOR_KURS!$C$2:$F$145,4,FALSE),H144)) -> 4.1 | I145: =IF(A145>$C$4,"_",IFERROR(VLOOKUP(B145,BAZA_LIBOR_WIBOR_KURS!$C$2:$F$145,3,FALSE),I144)) -> 0.0173 | J145: 0.02 | K145: 0 | L145: 1020.26 | M145: -1020.26 | N145: =IF(A145>$C$4,"_",$C$3-SUM($M$12:M145)) -> 329252.7191
A146: 135 | B146: 2019-11-01 | C146: =IF(A146>$C$4,"_",IFERROR(VLOOKUP(B146,BAZA_LIBOR_WIBOR_KURS!$C$2:$F$145,2,FALSE),C145)) -> -0.00732 | D146: 0.01 | E146: 21.65165658 | F146: 418.2853218 | G146: =IF(A146>$C$4,"_",$C$9-SUM($F$12:F146)) -> 96529.43069 | H146: =IF(A146>$C$4,"_",IFERROR(VLOOKUP(B146,BAZA_LIBOR_WIBOR_KURS!$C$2:$F$145,4,FALSE),H145)) -> 4.1 | I146: =IF(A146>$C$4,"_",IFERROR(VLOOKUP(B146,BAZA_LIBOR_WIBOR_KURS!$C$2:$F$145,3,FALSE),I145)) -> 0.0173 | J146: 0.02 | K146: 0 | L146: 1023.43 | M146: -1023.43 | N146: =IF(A146>$C$4,"_",$C$3-SUM($M$12:M146)) -> 330276.1491
A147: 136 | B147: 2019-12-01 | C147: =IF(A147>$C$4,"_",IFERROR(VLOOKUP(B147,BAZA_LIBOR_WIBOR_KURS!$C$2:$F$145,2,FALSE),C146)) -> -0.00732 | D147: 0.01 | E147: 21.55823952 | F147: 418.3787389 | G147: =IF(A147>$C$4,"_",$C$9-SUM($F$12:F147)) -> 96111.05195 | H147: =IF(A147>$C$4,"_",IFERROR(VLOOKUP(B147,BAZA_LIBOR_WIBOR_KURS!$C$2:$F$145,4,FALSE),H146)) -> 4.1 | I147: =IF(A147>$C$4,"_",IFERROR(VLOOKUP(B147,BAZA_LIBOR_WIBOR_KURS!$C$2:$F$145,3,FALSE),I146)) -> 0.0173 | J147: 0.02 | K147: 0 | L147: 1026.61 | M147: -1026.61 | N147: =IF(A147>$C$4,"_",$C$3-SUM($M$12:M147)) -> 331302.7591
A148: 137 | B148: 2020-01-01 | C148: =IF(A148>$C$4,"_",IFERROR(VLOOKUP(B148,BAZA_LIBOR_WIBOR_KURS!$C$2:$F$145,2,FALSE),C147)) -> -0.00732 | D148: 0.01 | E148: 21.4648016 | F148: 418.4721768 | G148: =IF(A148>$C$4,"_",$C$9-SUM($F$12:F148)) -> 95692.57977 | H148: =IF(A148>$C$4,"_",IFERROR(VLOOKUP(B148,BAZA_LIBOR_WIBOR_KURS!$C$2:$F$145,4,FALSE),H147)) -> 4.1 | I148: =IF(A148>$C$4,"_",IFERROR(VLOOKUP(B148,BAZA_LIBOR_WIBOR_KURS!$C$2:$F$145,3,FALSE),I147)) -> 0.0173 | J148: 0.02 | K148: 0 | L148: 1029.8 | M148: -1029.8 | N148: =IF(A148>$C$4,"_",$C$3-SUM($M$12:M148)) -> 332332.5591
A149: 138 | B149: 2020-02-01 | C149: =IF(A149>$C$4,"_",IFERROR(VLOOKUP(B149,BAZA_LIBOR_WIBOR_KURS!$C$2:$F$145,2,FALSE),C148)) -> -0.00732 | D149: 0.01 | E149: 21.37134282 | F149: 418.5656356 | G149: =IF(A149>$C$4,"_",$C$9-SUM($F$12:F149)) -> 95274.01414 | H149: =IF(A149>$C$4,"_",IFERROR(VLOOKUP(B149,BAZA_LIBOR_WIBOR_KURS!$C$2:$F$145,4,FALSE),H148)) -> 4.1 | I149: =IF(A149>$C$4,"_",IFERROR(VLOOKUP(B149,BAZA_LIBOR_WIBOR_KURS!$C$2:$F$145,3,FALSE),I148)) -> 0.0173 | J149: 0.02 | K149: 0 | L149: 1033 | M149: -1033 | N149: =IF(A149>$C$4,"_",$C$3-SUM($M$12:M149)) -> 333365.5591
A150: 139 | B150: 2020-03-01 | C150: =IF(A150>$C$4,"_",IFERROR(VLOOKUP(B150,BAZA_LIBOR_WIBOR_KURS!$C$2:$F$145,2,FALSE),C149)) -> -0.00732 | D150: 0.01 | E150: 21.27786316 | F150: 418.6591152 | G150: =IF(A150>$C$4,"_",$C$9-SUM($F$12:F150)) -> 94855.35502 | H150: =IF(A150>$C$4,"_",IFERROR(VLOOKUP(B150,BAZA_LIBOR_WIBOR_KURS!$C$2:$F$145,4,FALSE),H149)) -> 4.1 | I150: =IF(A150>$C$4,"_",IFERROR(VLOOKUP(B150,BAZA_LIBOR_WIBOR_KURS!$C$2:$F$145,3,FALSE),I149)) -> 0.0173 | J150: 0.02 | K150: 0 | L150: 1036.21 | M150: -1036.21 | N150: =IF(A150>$C$4,"_",$C$3-SUM($M$12:M150)) -> 334401.7691
A151: 140 | B151: 2020-04-01 | C151: =IF(A151>$C$4,"_",IFERROR(VLOOKUP(B151,BAZA_LIBOR_WIBOR_KURS!$C$2:$F$145,2,FALSE),C150)) -> -0.00732 | D151: 0.01 | E151: 21.18436262 | F151: 418.7526158 | G151: =IF(A151>$C$4,"_",$C$9-SUM($F$12:F151)) -> 94436.60241 | H151: =IF(A151>$C$4,"_",IFERROR(VLOOKUP(B151,BAZA_LIBOR_WIBOR_KURS!$C$2:$F$145,4,FALSE),H150)) -> 4.1 | I151: =IF(A151>$C$4,"_",IFERROR(VLOOKUP(B151,BAZA_LIBOR_WIBOR_KURS!$C$2:$F$145,3,FALSE),I150)) -> 0.0173 | J151: 0.02 | K151: 0 | L151: 1039.43 | M151: -1039.43 | N151: =IF(A151>$C$4,"_",$C$3-SUM($M$12:M151)) -> 335441.1991
A152: 141 | B152: 2020-05-01 | C152: =IF(A152>$C$4,"_",IFERROR(VLOOKUP(B152,BAZA_LIBOR_WIBOR_KURS!$C$2:$F$145,2,FALSE),C151)) -> -0.00732 | D152: 0.01 | E152: 21.0908412 | F152: 418.8461372 | G152: =IF(A152>$C$4,"_",$C$9-SUM($F$12:F152)) -> 94017.75627 | H152: =IF(A152>$C$4,"_",IFERROR(VLOOKUP(B152,BAZA_LIBOR_WIBOR_KURS!$C$2:$F$145,4,FALSE),H151)) -> 4.1 | I152: =IF(A152>$C$4,"_",IFERROR(VLOOKUP(B152,BAZA_LIBOR_WIBOR_KURS!$C$2:$F$145,3,FALSE),I151)) -> 0.0173 | J152: 0.02 | K152: 0 | L152: 1042.66 | M152: -1042.66 | N152: =IF(A152>$C$4,"_",$C$3-SUM($M$12:M152)) -> 336483.8591
A153: 142 | B153: 2020-06-01 | C153: =IF(A153>$C$4,"_",IFERROR(VLOOKUP(B153,BAZA_LIBOR_WIBOR_KURS!$C$2:$F$145,2,FALSE),C152)) -> -0.00732 | D153: 0.01 | E153: 20.9972989 | F153: 418.9396795 | G153: =IF(A153>$C$4,"_",$C$9-SUM($F$12:F153)) -> 93598.81659 | H153: =IF(A153>$C$4,"_",IFERROR(VLOOKUP(B153,BAZA_LIBOR_WIBOR_KURS!$C$2:$F$145,4,FALSE),H152)) -> 4.1 | I153: =IF(A153>$C$4,"_",IFERROR(VLOOKUP(B153,BAZA_LIBOR_WIBOR_KURS!$C$2:$F$145,3,FALSE),I152)) -> 0.0173 | J153: 0.02 | K153: 0 | L153: 1045.9 | M153: -1045.9 | N153: =IF(A153>$C$4,"_",$C$3-SUM($M$12:M153)) -> 337529.7591
A154: 143 | B154: 2020-07-01 | C154: =IF(A154>$C$4,"_",IFERROR(VLOOKUP(B154,BAZA_LIBOR_WIBOR_KURS!$C$2:$F$145,2,FALSE),C153)) -> -0.00732 | D154: 0.01 | E154: 20.90373571 | F154: 419.0332427 | G154: =IF(A154>$C$4,"_",$C$9-SUM($F$12:F154)) -> 93179.78335 | H154: =IF(A154>$C$4,"_",IFERROR(VLOOKUP(B154,BAZA_LIBOR_WIBOR_KURS!$C$2:$F$145,4,FALSE),H153)) -> 4.1 | I154: =IF(A154>$C$4,"_",IFERROR(VLOOKUP(B154,BAZA_LIBOR_WIBOR_KURS!$C$2:$F$145,3,FALSE),I153)) -> 0.0173 | J154: 0.02 | K154: 0 | L154: 1049.16 | M154: -1049.16 | N154: =IF(A154>$C$4,"_",$C$3-SUM($M$12:M154)) -> 338578.9191
A155: 144 | B155: 2020-08-01 | C155: =IF(A155>$C$4,"_",IFERROR(VLOOKUP(B155,BAZA_LIBOR_WIBOR_KURS!$C$2:$F$145,2,FALSE),C154)) -> -0.00732 | D155: 0.01 | E155: 20.81015161 | F155: 419.1268268 | G155: =IF(A155>$C$4,"_",$C$9-SUM($F$12:F155)) -> 92760.65652 | H155: =IF(A155>$C$4,"_",IFERROR(VLOOKUP(B155,BAZA_LIBOR_WIBOR_KURS!$C$2:$F$145,4,FALSE),H154)) -> 4.1 | I155: =IF(A155>$C$4,"_",IFERROR(VLOOKUP(B155,BAZA_LIBOR_WIBOR_KURS!$C$2:$F$145,3,FALSE),I154)) -> 0.0173 | J155: 0.02 | K155: 0 | L155: 1052.42 | M155: -1052.42 | N155: =IF(A155>$C$4,"_",$C$3-SUM($M$12:M155)) -> 339631.3391
A156: 145 | B156: 2020-09-01 | C156: =IF(A156>$C$4,"_",IFERROR(VLOOKUP(B156,BAZA_LIBOR_WIBOR_KURS!$C$2:$F$145,2,FALSE),C155)) -> -0.00732 | D156: 0.01 | E156: 20.71654662 | F156: 419.2204318 | G156: =IF(A156>$C$4,"_",$C$9-SUM($F$12:F156)) -> 92341.43609 | H156: =IF(A156>$C$4,"_",IFERROR(VLOOKUP(B156,BAZA_LIBOR_WIBOR_KURS!$C$2:$F$145,4,FALSE),H155)) -> 4.1 | I156: =IF(A156>$C$4,"_",IFERROR(VLOOKUP(B156,BAZA_LIBOR_WIBOR_KURS!$C$2:$F$145,3,FALSE),I155)) -> 0.0173 | J156: 0.02 | K156: 0 | L156: 1055.69 | M156: -1055.69 | N156: =IF(A156>$C$4,"_",$C$3-SUM($M$12:M156)) -> 340687.0291
A157: 146 | B157: 2020-10-01 | C157: =IF(A157>$C$4,"_",IFERROR(VLOOKUP(B157,BAZA_LIBOR_WIBOR_KURS!$C$2:$F$145,2,FALSE),C156)) -> -0.00732 | D157: 0.01 | E157: 20.62292073 | F157: 419.3140577 | G157: =IF(A157>$C$4,"_",$C$9-SUM($F$12:F157)) -> 91922.12203 | H157: =IF(A157>$C$4,"_",IFERROR(VLOOKUP(B157,BAZA_LIBOR_WIBOR_KURS!$C$2:$F$145,4,FALSE),H156)) -> 4.1 | I157: =IF(A157>$C$4,"_",IFERROR(VLOOKUP(B157,BAZA_LIBOR_WIBOR_KURS!$C$2:$F$145,3,FALSE),I156)) -> 0.0173 | J157: 0.02 | K157: 0 | L157: 1058.97 | M157: -1058.97 | N157: =IF(A157>$C$4,"_",$C$3-SUM($M$12:M157)) -> 341745.9991
A158: 147 | B158: 2020-11-01 | C158: =IF(A158>$C$4,"_",IFERROR(VLOOKUP(B158,BAZA_LIBOR_WIBOR_KURS!$C$2:$F$145,2,FALSE),C157)) -> -0.00732 | D158: 0.01 | E158: 20.52927392 | F158: 419.4077045 | G158: =IF(A158>$C$4,"_",$C$9-SUM($F$12:F158)) -> 91502.71433 | H158: =IF(A158>$C$4,"_",IFERROR(VLOOKUP(B158,BAZA_LIBOR_WIBOR_KURS!$C$2:$F$145,4,FALSE),H157)) -> 4.1 | I158: =IF(A158>$C$4,"_",IFERROR(VLOOKUP(B158,BAZA_LIBOR_WIBOR_KURS!$C$2:$F$145,3,FALSE),I157)) -> 0.0173 | J158: 0.02 | K158: 0 | L158: 1062.26 | M158: -1062.26 | N158: =IF(A158>$C$4,"_",$C$3-SUM($M$12:M158)) -> 342808.2591
A159: 148 | B159: 2020-12-01 | C159: =IF(A159>$C$4,"_",IFERROR(VLOOKUP(B159,BAZA_LIBOR_WIBOR_KURS!$C$2:$F$145,2,FALSE),C158)) -> -0.00732 | D159: 0.01 | E159: 20.4356062 | F159: 419.5013722 | G159: =IF(A159>$C$4,"_",$C$9-SUM($F$12:F159)) -> 91083.21295 | H159: =IF(A159>$C$4,"_",IFERROR(VLOOKUP(B159,BAZA_LIBOR_WIBOR_KURS!$C$2:$F$145,4,FALSE),H158)) -> 4.1 | I159: =IF(A159>$C$4,"_",IFERROR(VLOOKUP(B159,BAZA_LIBOR_WIBOR_KURS!$C$2:$F$145,3,FALSE),I158)) -> 0.0173 | J159: 0.02 | K159: 0 | L159: 1065.56 | M159: -1065.56 | N159: =IF(A159>$C$4,"_",$C$3-SUM($M$12:M159)) -> 343873.8191
A160: 149 | B160: 2021-01-01 | C160: =IF(A160>$C$4,"_",IFERROR(VLOOKUP(B160,BAZA_LIBOR_WIBOR_KURS!$C$2:$F$145,2,FALSE),C159)) -> -0.00732 | D160: 0.01 | E160: 20.34191756 | F160: 419.5950608 | G160: =IF(A160>$C$4,"_",$C$9-SUM($F$12:F160)) -> 90663.61789 | H160: =IF(A160>$C$4,"_",IFERROR(VLOOKUP(B160,BAZA_LIBOR_WIBOR_KURS!$C$2:$F$145,4,FALSE),H159)) -> 4.1 | I160: =IF(A160>$C$4,"_",IFERROR(VLOOKUP(B160,BAZA_LIBOR_WIBOR_KURS!$C$2:$F$145,3,FALSE),I159)) -> 0.0173 | J160: 0.02 | K160: 0 | L160: 1068.87 | M160: -1068.87 | N160: =IF(A160>$C$4,"_",$C$3-SUM($M$12:M160)) -> 344942.6891
A161: 150 | B161: 2021-02-01 | C161: =IF(A161>$C$4,"_",IFERROR(VLOOKUP(B161,BAZA_LIBOR_WIBOR_KURS!$C$2:$F$145,2,FALSE),C160)) -> -0.00732 | D161: 0.01 | E161: 20.248208 | F161: 419.6887704 | G161: =IF(A161>$C$4,"_",$C$9-SUM($F$12:F161)) -> 90243.92912 | H161: =IF(A161>$C$4,"_",IFERROR(VLOOKUP(B161,BAZA_LIBOR_WIBOR_KURS!$C$2:$F$145,4,FALSE),H160)) -> 4.1 | I161: =IF(A161>$C$4,"_",IFERROR(VLOOKUP(B161,BAZA_LIBOR_WIBOR_KURS!$C$2:$F$145,3,FALSE),I160)) -> 0.0173 | J161: 0.02 | K161: 0 | L161: 1072.2 | M161: -1072.2 | N161: =IF(A161>$C$4,"_",$C$3-SUM($M$12:M161)) -> 346014.8891
A162: 151 | B162: 2021-03-01 | C162: =IF(A162>$C$4,"_",IFERROR(VLOOKUP(B162,BAZA_LIBOR_WIBOR_KURS!$C$2:$F$145,2,FALSE),C161)) -> -0.00732 | D162: 0.01 | E162: 20.1544775 | F162: 419.7825009 | G162: =IF(A162>$C$4,"_",$C$9-SUM($F$12:F162)) -> 89824.14662 | H162: =IF(A162>$C$4,"_",IFERROR(VLOOKUP(B162,BAZA_LIBOR_WIBOR_KURS!$C$2:$F$145,4,FALSE),H161)) -> 4.1 | I162: =IF(A162>$C$4,"_",IFERROR(VLOOKUP(B162,BAZA_LIBOR_WIBOR_KURS!$C$2:$F$145,3,FALSE),I161)) -> 0.0173 | J162: 0.02 | K162: 0 | L162: 1075.53 | M162: -1075.53 | N162: =IF(A162>$C$4,"_",$C$3-SUM($M$12:M162)) -> 347090.4191
A163: 152 | B163: 2021-04-01 | C163: =IF(A163>$C$4,"_",IFERROR(VLOOKUP(B163,BAZA_LIBOR_WIBOR_KURS!$C$2:$F$145,2,FALSE),C162)) -> -0.00732 | D163: 0.01 | E163: 20.06072608 | F163: 419.8762523 | G163: =IF(A163>$C$4,"_",$C$9-SUM($F$12:F163)) -> 89404.27037 | H163: =IF(A163>$C$4,"_",IFERROR(VLOOKUP(B163,BAZA_LIBOR_WIBOR_KURS!$C$2:$F$145,4,FALSE),H162)) -> 4.1 | I163: =IF(A163>$C$4,"_",IFERROR(VLOOKUP(B163,BAZA_LIBOR_WIBOR_KURS!$C$2:$F$145,3,FALSE),I162)) -> 0.0173 | J163: 0.02 | K163: 0 | L163: 1078.87 | M163: -1078.87 | N163: =IF(A163>$C$4,"_",$C$3-SUM($M$12:M163)) -> 348169.2891
A164: 153 | B164: 2021-05-01 | C164: =IF(A164>$C$4,"_",IFERROR(VLOOKUP(B164,BAZA_LIBOR_WIBOR_KURS!$C$2:$F$145,2,FALSE),C163)) -> -0.00732 | D164: 0.01 | E164: 19.96695372 | F164: 419.9700247 | G164: =IF(A164>$C$4,"_",$C$9-SUM($F$12:F164)) -> 88984.30035 | H164: =IF(A164>$C$4,"_",IFERROR(VLOOKUP(B164,BAZA_LIBOR_WIBOR_KURS!$C$2:$F$145,4,FALSE),H163)) -> 4.1 | I164: =IF(A164>$C$4,"_",IFERROR(VLOOKUP(B164,BAZA_LIBOR_WIBOR_KURS!$C$2:$F$145,3,FALSE),I163)) -> 0.0173 | J164: 0.02 | K164: 0 | L164: 1082.23 | M164: -1082.23 | N164: =IF(A164>$C$4,"_",$C$3-SUM($M$12:M164)) -> 349251.5191
A165: 154 | B165: 2021-06-01 | C165: =IF(A165>$C$4,"_",IFERROR(VLOOKUP(B165,BAZA_LIBOR_WIBOR_KURS!$C$2:$F$145,2,FALSE),C164)) -> -0.00732 | D165: 0.01 | E165: 19.87316041 | F165: 420.063818 | G165: =IF(A165>$C$4,"_",$C$9-SUM($F$12:F165)) -> 88564.23653 | H165: =IF(A165>$C$4,"_",IFERROR(VLOOKUP(B165,BAZA_LIBOR_WIBOR_KURS!$C$2:$F$145,4,FALSE),H164)) -> 4.1 | I165: =IF(A165>$C$4,"_",IFERROR(VLOOKUP(B165,BAZA_LIBOR_WIBOR_KURS!$C$2:$F$145,3,FALSE),I164)) -> 0.0173 | J165: 0.02 | K165: 0 | L165: 1085.59 | M165: -1085.59 | N165: =IF(A165>$C$4,"_",$C$3-SUM($M$12:M165)) -> 350337.1091
A166: 155 | B166: 2021-07-01 | C166: =IF(A166>$C$4,"_",IFERROR(VLOOKUP(B166,BAZA_LIBOR_WIBOR_KURS!$C$2:$F$145,2,FALSE),C165)) -> -0.00732 | D166: 0.01 | E166: 19.77934616 | F166: 420.1576322 | G166: =IF(A166>$C$4,"_",$C$9-SUM($F$12:F166)) -> 88144.0789 | H166: =IF(A166>$C$4,"_",IFERROR(VLOOKUP(B166,BAZA_LIBOR_WIBOR_KURS!$C$2:$F$145,4,FALSE),H165)) -> 4.1 | I166: =IF(A166>$C$4,"_",IFERROR(VLOOKUP(B166,BAZA_LIBOR_WIBOR_KURS!$C$2:$F$145,3,FALSE),I165)) -> 0.0173 | J166: 0.02 | K166: 0 | L166: 1088.96 | M166: -1088.96 | N166: =IF(A166>$C$4,"_",$C$3-SUM($M$12:M166)) -> 351426.0691
A167: 156 | B167: 2021-08-01 | C167: =IF(A167>$C$4,"_",IFERROR(VLOOKUP(B167,BAZA_LIBOR_WIBOR_KURS!$C$2:$F$145,2,FALSE),C166)) -> -0.00732 | D167: 0.01 | E167: 19.68551095 | F167: 420.2514674 | G167: =IF(A167>$C$4,"_",$C$9-SUM($F$12:F167)) -> 87723.82743 | H167: =IF(A167>$C$4,"_",IFERROR(VLOOKUP(B167,BAZA_LIBOR_WIBOR_KURS!$C$2:$F$145,4,FALSE),H166)) -> 4.1 | I167: =IF(A167>$C$4,"_",IFERROR(VLOOKUP(B167,BAZA_LIBOR_WIBOR_KURS!$C$2:$F$145,3,FALSE),I166)) -> 0.0173 | J167: 0.02 | K167: 0 | L167: 1092.35 | M167: -1092.35 | N167: =IF(A167>$C$4,"_",$C$3-SUM($M$12:M167)) -> 352518.4191
A168: 157 | B168: 2021-09-01 | C168: =IF(A168>$C$4,"_",IFERROR(VLOOKUP(B168,BAZA_LIBOR_WIBOR_KURS!$C$2:$F$145,2,FALSE),C167)) -> -0.00732 | D168: 0.01 | E168: 19.59165479 | F168: 420.3453236 | G168: =IF(A168>$C$4,"_",$C$9-SUM($F$12:F168)) -> 87303.4821 | H168: =IF(A168>$C$4,"_",IFERROR(VLOOKUP(B168,BAZA_LIBOR_WIBOR_KURS!$C$2:$F$145,4,FALSE),H167)) -> 4.1 | I168: =IF(A168>$C$4,"_",IFERROR(VLOOKUP(B168,BAZA_LIBOR_WIBOR_KURS!$C$2:$F$145,3,FALSE),I167)) -> 0.0173 | J168: 0.02 | K168: 0 | L168: 1095.74 | M168: -1095.74 | N168: =IF(A168>$C$4,"_",$C$3-SUM($M$12:M168)) -> 353614.1591
A169: 158 | B169: 2021-10-01 | C169: =IF(A169>$C$4,"_",IFERROR(VLOOKUP(B169,BAZA_LIBOR_WIBOR_KURS!$C$2:$F$145,2,FALSE),C168)) -> -0.00732 | D169: 0.01 | E169: 19.49777767 | F169: 420.4392007 | G169: =IF(A169>$C$4,"_",$C$9-SUM($F$12:F169)) -> 86883.0429 | H169: =IF(A169>$C$4,"_",IFERROR(VLOOKUP(B169,BAZA_LIBOR_WIBOR_KURS!$C$2:$F$145,4,FALSE),H168)) -> 4.1 | I169: =IF(A169>$C$4,"_",IFERROR(VLOOKUP(B169,BAZA_LIBOR_WIBOR_KURS!$C$2:$F$145,3,FALSE),I168)) -> 0.0173 | J169: 0.02 | K169: 0 | L169: 1099.15 | M169: -1099.15 | N169: =IF(A169>$C$4,"_",$C$3-SUM($M$12:M169)) -> 354713.3091
A170: 159 | B170: 2021-11-01 | C170: =IF(A170>$C$4,"_",IFERROR(VLOOKUP(B170,BAZA_LIBOR_WIBOR_KURS!$C$2:$F$145,2,FALSE),C169)) -> -0.00732 | D170: 0.01 | E170: 19.40387958 | F170: 420.5330988 | G170: =IF(A170>$C$4,"_",$C$9-SUM($F$12:F170)) -> 86462.50981 | H170: =IF(A170>$C$4,"_",IFERROR(VLOOKUP(B170,BAZA_LIBOR_WIBOR_KURS!$C$2:$F$145,4,FALSE),H169)) -> 4.1 | I170: =IF(A170>$C$4,"_",IFERROR(VLOOKUP(B170,BAZA_LIBOR_WIBOR_KURS!$C$2:$F$145,3,FALSE),I169)) -> 0.0173 | J170: 0.02 | K170: 0 | L170: 1102.57 | M170: -1102.57 | N170: =IF(A170>$C$4,"_",$C$3-SUM($M$12:M170)) -> 355815.8791
A171: 160 | B171: 2021-12-01 | C171: =IF(A171>$C$4,"_",IFERROR(VLOOKUP(B171,BAZA_LIBOR_WIBOR_KURS!$C$2:$F$145,2,FALSE),C170)) -> -0.00732 | D171: 0.01 | E171: 19.30996052 | F171: 420.6270179 | G171: =IF(A171>$C$4,"_",$C$9-SUM($F$12:F171)) -> 86041.88279 | H171: =IF(A171>$C$4,"_",IFERROR(VLOOKUP(B171,BAZA_LIBOR_WIBOR_KURS!$C$2:$F$145,4,FALSE),H170)) -> 4.1 | I171: =IF(A171>$C$4,"_",IFERROR(VLOOKUP(B171,BAZA_LIBOR_WIBOR_KURS!$C$2:$F$145,3,FALSE),I170)) -> 0.0173 | J171: 0.02 | K171: 0 | L171: 1105.99 | M171: -1105.99 | N171: =IF(A171>$C$4,"_",$C$3-SUM($M$12:M171)) -> 356921.8691
A172: 161 | B172: 2022-01-01 | C172: =IF(A172>$C$4,"_",IFERROR(VLOOKUP(B172,BAZA_LIBOR_WIBOR_KURS!$C$2:$F$145,2,FALSE),C171)) -> -0.00732 | D172: 0.01 | E172: 19.21602049 | F172: 420.7209579 | G172: =IF(A172>$C$4,"_",$C$9-SUM($F$12:F172)) -> 85621.16183 | H172: =IF(A172>$C$4,"_",IFERROR(VLOOKUP(B172,BAZA_LIBOR_WIBOR_KURS!$C$2:$F$145,4,FALSE),H171)) -> 4.1 | I172: =IF(A172>$C$4,"_",IFERROR(VLOOKUP(B172,BAZA_LIBOR_WIBOR_KURS!$C$2:$F$145,3,FALSE),I171)) -> 0.0173 | J172: 0.02 | K172: 0 | L172: 1109.43 | M172: -1109.43 | N172: =IF(A172>$C$4,"_",$C$3-SUM($M$12:M172)) -> 358031.2991
A173: 162 | B173: 2022-02-01 | C173: =IF(A173>$C$4,"_",IFERROR(VLOOKUP(B173,BAZA_LIBOR_WIBOR_KURS!$C$2:$F$145,2,FALSE),C172)) -> -0.00732 | D173: 0.01 | E173: 19.12205948 | F173: 420.8149189 | G173: =IF(A173>$C$4,"_",$C$9-SUM($F$12:F173)) -> 85200.34691 | H173: =IF(A173>$C$4,"_",IFERROR(VLOOKUP(B173,BAZA_LIBOR_WIBOR_KURS!$C$2:$F$145,4,FALSE),H172)) -> 4.1 | I173: =IF(A173>$C$4,"_",IFERROR(VLOOKUP(B173,BAZA_LIBOR_WIBOR_KURS!$C$2:$F$145,3,FALSE),I172)) -> 0.0173 | J173: 0.02 | K173: 0 | L173: 1112.88 | M173: -1112.88 | N173: =IF(A173>$C$4,"_",$C$3-SUM($M$12:M173)) -> 359144.1791
A174: 163 | B174: 2022-03-01 | C174: =IF(A174>$C$4,"_",IFERROR(VLOOKUP(B174,BAZA_LIBOR_WIBOR_KURS!$C$2:$F$145,2,FALSE),C173)) -> -0.00732 | D174: 0.01 | E174: 19.02807748 | F174: 420.9089009 | G174: =IF(A174>$C$4,"_",$C$9-SUM($F$12:F174)) -> 84779.43801 | H174: =IF(A174>$C$4,"_",IFERROR(VLOOKUP(B174,BAZA_LIBOR_WIBOR_KURS!$C$2:$F$145,4,FALSE),H173)) -> 4.1 | I174: =IF(A174>$C$4,"_",IFERROR(VLOOKUP(B174,BAZA_LIBOR_WIBOR_KURS!$C$2:$F$145,3,FALSE),I173)) -> 0.0173 | J174: 0.02 | K174: 0 | L174: 1116.34 | M174: -1116.34 | N174: =IF(A174>$C$4,"_",$C$3-SUM($M$12:M174)) -> 360260.5191
A175: 164 | B175: 2022-04-01 | C175: =IF(A175>$C$4,"_",IFERROR(VLOOKUP(B175,BAZA_LIBOR_WIBOR_KURS!$C$2:$F$145,2,FALSE),C174)) -> -0.00732 | D175: 0.01 | E175: 18.93407449 | F175: 421.0029039 | G175: =IF(A175>$C$4,"_",$C$9-SUM($F$12:F175)) -> 84358.43511 | H175: =IF(A175>$C$4,"_",IFERROR(VLOOKUP(B175,BAZA_LIBOR_WIBOR_KURS!$C$2:$F$145,4,FALSE),H174)) -> 4.1 | I175: =IF(A175>$C$4,"_",IFERROR(VLOOKUP(B175,BAZA_LIBOR_WIBOR_KURS!$C$2:$F$145,3,FALSE),I174)) -> 0.0173 | J175: 0.02 | K175: 0 | L175: 1119.81 | M175: -1119.81 | N175: =IF(A175>$C$4,"_",$C$3-SUM($M$12:M175)) -> 361380.3291
A176: 165 | B176: 2022-05-01 | C176: =IF(A176>$C$4,"_",IFERROR(VLOOKUP(B176,BAZA_LIBOR_WIBOR_KURS!$C$2:$F$145,2,FALSE),C175)) -> -0.00732 | D176: 0.01 | E176: 18.84005051 | F176: 421.0969279 | G176: =IF(A176>$C$4,"_",$C$9-SUM($F$12:F176)) -> 83937.33818 | H176: =IF(A176>$C$4,"_",IFERROR(VLOOKUP(B176,BAZA_LIBOR_WIBOR_KURS!$C$2:$F$145,4,FALSE),H175)) -> 4.1 | I176: =IF(A176>$C$4,"_",IFERROR(VLOOKUP(B176,BAZA_LIBOR_WIBOR_KURS!$C$2:$F$145,3,FALSE),I175)) -> 0.0173 | J176: 0.02 | K176: 0 | L176: 1123.29 | M176: -1123.29 | N176: =IF(A176>$C$4,"_",$C$3-SUM($M$12:M176)) -> 362503.6191
A177: 166 | B177: 2022-06-01 | C177: =IF(A177>$C$4,"_",IFERROR(VLOOKUP(B177,BAZA_LIBOR_WIBOR_KURS!$C$2:$F$145,2,FALSE),C176)) -> -0.00732 | D177: 0.01 | E177: 18.74600553 | F177: 421.1909729 | G177: =IF(A177>$C$4,"_",$C$9-SUM($F$12:F177)) -> 83516.14721 | H177: =IF(A177>$C$4,"_",IFERROR(VLOOKUP(B177,BAZA_LIBOR_WIBOR_KURS!$C$2:$F$145,4,FALSE),H176)) -> 4.1 | I177: =IF(A177>$C$4,"_",IFERROR(VLOOKUP(B177,BAZA_LIBOR_WIBOR_KURS!$C$2:$F$145,3,FALSE),I176)) -> 0.0173 | J177: 0.02 | K177: 0 | L177: 1126.78 | M177: -1126.78 | N177: =IF(A177>$C$4,"_",$C$3-SUM($M$12:M177)) -> 363630.3991
A178: 167 | B178: 2022-07-01 | C178: =IF(A178>$C$4,"_",IFERROR(VLOOKUP(B178,BAZA_LIBOR_WIBOR_KURS!$C$2:$F$145,2,FALSE),C177)) -> -0.00732 | D178: 0.01 | E178: 18.65193954 | F178: 421.2850388 | G178: =IF(A178>$C$4,"_",$C$9-SUM($F$12:F178)) -> 83094.86217 | H178: =IF(A178>$C$4,"_",IFERROR(VLOOKUP(B178,BAZA_LIBOR_WIBOR_KURS!$C$2:$F$145,4,FALSE),H177)) -> 4.1 | I178: =IF(A178>$C$4,"_",IFERROR(VLOOKUP(B178,BAZA_LIBOR_WIBOR_KURS!$C$2:$F$145,3,FALSE),I177)) -> 0.0173 | J178: 0.02 | K178: 0 | L178: 1130.28 | M178: -1130.28 | N178: =IF(A178>$C$4,"_",$C$3-SUM($M$12:M178)) -> 364760.6791
A179: 168 | B179: 2022-08-01 | C179: =IF(A179>$C$4,"_",IFERROR(VLOOKUP(B179,BAZA_LIBOR_WIBOR_KURS!$C$2:$F$145,2,FALSE),C178)) -> -0.00732 | D179: 0.01 | E179: 18.55785255 | F179: 421.3791258 | G179: =IF(A179>$C$4,"_",$C$9-SUM($F$12:F179)) -> 82673.48304 | H179: =IF(A179>$C$4,"_",IFERROR(VLOOKUP(B179,BAZA_LIBOR_WIBOR_KURS!$C$2:$F$145,4,FALSE),H178)) -> 4.1 | I179: =IF(A179>$C$4,"_",IFERROR(VLOOKUP(B179,BAZA_LIBOR_WIBOR_KURS!$C$2:$F$145,3,FALSE),I178)) -> 0.0173 | J179: 0.02 | K179: 0 | L179: 1133.8 | M179: -1133.8 | N179: =IF(A179>$C$4,"_",$C$3-SUM($M$12:M179)) -> 365894.4791
A180: 169 | B180: 2022-09-01 | C180: =IF(A180>$C$4,"_",IFERROR(VLOOKUP(B180,BAZA_LIBOR_WIBOR_KURS!$C$2:$F$145,2,FALSE),C179)) -> -0.00732 | D180: 0.01 | E180: 18.46374455 | F180: 421.4732338 | G180: =IF(A180>$C$4,"_",$C$9-SUM($F$12:F180)) -> 82252.00981 | H180: =IF(A180>$C$4,"_",IFERROR(VLOOKUP(B180,BAZA_LIBOR_WIBOR_KURS!$C$2:$F$145,4,FALSE),H179)) -> 4.1 | I180: =IF(A180>$C$4,"_",IFERROR(VLOOKUP(B180,BAZA_LIBOR_WIBOR_KURS!$C$2:$F$145,3,FALSE),I179)) -> 0.0173 | J180: 0.02 | K180: 0 | L180: 1137.32 | M180: -1137.32 | N180: =IF(A180>$C$4,"_",$C$3-SUM($M$12:M180)) -> 367031.7991
A181: 170 | B181: 2022-10-01 | C181: =IF(A181>$C$4,"_",IFERROR(VLOOKUP(B181,BAZA_LIBOR_WIBOR_KURS!$C$2:$F$145,2,FALSE),C180)) -> -0.00732 | D181: 0.01 | E181: 18.36961552 | F181: 421.5673629 | G181: =IF(A181>$C$4,"_",$C$9-SUM($F$12:F181)) -> 81830.44244 | H181: =IF(A181>$C$4,"_",IFERROR(VLOOKUP(B181,BAZA_LIBOR_WIBOR_KURS!$C$2:$F$145,4,FALSE),H180)) -> 4.1 | I181: =IF(A181>$C$4,"_",IFERROR(VLOOKUP(B181,BAZA_LIBOR_WIBOR_KURS!$C$2:$F$145,3,FALSE),I180)) -> 0.0173 | J181: 0.02 | K181: 0 | L181: 1140.86 | M181: -1140.86 | N181: =IF(A181>$C$4,"_",$C$3-SUM($M$12:M181)) -> 368172.6591
A182: 171 | B182: 2022-11-01 | C182: =IF(A182>$C$4,"_",IFERROR(VLOOKUP(B182,BAZA_LIBOR_WIBOR_KURS!$C$2:$F$145,2,FALSE),C181)) -> -0.00732 | D182: 0.01 | E182: 18.27546548 | F182: 421.6615129 | G182: =IF(A182>$C$4,"_",$C$9-SUM($F$12:F182)) -> 81408.78093 | H182: =IF(A182>$C$4,"_",IFERROR(VLOOKUP(B182,BAZA_LIBOR_WIBOR_KURS!$C$2:$F$145,4,FALSE),H181)) -> 4.1 | I182: =IF(A182>$C$4,"_",IFERROR(VLOOKUP(B182,BAZA_LIBOR_WIBOR_KURS!$C$2:$F$145,3,FALSE),I181)) -> 0.0173 | J182: 0.02 | K182: 0 | L182: 1144.4 | M182: -1144.4 | N182: =IF(A182>$C$4,"_",$C$3-SUM($M$12:M182)) -> 369317.0591
A183: 172 | B183: 2022-12-01 | C183: =IF(A183>$C$4,"_",IFERROR(VLOOKUP(B183,BAZA_LIBOR_WIBOR_KURS!$C$2:$F$145,2,FALSE),C182)) -> -0.00732 | D183: 0.01 | E183: 18.18129441 | F183: 421.755684 | G183: =IF(A183>$C$4,"_",$C$9-SUM($F$12:F183)) -> 80987.02525 | H183: =IF(A183>$C$4,"_",IFERROR(VLOOKUP(B183,BAZA_LIBOR_WIBOR_KURS!$C$2:$F$145,4,FALSE),H182)) -> 4.1 | I183: =IF(A183>$C$4,"_",IFERROR(VLOOKUP(B183,BAZA_LIBOR_WIBOR_KURS!$C$2:$F$145,3,FALSE),I182)) -> 0.0173 | J183: 0.02 | K183: 0 | L183: 1147.96 | M183: -1147.96 | N183: =IF(A183>$C$4,"_",$C$3-SUM($M$12:M183)) -> 370465.0191
A184: 173 | B184: 2023-01-01 | C184: =IF(A184>$C$4,"_",IFERROR(VLOOKUP(B184,BAZA_LIBOR_WIBOR_KURS!$C$2:$F$145,2,FALSE),C183)) -> -0.00732 | D184: 0.01 | E184: 18.08710231 | F184: 421.8498761 | G184: =IF(A184>$C$4,"_",$C$9-SUM($F$12:F184)) -> 80565.17537 | H184: =IF(A184>$C$4,"_",IFERROR(VLOOKUP(B184,BAZA_LIBOR_WIBOR_KURS!$C$2:$F$145,4,FALSE),H183)) -> 4.1 | I184: =IF(A184>$C$4,"_",IFERROR(VLOOKUP(B184,BAZA_LIBOR_WIBOR_KURS!$C$2:$F$145,3,FALSE),I183)) -> 0.0173 | J184: 0.02 | K184: 0 | L184: 1151.53 | M184: -1151.53 | N184: =IF(A184>$C$4,"_",$C$3-SUM($M$12:M184)) -> 371616.5491
A185: 174 | B185: 2023-02-01 | C185: =IF(A185>$C$4,"_",IFERROR(VLOOKUP(B185,BAZA_LIBOR_WIBOR_KURS!$C$2:$F$145,2,FALSE),C184)) -> -0.00732 | D185: 0.01 | E185: 17.99288917 | F185: 421.9440892 | G185: =IF(A185>$C$4,"_",$C$9-SUM($F$12:F185)) -> 80143.23128 | H185: =IF(A185>$C$4,"_",IFERROR(VLOOKUP(B185,BAZA_LIBOR_WIBOR_KURS!$C$2:$F$145,4,FALSE),H184)) -> 4.1 | I185: =IF(A185>$C$4,"_",IFERROR(VLOOKUP(B185,BAZA_LIBOR_WIBOR_KURS!$C$2:$F$145,3,FALSE),I184)) -> 0.0173 | J185: 0.02 | K185: 0 | L185: 1155.11 | M185: -1155.11 | N185: =IF(A185>$C$4,"_",$C$3-SUM($M$12:M185)) -> 372771.6591
A186: 175 | B186: 2023-03-01 | C186: =IF(A186>$C$4,"_",IFERROR(VLOOKUP(B186,BAZA_LIBOR_WIBOR_KURS!$C$2:$F$145,2,FALSE),C185)) -> -0.00732 | D186: 0.01 | E186: 17.89865499 | F186: 422.0383234 | G186: =IF(A186>$C$4,"_",$C$9-SUM($F$12:F186)) -> 79721.19296 | H186: =IF(A186>$C$4,"_",IFERROR(VLOOKUP(B186,BAZA_LIBOR_WIBOR_KURS!$C$2:$F$145,4,FALSE),H185)) -> 4.1 | I186: =IF(A186>$C$4,"_",IFERROR(VLOOKUP(B186,BAZA_LIBOR_WIBOR_KURS!$C$2:$F$145,3,FALSE),I185)) -> 0.0173 | J186: 0.02 | K186: 0 | L186: 1158.7 | M186: -1158.7 | N186: =IF(A186>$C$4,"_",$C$3-SUM($M$12:M186)) -> 373930.3591
A187: 176 | B187: 2023-04-01 | C187: =IF(A187>$C$4,"_",IFERROR(VLOOKUP(B187,BAZA_LIBOR_WIBOR_KURS!$C$2:$F$145,2,FALSE),C186)) -> -0.00732 | D187: 0.01 | E187: 17.80439976 | F187: 422.1325786 | G187: =IF(A187>$C$4,"_",$C$9-SUM($F$12:F187)) -> 79299.06038 | H187: =IF(A187>$C$4,"_",IFERROR(VLOOKUP(B187,BAZA_LIBOR_WIBOR_KURS!$C$2:$F$145,4,FALSE),H186)) -> 4.1 | I187: =IF(A187>$C$4,"_",IFERROR(VLOOKUP(B187,BAZA_LIBOR_WIBOR_KURS!$C$2:$F$145,3,FALSE),I186)) -> 0.0173 | J187: 0.02 | K187: 0 | L187: 1162.3 | M187: -1162.3 | N187: =IF(A187>$C$4,"_",$C$3-SUM($M$12:M187)) -> 375092.6591
A188: 177 | B188: 2023-05-01 | C188: =IF(A188>$C$4,"_",IFERROR(VLOOKUP(B188,BAZA_LIBOR_WIBOR_KURS!$C$2:$F$145,2,FALSE),C187)) -> -0.00732 | D188: 0.01 | E188: 17.71012348 | F188: 422.2268549 | G188: =IF(A188>$C$4,"_",$C$9-SUM($F$12:F188)) -> 78876.83352 | H188: =IF(A188>$C$4,"_",IFERROR(VLOOKUP(B188,BAZA_LIBOR_WIBOR_KURS!$C$2:$F$145,4,FALSE),H187)) -> 4.1 | I188: =IF(A188>$C$4,"_",IFERROR(VLOOKUP(B188,BAZA_LIBOR_WIBOR_KURS!$C$2:$F$145,3,FALSE),I187)) -> 0.0173 | J188: 0.02 | K188: 0 | L188: 1165.91 | M188: -1165.91 | N188: =IF(A188>$C$4,"_",$C$3-SUM($M$12:M188)) -> 376258.5691
A189: 178 | B189: 2023-06-01 | C189: =IF(A189>$C$4,"_",IFERROR(VLOOKUP(B189,BAZA_LIBOR_WIBOR_KURS!$C$2:$F$145,2,FALSE),C188)) -> -0.00732 | D189: 0.01 | E189: 17.61582615 | F189: 422.3211522 | G189: =IF(A189>$C$4,"_",$C$9-SUM($F$12:F189)) -> 78454.51237 | H189: =IF(A189>$C$4,"_",IFERROR(VLOOKUP(B189,BAZA_LIBOR_WIBOR_KURS!$C$2:$F$145,4,FALSE),H188)) -> 4.1 | I189: =IF(A189>$C$4,"_",IFERROR(VLOOKUP(B189,BAZA_LIBOR_WIBOR_KURS!$C$2:$F$145,3,FALSE),I188)) -> 0.0173 | J189: 0.02 | K189: 0 | L189: 1169.54 | M189: -1169.54 | N189: =IF(A189>$C$4,"_",$C$3-SUM($M$12:M189)) -> 377428.1091
A190: 179 | B190: 2023-07-01 | C190: =IF(A190>$C$4,"_",IFERROR(VLOOKUP(B190,BAZA_LIBOR_WIBOR_KURS!$C$2:$F$145,2,FALSE),C189)) -> -0.00732 | D190: 0.01 | E190: 17.52150776 | F190: 422.4154706 | G190: =IF(A190>$C$4,"_",$C$9-SUM($F$12:F190)) -> 78032.0969 | H190: =IF(A190>$C$4,"_",IFERROR(VLOOKUP(B190,BAZA_LIBOR_WIBOR_KURS!$C$2:$F$145,4,FALSE),H189)) -> 4.1 | I190: =IF(A190>$C$4,"_",IFERROR(VLOOKUP(B190,BAZA_LIBOR_WIBOR_KURS!$C$2:$F$145,3,FALSE),I189)) -> 0.0173 | J190: 0.02 | K190: 0 | L190: 1173.17 | M190: -1173.17 | N190: =IF(A190>$C$4,"_",$C$3-SUM($M$12:M190)) -> 378601.2791
A191: 180 | B191: 2023-08-01 | C191: =IF(A191>$C$4,"_",IFERROR(VLOOKUP(B191,BAZA_LIBOR_WIBOR_KURS!$C$2:$F$145,2,FALSE),C190)) -> -0.00732 | D191: 0.01 | E191: 17.42716831 | F191: 422.5098101 | G191: =IF(A191>$C$4,"_",$C$9-SUM($F$12:F191)) -> 77609.58709 | H191: =IF(A191>$C$4,"_",IFERROR(VLOOKUP(B191,BAZA_LIBOR_WIBOR_KURS!$C$2:$F$145,4,FALSE),H190)) -> 4.1 | I191: =IF(A191>$C$4,"_",IFERROR(VLOOKUP(B191,BAZA_LIBOR_WIBOR_KURS!$C$2:$F$145,3,FALSE),I190)) -> 0.0173 | J191: 0.02 | K191: 0 | L191: 1176.82 | M191: -1176.82 | N191: =IF(A191>$C$4,"_",$C$3-SUM($M$12:M191)) -> 379778.0991
A192: 181 | B192: 2023-09-01 | C192: =IF(A192>$C$4,"_",IFERROR(VLOOKUP(B192,BAZA_LIBOR_WIBOR_KURS!$C$2:$F$145,2,FALSE),C191)) -> -0.00732 | D192: 0.01 | E192: 17.33280778 | F192: 422.6041706 | G192: =IF(A192>$C$4,"_",$C$9-SUM($F$12:F192)) -> 77186.98292 | H192: =IF(A192>$C$4,"_",IFERROR(VLOOKUP(B192,BAZA_LIBOR_WIBOR_KURS!$C$2:$F$145,4,FALSE),H191)) -> 4.1 | I192: =IF(A192>$C$4,"_",IFERROR(VLOOKUP(B192,BAZA_LIBOR_WIBOR_KURS!$C$2:$F$145,3,FALSE),I191)) -> 0.0173 | J192: 0.02 | K192: 0 | L192: 1180.48 | M192: -1180.48 | N192: =IF(A192>$C$4,"_",$C$3-SUM($M$12:M192)) -> 380958.5791
A193: 182 | B193: 2023-10-01 | C193: =IF(A193>$C$4,"_",IFERROR(VLOOKUP(B193,BAZA_LIBOR_WIBOR_KURS!$C$2:$F$145,2,FALSE),C192)) -> -0.00732 | D193: 0.01 | E193: 17.23842619 | F193: 422.6985522 | G193: =IF(A193>$C$4,"_",$C$9-SUM($F$12:F193)) -> 76764.28437 | H193: =IF(A193>$C$4,"_",IFERROR(VLOOKUP(B193,BAZA_LIBOR_WIBOR_KURS!$C$2:$F$145,4,FALSE),H192)) -> 4.1 | I193: =IF(A193>$C$4,"_",IFERROR(VLOOKUP(B193,BAZA_LIBOR_WIBOR_KURS!$C$2:$F$145,3,FALSE),I192)) -> 0.0173 | J193: 0.02 | K193: 0 | L193: 1184.15 | M193: -1184.15 | N193: =IF(A193>$C$4,"_",$C$3-SUM($M$12:M193)) -> 382142.7291
A194: 183 | B194: 2023-11-01 | C194: =IF(A194>$C$4,"_",IFERROR(VLOOKUP(B194,BAZA_LIBOR_WIBOR_KURS!$C$2:$F$145,2,FALSE),C193)) -> -0.00732 | D194: 0.01 | E194: 17.14402351 | F194: 422.7929549 | G194: =IF(A194>$C$4,"_",$C$9-SUM($F$12:F194)) -> 76341.49141 | H194: =IF(A194>$C$4,"_",IFERROR(VLOOKUP(B194,BAZA_LIBOR_WIBOR_KURS!$C$2:$F$145,4,FALSE),H193)) -> 4.1 | I194: =IF(A194>$C$4,"_",IFERROR(VLOOKUP(B194,BAZA_LIBOR_WIBOR_KURS!$C$2:$F$145,3,FALSE),I193)) -> 0.0173 | J194: 0.02 | K194: 0 | L194: 1187.83 | M194: -1187.83 | N194: =IF(A194>$C$4,"_",$C$3-SUM($M$12:M194)) -> 383330.5591
A195: 184 | B195: 2023-12-01 | C195: =IF(A195>$C$4,"_",IFERROR(VLOOKUP(B195,BAZA_LIBOR_WIBOR_KURS!$C$2:$F$145,2,FALSE),C194)) -> -0.00732 | D195: 0.01 | E195: 17.04959975 | F195: 422.8873786 | G195: =IF(A195>$C$4,"_",$C$9-SUM($F$12:F195)) -> 75918.60404 | H195: =IF(A195>$C$4,"_",IFERROR(VLOOKUP(B195,BAZA_LIBOR_WIBOR_KURS!$C$2:$F$145,4,FALSE),H194)) -> 4.1 | I195: =IF(A195>$C$4,"_",IFERROR(VLOOKUP(B195,BAZA_LIBOR_WIBOR_KURS!$C$2:$F$145,3,FALSE),I194)) -> 0.0173 | J195: 0.02 | K195: 0 | L195: 1191.52 | M195: -1191.52 | N195: =IF(A195>$C$4,"_",$C$3-SUM($M$12:M195)) -> 384522.0791
A196: 185 | B196: 2024-01-01 | C196: =IF(A196>$C$4,"_",IFERROR(VLOOKUP(B196,BAZA_LIBOR_WIBOR_KURS!$C$2:$F$145,2,FALSE),C195)) -> -0.00732 | D196: 0.01 | E196: 16.9551549 | F196: 422.9818235 | G196: =IF(A196>$C$4,"_",$C$9-SUM($F$12:F196)) -> 75495.62221 | H196: =IF(A196>$C$4,"_",IFERROR(VLOOKUP(B196,BAZA_LIBOR_WIBOR_KURS!$C$2:$F$145,4,FALSE),H195)) -> 4.1 | I196: =IF(A196>$C$4,"_",IFERROR(VLOOKUP(B196,BAZA_LIBOR_WIBOR_KURS!$C$2:$F$145,3,FALSE),I195)) -> 0.0173 | J196: 0.02 | K196: 0 | L196: 1195.22 | M196: -1195.22 | N196: =IF(A196>$C$4,"_",$C$3-SUM($M$12:M196)) -> 385717.2991
A197: 186 | B197: 2024-02-01 | C197: =IF(A197>$C$4,"_",IFERROR(VLOOKUP(B197,BAZA_LIBOR_WIBOR_KURS!$C$2:$F$145,2,FALSE),C196)) -> -0.00732 | D197: 0.01 | E197: 16.86068896 | F197: 423.0762894 | G197: =IF(A197>$C$4,"_",$C$9-SUM($F$12:F197)) -> 75072.54592 | H197: =IF(A197>$C$4,"_",IFERROR(VLOOKUP(B197,BAZA_LIBOR_WIBOR_KURS!$C$2:$F$145,4,FALSE),H196)) -> 4.1 | I197: =IF(A197>$C$4,"_",IFERROR(VLOOKUP(B197,BAZA_LIBOR_WIBOR_KURS!$C$2:$F$145,3,FALSE),I196)) -> 0.0173 | J197: 0.02 | K197: 0 | L197: 1198.94 | M197: -1198.94 | N197: =IF(A197>$C$4,"_",$C$3-SUM($M$12:M197)) -> 386916.2391
A198: 187 | B198: 2024-03-01 | C198: =IF(A198>$C$4,"_",IFERROR(VLOOKUP(B198,BAZA_LIBOR_WIBOR_KURS!$C$2:$F$145,2,FALSE),C197)) -> -0.00732 | D198: 0.01 | E198: 16.76620192 | F198: 423.1707765 | G198: =IF(A198>$C$4,"_",$C$9-SUM($F$12:F198)) -> 74649.37515 | H198: =IF(A198>$C$4,"_",IFERROR(VLOOKUP(B198,BAZA_LIBOR_WIBOR_KURS!$C$2:$F$145,4,FALSE),H197)) -> 4.1 | I198: =IF(A198>$C$4,"_",IFERROR(VLOOKUP(B198,BAZA_LIBOR_WIBOR_KURS!$C$2:$F$145,3,FALSE),I197)) -> 0.0173 | J198: 0.02 | K198: 0 | L198: 1202.66 | M198: -1202.66 | N198: =IF(A198>$C$4,"_",$C$3-SUM($M$12:M198)) -> 388118.8991
A199: 188 | B199: 2024-04-01 | C199: =IF(A199>$C$4,"_",IFERROR(VLOOKUP(B199,BAZA_LIBOR_WIBOR_KURS!$C$2:$F$145,2,FALSE),C198)) -> -0.00732 | D199: 0.01 | E199: 16.67169378 | F199: 423.2652846 | G199: =IF(A199>$C$4,"_",$C$9-SUM($F$12:F199)) -> 74226.10986 | H199: =IF(A199>$C$4,"_",IFERROR(VLOOKUP(B199,BAZA_LIBOR_WIBOR_KURS!$C$2:$F$145,4,FALSE),H198)) -> 4.1 | I199: =IF(A199>$C$4,"_",IFERROR(VLOOKUP(B199,BAZA_LIBOR_WIBOR_KURS!$C$2:$F$145,3,FALSE),I198)) -> 0.0173 | J199: 0.02 | K199: 0 | L199: 1206.4 | M199: -1206.4 | N199: =IF(A199>$C$4,"_",$C$3-SUM($M$12:M199)) -> 389325.2991
A200: 189 | B200: 2024-05-01 | C200: =IF(A200>$C$4,"_",IFERROR(VLOOKUP(B200,BAZA_LIBOR_WIBOR_KURS!$C$2:$F$145,2,FALSE),C199)) -> -0.00732 | D200: 0.01 | E200: 16.57716454 | F200: 423.3598138 | G200: =IF(A200>$C$4,"_",$C$9-SUM($F$12:F200)) -> 73802.75005 | H200: =IF(A200>$C$4,"_",IFERROR(VLOOKUP(B200,BAZA_LIBOR_WIBOR_KURS!$C$2:$F$145,4,FALSE),H199)) -> 4.1 | I200: =IF(A200>$C$4,"_",IFERROR(VLOOKUP(B200,BAZA_LIBOR_WIBOR_KURS!$C$2:$F$145,3,FALSE),I199)) -> 0.0173 | J200: 0.02 | K200: 0 | L200: 1210.15 | M200: -1210.15 | N200: =IF(A200>$C$4,"_",$C$3-SUM($M$12:M200)) -> 390535.4491
A201: 190 | B201: 2024-06-01 | C201: =IF(A201>$C$4,"_",IFERROR(VLOOKUP(B201,BAZA_LIBOR_WIBOR_KURS!$C$2:$F$145,2,FALSE),C200)) -> -0.00732 | D201: 0.01 | E201: 16.48261418 | F201: 423.4543642 | G201: =IF(A201>$C$4,"_",$C$9-SUM($F$12:F201)) -> 73379.29568 | H201: =IF(A201>$C$4,"_",IFERROR(VLOOKUP(B201,BAZA_LIBOR_WIBOR_KURS!$C$2:$F$145,4,FALSE),H200)) -> 4.1 | I201: =IF(A201>$C$4,"_",IFERROR(VLOOKUP(B201,BAZA_LIBOR_WIBOR_KURS!$C$2:$F$145,3,FALSE),I200)) -> 0.0173 | J201: 0.02 | K201: 0 | L201: 1213.91 | M201: -1213.91 | N201: =IF(A201>$C$4,"_",$C$3-SUM($M$12:M201)) -> 391749.3591
... 290 more rows

Sheet BAZA_LIBOR_WIBOR_KURS
A1: Rok | B1: miesiąc | C1: Data | D1: LIBOR_3M_CHF | E1: WIBOR_3M | F1: Kurs PLN/CHF
A2: 2005 | B2: 1 | C2: =DATE(A2,B2,1) -> 2005-01-01 | D2: 0.00739 | E2: 0.06631428571 | F2: 2.638757143 | H2: 2005 | I2: styczeń | J2: 1
A3: 2005 | B3: 2 | C3: 2005-02-01 | D3: 0.00752 | E3: 0.06541 | F3: 2.57103 | H3: 2006 | I3: luty | J3: 2
A4: 2005 | B4: 3 | C4: 2005-03-01 | D4: 0.00754 | E4: 0.06154545455 | F4: 2.593322727 | H4: 2007 | I4: marzec | J4: 3
A5: 2005 | B5: 4 | C5: 2005-04-01 | D5: 0.00765 | E5: 0.057765 | F5: 2.686135 | H5: 2008 | I5: kwiecień | J5: 4
A6: 2005 | B6: 5 | C6: 2005-05-01 | D6: 0.00755 | E6: 0.054815 | F6: 2.705275 | H6: 2009 | I6: maj | J6: 5
A7: 2005 | B7: 6 | C7: 2005-06-01 | D7: 0.00749 | E7: 0.05218181818 | F7: 2.639331818 | H7: 2010 | I7: czerwiec | J7: 6
A8: 2005 | B8: 7 | C8: 2005-07-01 | D8: 0.00749 | E8: 0.04680952381 | F8: 2.630995238 | H8: 2011 | I8: lipiec | J8: 7
A9: 2005 | B9: 8 | C9: 2005-08-01 | D9: 0.00759 | E9: 0.04674090909 | F9: 2.604363636 | H9: 2012 | I9: sierpień | J9: 8
A10: 2005 | B10: 9 | C10: 2005-09-01 | D10: 0.00762 | E10: 0.04513181818 | F10: 2.531318182 | H10: 2013 | I10: wrzesień | J10: 9
A11: 2005 | B11: 10 | C11: 2005-10-01 | D11: 0.00812 | E11: 0.04545238095 | F11: 2.5312 | H11: 2014 | I11: październik | J11: 10
A12: 2005 | B12: 11 | C12: 2005-11-01 | D12: 0.00953 | E12: 0.046385 | F12: 2.56726 | H12: 2015 | I12: listopad | J12: 11
A13: 2005 | B13: 12 | C13: 2005-12-01 | D13: 0.01023 | E13: 0.04616666667 | F13: 2.489185714 | H13: 2016 | I13: grudzień | J13: 12
A14: 2006 | B14: 1 | C14: 2006-01-01 | D14: 0.01008 | E14: 0.04486363636 | F14: 2.466881818
A15: 2006 | B15: 2 | C15: 2006-02-01 | D15: 0.01089 | E15: 0.042615 | F15: 2.435605
A16: 2006 | B16: 3 | C16: 2006-03-01 | D16: 0.01211 | E16: 0.04121304348 | F16: 2.473434783
A17: 2006 | B17: 4 | C17: 2006-04-01 | D17: 0.01281 | E17: 0.0414 | F17: 2.488457895
A18: 2006 | B18: 5 | C18: 2006-05-01 | D18: 0.01406 | E18: 0.04153809524 | F18: 2.505366667
A19: 2006 | B19: 6 | C19: 2006-06-01 | D19: 0.01481 | E19: 0.04174761905 | F19: 2.576752381
A20: 2006 | B20: 7 | C20: 2006-07-01 | D20: 0.0153 | E20: 0.04193333333 | F20: 2.547895238
A21: 2006 | B21: 8 | C21: 2006-08-01 | D21: 0.01611 | E21: 0.04194090909 | F21: 2.475327273
A22: 2006 | B22: 9 | C22: 2006-09-01 | D22: 0.01737 | E22: 0.04209047619 | F22: 2.506128571
A23: 2006 | B23: 10 | C23: 2006-10-01 | D23: 0.01845 | E23: 0.04216818182 | F23: 2.45505
A24: 2006 | B24: 11 | C24: 2006-11-01 | D24: 0.01901 | E24: 0.04197142857 | F24: 2.4018
A25: 2006 | B25: 12 | C25: 2006-12-01 | D25: 0.02017 | E25: 0.04199473684 | F25: 2.386968421
A26: 2007 | B26: 1 | C26: 2007-01-01 | D26: 0.02149 | E26: 0.04197272727 | F26: 2.400327273
A27: 2007 | B27: 2 | C27: 2007-02-01 | D27: 0.02212 | E27: 0.04198 | F27: 2.402145
A28: 2007 | B28: 3 | C28: 2007-03-01 | D28: 0.02259 | E28: 0.04217272727 | F28: 2.410077273
A29: 2007 | B29: 4 | C29: 2007-04-01 | D29: 0.02319 | E29: 0.043165 | F29: 2.33176
A30: 2007 | B30: 5 | C30: 2007-05-01 | D30: 0.02411 | E30: 0.04439047619 | F30: 2.29187619
A31: 2007 | B31: 6 | C31: 2007-06-01 | D31: 0.02546 | E31: 0.04515 | F31: 2.300335
A32: 2007 | B32: 7 | C32: 2007-07-01 | D32: 0.02716 | E32: 0.04780454545 | F32: 2.274031818
A33: 2007 | B33: 8 | C33: 2007-08-01 | D33: 0.02796 | E33: 0.04908636364 | F33: 2.327372727
A34: 2007 | B34: 9 | C34: =DATE(A34,B34,1) -> 2007-09-01 | D34: 0.02824 | E34: 0.05091 | F34: 2.299725
A35: 2007 | B35: 10 | C35: 2007-10-01 | D35: 0.02787 | E35: 0.05128695652 | F35: 2.218986957
A36: 2007 | B36: 11 | C36: 2007-11-01 | D36: 0.02751 | E36: 0.05363809524 | F36: 2.220052381
A37: 2007 | B37: 12 | C37: 2007-12-01 | D37: 0.02774 | E37: 0.05666842105 | F37: 2.171289474
A38: 2008 | B38: 1 | C38: 2008-01-01 | D38: 0.02696 | E38: 0.05642727273 | F38: 2.2278
A39: 2008 | B39: 2 | C39: 2008-02-01 | D39: 0.02745 | E39: 0.05742857143 | F39: 2.224019048
A40: 2008 | B40: 3 | C40: 2008-03-01 | D40: 0.02829 | E40: 0.060265 | F40: 2.25202
A41: 2008 | B41: 4 | C41: 2008-04-01 | D41: 0.02848 | E41: 0.06291363636 | F41: 2.159181818
A42: 2008 | B42: 5 | C42: 2008-05-01 | D42: 0.02782 | E42: 0.064145 | F42: 2.09523
A43: 2008 | B43: 6 | C43: 2008-06-01 | D43: 0.02837 | E43: 0.06575714286 | F43: 2.090790476
A44: 2008 | B44: 7 | C44: 2008-07-01 | D44: 0.02786 | E44: 0.0662 | F44: 2.014873913
A45: 2008 | B45: 8 | C45: 2008-08-01 | D45: 0.02748 | E45: 0.06521 | F45: 2.027765
A46: 2008 | B46: 9 | C46: 2008-09-01 | D46: 0.02779 | E46: 0.06558181818 | F46: 2.115818182
A47: 2008 | B47: 10 | C47: 2008-10-01 | D47: 0.02998 | E47: 0.06796956522 | F47: 2.355926087
A48: 2008 | B48: 11 | C48: 2008-11-01 | D48: 0.01967 | E48: 0.06739473684 | F48: 2.459
A49: 2008 | B49: 12 | C49: 2008-12-01 | D49: 0.00913 | E49: 0.06378571429 | F49: 2.605928571
A50: 2009 | B50: 1 | C50: 2009-01-01 | D50: 0.00569 | E50: 0.05506190476 | F50: 2.82552381
A51: 2009 | B51: 2 | C51: 2009-02-01 | D51: 0.00506 | E51: 0.046875 | F51: 3.119175
A52: 2009 | B52: 3 | C52: 2009-03-01 | D52: 0.00436 | E52: 0.04299090909 | F52: 3.071522727
A53: 2009 | B53: 4 | C53: 2009-04-01 | D53: 0.00401 | E53: 0.04204761905 | F53: 2.923585714
A54: 2009 | B54: 5 | C54: 2009-05-01 | D54: 0.00402 | E54: 0.045155 | F54: 2.9162
A55: 2009 | B55: 6 | C55: 2009-06-01 | D55: 0.00395 | E55: 0.04598095238 | F55: 2.976942857
A56: 2009 | B56: 7 | C56: 2009-07-01 | D56: 0.00373 | E56: 0.0425826087 | F56: 2.828847826
A57: 2009 | B57: 8 | C57: 2009-08-01 | D57: 0.00343 | E57: 0.04159047619 | F57: 2.710380952
A58: 2009 | B58: 9 | C58: 2009-09-01 | D58: 0.00301 | E58: 0.04177272727 | F58: 2.748009091
A59: 2009 | B59: 10 | C59: 2009-10-01 | D59: 0.00273 | E59: 0.04183636364 | F59: 2.782645455
A60: 2009 | B60: 11 | C60: 2009-11-01 | D60: 0.00255 | E60: 0.041915 | F60: 2.76002
A61: 2009 | B61: 12 | C61: 2009-12-01 | D61: 0.00252 | E61: 0.04232272727 | F61: 2.756163636
A62: 2010 | B62: 1 | C62: 2010-01-01 | D62: 0.0025 | E62: 0.04237 | F62: 2.754515
A63: 2010 | B63: 2 | C63: 2010-02-01 | D63: 0.00249 | E63: 0.041725 | F63: 2.73548
A64: 2010 | B64: 3 | C64: 2010-03-01 | D64: 0.00249 | E64: 0.04129130435 | F64: 2.6885
A65: 2010 | B65: 4 | C65: 2010-04-01 | D65: 0.00244 | E65: 0.03921904762 | F65: 2.702438095
A66: 2010 | B66: 5 | C66: =DATE(A66,B66,1) -> 2010-05-01 | D66: 0.00194 | E66: 0.03854 | F66: 2.8604
A67: 2010 | B67: 6 | C67: 2010-06-01 | D67: 0.00097 | E67: 0.03855238095 | F67: 2.983728571
A68: 2010 | B68: 7 | C68: 2010-07-01 | D68: 0.00132 | E68: 0.03835454545 | F68: 3.028795455
A69: 2010 | B69: 8 | C69: 2010-08-01 | D69: 0.00164 | E69: 0.03812272727 | F69: 2.971559091
A70: 2010 | B70: 9 | C70: 2010-09-01 | D70: 0.00175 | E70: 0.03821363636 | F70: 3.022336364
A71: 2010 | B71: 10 | C71: 2010-10-01 | D71: 0.00174 | E71: 0.03832380952 | F71: 2.937495238
A72: 2010 | B72: 11 | C72: 2010-11-01 | D72: 0.00169 | E72: 0.03855 | F72: 2.943415
A73: 2010 | B73: 12 | C73: 2010-12-01 | D73: 0.0017 | E73: 0.03915217391 | F73: 3.120078261
A74: 2011 | B74: 1 | C74: 2011-01-01 | D74: 0.00169 | E74: 0.040105 | F74: 3.045505
A75: 2011 | B75: 2 | C75: 2011-02-01 | D75: 0.0017 | E75: 0.04114 | F75: 3.028785
A76: 2011 | B76: 3 | C76: 2011-03-01 | D76: 0.00178 | E76: 0.04178695652 | F76: 3.116013043
A77: 2011 | B77: 4 | C77: 2011-04-01 | D77: 0.00184 | E77: 0.042705 | F77: 3.06101
A78: 2011 | B78: 5 | C78: 2011-05-01 | D78: 0.00179 | E78: 0.044 | F78: 3.144947619
A79: 2011 | B79: 6 | C79: 2011-06-01 | D79: 0.00175 | E79: 0.04610952381 | F79: 3.279057143
A80: 2011 | B80: 7 | C80: 2011-07-01 | D80: 0.00175 | E80: 0.04700952381 | F80: 3.391385714
A81: 2011 | B81: 8 | C81: 2011-08-01 | D81: 0.00058 | E81: 0.04716363636 | F81: 3.677213636
A82: 2011 | B82: 9 | C82: 2011-09-01 | D82: 9e-05 | E82: 0.04745909091 | F82: 3.610309091
A83: 2011 | B83: 10 | C83: 2011-10-01 | D83: 0.00037 | E83: 0.04802380952 | F83: 3.541433333
A84: 2011 | B84: 11 | C84: 2011-11-01 | D84: 0.00047 | E84: 0.049395 | F84: 3.59795
A85: 2011 | B85: 12 | C85: 2011-12-01 | D85: 0.00052 | E85: 0.04982380952 | F85: 3.646366667
A86: 2012 | B86: 1 | C86: 2012-01-01 | D86: 0.0006 | E86: 0.04985714286 | F86: 3.611480952
A87: 2012 | B87: 2 | C87: 2012-02-01 | D87: 0.00082 | E87: 0.04974761905 | F87: 3.465052381
A88: 2012 | B88: 3 | C88: 2012-03-01 | D88: 0.001 | E88: 0.04947727273 | F88: 3.430236364
A89: 2012 | B89: 4 | C89: 2012-04-01 | D89: 0.00112 | E89: 0.049435 | F89: 3.47455
A90: 2012 | B90: 5 | C90: 2012-05-01 | D90: 0.00111 | E90: 0.05047142857 | F90: 3.580266667
A91: 2012 | B91: 6 | C91: 2012-06-01 | D91: 0.00093 | E91: 0.0512 | F91: 3.582365
A92: 2012 | B92: 7 | C92: 2012-07-01 | D92: 0.00073 | E92: 0.05126818182 | F92: 3.487627273
A93: 2012 | B93: 8 | C93: 2012-08-01 | D93: 0.00051 | E93: 0.05101818182 | F93: 3.408086364
A94: 2012 | B94: 9 | C94: 2012-09-01 | D94: 0.00046 | E94: 0.04951 | F94: 3.420915
A95: 2012 | B95: 10 | C95: 2012-10-01 | D95: 0.00037 | E95: 0.04823043478 | F95: 3.396634783
A96: 2012 | B96: 11 | C96: 2012-11-01 | D96: 0.00031 | E96: 0.0461952381 | F96: 3.430614286
A97: 2012 | B97: 12 | C97: 2012-12-01 | D97: 0.00015 | E97: 0.04257894737 | F97: 3.387452632
A98: 2013 | B98: 1 | C98: =DATE(A98,B98,1) -> 2013-01-01 | D98: 0.00017 | E98: 0.04029545455 | F98: 3.368563636
A99: 2013 | B99: 2 | C99: 2013-02-01 | D99: 0.00024 | E99: 0.03804761905 | F99: 3.39208
A100: 2013 | B100: 3 | C100: 2013-03-01 | D100: 0.00022 | E100: 0.03475238095 | F100: 3.388528571
A101: 2013 | B101: 4 | C101: 2013-04-01 | D101: 0.0002 | E101: 0.03285238095 | F101: 3.392185714
A102: 2013 | B102: 5 | C102: 2013-05-01 | D102: 0.00018 | E102: 0.02863 | F102: 3.36413
A103: 2013 | B103: 6 | C103: 2013-06-01 | D103: 0.00018 | E103: 0.027445 | F103: 3.474505
A104: 2013 | B104: 7 | C104: 2013-07-01 | D104: 0.0002 | E104: 0.02697391304 | F104: 3.458934783
A105: 2013 | B105: 8 | C105: 2013-08-01 | D105: 0.00018 | E105: 0.02701428571 | F105: 3.430614286
A106: 2013 | B106: 9 | C106: 2013-09-01 | D106: 0.0002 | E106: 0.02690952381 | F106: 3.433409524
A107: 2013 | B107: 10 | C107: 2013-10-01 | D107: 0.0002 | E107: 0.02670869565 | F107: 3.403413043
A108: 2013 | B108: 11 | C108: 2013-11-01 | D108: 0.0002 | E108: 0.02653684211 | F108: 3.400884211
A109: 2013 | B109: 12 | C109: 2013-12-01 | D109: 0.0002 | E109: 0.02671 | F109: 3.41053
A110: 2014 | B110: 1 | C110: 2014-01-01 | D110: 0.00022 | E110: 0.0270047619 | F110: 3.394814286
A111: 2014 | B111: 2 | C111: 2014-02-01 | D111: 0.00018 | E111: 0.0271 | F111: 3.418755
A112: 2014 | B112: 3 | C112: 2014-03-01 | D112: 0.00021 | E112: 0.0271 | F112: 3.449533333
A113: 2014 | B113: 4 | C113: 2014-04-01 | D113: 0.00017 | E113: 0.02719047619 | F113: 3.43292381
A114: 2014 | B114: 5 | C114: 2014-05-01 | D114: 0.00016 | E114: 0.0272 | F114: 3.424142857
A115: 2014 | B115: 6 | C115: 2014-06-01 | D115: 0.00012 | E115: 0.02688 | F115: 3.39526
A116: 2014 | B116: 7 | C116: 2014-07-01 | D116: 0.00013 | E116: 0.02676956522 | F116: 3.411265217
A117: 2014 | B117: 8 | C117: 2014-08-01 | D117: 0.00021 | E117: 0.02649 | F117: 3.45886
A118: 2014 | B118: 9 | C118: 2014-09-01 | D118: 8e-05 | E118: 0.02448181818 | F118: 3.470031818
A119: 2014 | B119: 10 | C119: 2014-10-01 | D119: 8e-05 | E119: 0.02072608696 | F119: 3.482269565
A120: 2014 | B120: 11 | C120: 2014-11-01 | D120: 6e-05 | E120: 0.02033684211 | F120: 3.502352632
A121: 2014 | B121: 12 | C121: 2014-12-01 | D121: -0.0002 | E121: 0.0206 | F121: 3.503809524
A122: 2015 | B122: 1 | C122: 2015-01-01 | D122: -0.00466 | E122: 0.020305 | F122: 3.95756
A123: 2015 | B123: 2 | C123: 2015-02-01 | D123: -0.00889 | E123: 0.01917 | F123: 3.932525
A124: 2015 | B124: 3 | C124: 2015-03-01 | D124: -0.00802 | E124: 0.01671818182 | F124: 3.890177273
A125: 2015 | B125: 4 | C125: 2015-04-01 | D125: -0.00812 | E125: 0.0165 | F125: 3.877147619
A126: 2015 | B126: 5 | C126: 2015-05-01 | D126: -0.00791 | E126: 0.0167 | F126: 3.927305
A127: 2015 | B127: 6 | C127: 2015-06-01 | D127: -0.00782 | E127: 0.01704761905 | F127: 3.983695238
A128: 2015 | B128: 7 | C128: 2015-07-01 | D128: -0.00762 | E128: 0.0172 | F128: 3.961795652
A129: 2015 | B129: 8 | C129: 2015-08-01 | D129: -0.00729 | E129: 0.0172 | F129: 3.890952381
A130: 2015 | B130: 9 | C130: =DATE(A130,B130,1) -> 2015-09-01 | D130: -0.00729 | E130: 0.01721363636 | F130: 3.863313636
A131: 2015 | B131: 10 | C131: 2015-10-01 | D131: -0.00728 | E131: 0.0173 | F131: 3.905540909
A132: 2015 | B132: 11 | C132: 2015-11-01 | D132: -0.00732 | E132: 0.0173 | F132: 3.914
A133: 2015 | B133: 12 | C133: 2015-12-01 | D133: =D132 -> -0.00732 | E133: =E132 -> 0.0173 | F133: 3.914
A134: 2016 | B134: 1 | C134: 2016-01-01 | D134: =D133 -> -0.00732 | E134: 0.0173 | F134: 4.1
A135: 2016 | B135: 2 | C135: 2016-02-01 | D135: -0.00732 | E135: 0.0173 | F135: 4.1
A136: 2016 | B136: 3 | C136: 2016-03-01 | D136: -0.00732 | E136: 0.0173 | F136: 4.1
A137: 2016 | B137: 4 | C137: 2016-04-01 | D137: -0.00732 | E137: 0.0173 | F137: 4.1
A138: 2016 | B138: 5 | C138: 2016-05-01 | D138: -0.00732 | E138: 0.0173 | F138: 4.1
A139: 2016 | B139: 6 | C139: 2016-06-01 | D139: -0.00732 | E139: 0.0173 | F139: 4.1
A140: 2016 | B140: 7 | C140: 2016-07-01 | D140: -0.00732 | E140: 0.0173 | F140: 4.1
A141: 2016 | B141: 8 | C141: 2016-08-01 | D141: -0.00732 | E141: 0.0173 | F141: 4.1
A142: 2016 | B142: 9 | C142: 2016-09-01 | D142: -0.00732 | E142: 0.0173 | F142: 4.1
A143: 2016 | B143: 10 | C143: 2016-10-01 | D143: -0.00732 | E143: 0.0173 | F143: 4.1
A144: 2016 | B144: 11 | C144: 2016-11-01 | D144: -0.00732 | E144: 0.0173 | F144: 4.1
A145: 2016 | B145: 12 | C145: 2016-12-01 | D145: -0.00732 | E145: 0.0173 | F145: 4.1
